Workbook

Sheet INÍCIO
A1: FICHA DE AVALIAÇÃO DE DESEMPENHO | K1: 20170802 - Criado por Flávio Salamoni Barros Silva
A2: 2º CICLO
A4: Empregado: | B4: Tício | F4: Início do Exercício: | H4: 2012-12-15 | I4: Matrícula: | J4: 0
A5: Cargo: | B5: Assistente | F5: Lotação: | G5: Atendimento | I5: RG/CPF:
A6: Avaliador: | B6: Caio | F6: Função: | G6: Gerente | I6: Data: | J6: 2017-12-15
A8: INSTRUÇÕES
A9: 1. O objetivo deste instrumento é fornecer subsídios para a avaliação do empregado, servindo de suporte para promoções .
A10: 2. Mencione as principais atividades atribuídas ao empregado avaliado, no campo apropiado.
A11: 3. Avalie de acordo com a classificação que melhor descreve o desempenho do empregado avaliado.
A12: 4. Fundamente cada fator de avalilação, indicando, no campo apropriado, as ocorrências ocorridas no período.
A13: 5. Restrinja-se às observações que digam respeito somente ao espaço de tempo de análise estipulado.
A14: 6. Não faça estimativas futuras, nem leve em consideração análises anteriores, se existentes.
A15: 7. Não deixe nenhum quesito em branco.
A16: 8. Evite rasuras.
A17: 9. Utilize o espço reservado para as observações caso necessite acrescentar alguma informação.
A18: 10. As recomendações para o desenvolvimento do empregado que venham a ser feitas não serão consideradas como compromissos assumidos, mas serão objeto de análise no conjunto de prioridades definidas pelo CAU/RS, cujas conclusões serão comunicadas ao Comitê de Avaliadores.
A22: ATRIBUIÇÕES DO EMPREGADO AVALIADO
A23: (preenchível pelo avaliador)
A30: =CONCATENATE("AVALIAÇÃO DE DESEMPENHO (",A2,")") -> AVALIAÇÃO DE DESEMPENHO (2º CICLO) | E30: INÍCIO: | F30: 2012-12-15 | G30: TÉRMINO: | H30: =IFERROR(IF(F30="","",DADOS!D20),"") -> 2015-12-15 | I30: Resultados | J30: Conceitos | L30: Outro
A31: 1ª Etapa: 06 (seis) meses após o início do exercício. | G31: Data: | H31: =IFERROR(DADOS!D15+L31,"") -> 2013-06-17 | I31: =IFERROR('1ª Etapa'!E201,"") -> 69 | J31: =IF(I31="","",IF(I31>mbom,DADOS!$H$7,IF(I31>bom,DADOS!$H$6,IF(I31>reg,DADOS!$H$5,IF(I31>insat,DADOS!$H$4,IF(I31>=0,DADOS!$H$3,"")))))) -> Bom
A32: 2ª Etapa: 12 (doze) meses após o início do exercício. | G32: Data: | H32: =IFERROR(DADOS!D16+L32,"") -> 2013-12-16 | I32: =IFERROR('2ª Etapa'!E201,"") -> 81.4 | J32: =IF(I32="","",IF(I32>mbom,DADOS!$H$7,IF(I32>bom,DADOS!$H$6,IF(I32>reg,DADOS!$H$5,IF(I32>insat,DADOS!$H$4,IF(I32>=0,DADOS!$H$3,"")))))) -> Muito bom
A33: 3ª Etapa: 18 (dezoito) meses após o início do exercício. | G33: Data: | H33: =IFERROR(DADOS!D17+L33,"") -> 2014-06-16 | I33: =IFERROR('3ª Etapa'!E201,"") -> 76.4 | J33: =IF(I33="","",IF(I33>mbom,DADOS!$H$7,IF(I33>bom,DADOS!$H$6,IF(I33>reg,DADOS!$H$5,IF(I33>insat,DADOS!$H$4,IF(I33>=0,DADOS!$H$3,"")))))) -> Muito bom
A34: 4ª Etapa: 24 (vinte e quatro) meses após o início do exercício. | G34: Data: | H34: =IFERROR(DADOS!D18+L34,"") -> 2014-12-15 | I34: =IFERROR('4ª Etapa'!E201,"") -> 50.8 | J34: =IF(I34="","",IF(I34>mbom,DADOS!$H$7,IF(I34>bom,DADOS!$H$6,IF(I34>reg,DADOS!$H$5,IF(I34>insat,DADOS!$H$4,IF(I34>=0,DADOS!$H$3,"")))))) -> Bom | N34: 0.8
A35: 5ª Etapa: 30 (trinta) meses após o início do exercício. | G35: Data: | H35: =IFERROR(DADOS!D19+L35,"") -> 2015-06-15 | I35: =IFERROR('5ª Etapa'!E201,"") -> 58.4 | J35: =IF(I35="","",IF(I35>mbom,DADOS!$H$7,IF(I35>bom,DADOS!$H$6,IF(I35>reg,DADOS!$H$5,IF(I35>insat,DADOS!$H$4,IF(I35>=0,DADOS!$H$3,"")))))) -> Bom | N35: 0.8
A36: 6ª Etapa: 36 (trinta e seis) meses após o início do exercício. | G36: Data: | H36: =IFERROR(DADOS!D20+L36,"") -> 2015-12-15 | I36: =IFERROR('6ª Etapa'!E201,"") -> 79.6 | J36: =IF(I36="","",IF(I36>mbom,DADOS!$H$7,IF(I36>bom,DADOS!$H$6,IF(I36>reg,DADOS!$H$5,IF(I36>insat,DADOS!$H$4,IF(I36>=0,DADOS!$H$3,"")))))) -> Muito bom | N36: 1.4
H37: Média: | I37: =IFERROR(AVERAGE(I31:I36),"") -> 69.26666667 | J37: =IF(I37="","",IF(I37>mbom,DADOS!$H$7,IF(I37>bom,DADOS!$H$6,IF(I37>reg,DADOS!$H$5,IF(I37>insat,DADOS!$H$4,IF(I37>=0,DADOS!$H$3,"")))))) -> Bom
A39: AVALIAÇÕES
A40: 1. O empregado será avaliado por seu superior imediato ou, quando não aplicável, pelo Presidente ou por pessoa designada por ele.
A42: 2. O padrão atribuído a cada empregado por cada fator será de até 10 (dez) pontos, sendo descontado deste total o número de pontos, conforme a quantidade de ocorrências ou apontamentos nos registros funcionais do empregado, durante a etapa de avaliação.
A44: 3. Em todas as etapas é necessário realizar feedbacks frequentes ao empregado avaliado, objetivando o seu aperfeiçoamento ou a correção de seu comportamente.
A46: 4. Os empregados que obtiverem avaliação de desempenho individual inferior a 50% (cinquenta por cento) da pontuação máxima prevista poderão ser submetidos a processo de capacitação ou de análise da adequação funcional, conforme o caso.
A49: PARECER DO AVALIADOR
A50: (preenchível pelo avaliador no final do ciclo)
B57: Ciente do conteúdo da avaliação.
B58: =IFERROR(CONCATENATE("Porto Alegre, ",data_12c),"") -> 
C60: =IF(nome_empregado="","",nome_empregado) -> Tício | H60: =IF(Nome_avaliador="","",Nome_avaliador) -> Caio
C61: AVALIADO | H61: AVALIADOR

Sheet DADOS (hidden)
B1: ='1ª Etapa'!C201 -> TOTAIS: | C1: Insatisfatório
B2: =#REF! ->  | C2: Regular | H2: CONCEITOS
B3: =#REF! ->  | C3: Bom | H3: Insatisfatório | I3: até 29,9 | J3: Desempenho ruim. | M3: 29.9
B4: =#REF! ->  | C4: Excelente | H4: Regular | I4: 30 a 49,9 | J4: Desempenho abaixo da média. | M4: 49.9
B5: =#REF! ->  | H5: Bom | I5: 50 a 69,9 | J5: Desempenho satisfaz. | M5: 69.9
B6: =#REF! ->  | H6: Muito bom | I6: 70 a 89,9 | J6: Desempenho acima da média. | M6: 89.9
B7: =#REF! ->  | H7: Excelente | I7: 90 a 100 | J7: Desempenho exemplar.
B8: =#REF! -> 
B9: =#REF! -> 
B12: SIM
B14: data_N | D14: data_Nc | G14: datas das avaliações
A15: 6 | B15: =IF(INÍCIO!$F$30="","",EDATE(INÍCIO!$F$30,A15)) -> 2013-06-15 | C15: =WEEKDAY(B15) -> 7 | D15: =IF(C15=1,B15+1,IF(C15=7,B15+2,B15)) -> 2013-06-17 | E15: =WEEKDAY(D15) -> 2 | G15: =IF('1ª Etapa'!J6="","",'1ª Etapa'!J6) -> 2014-06-16 | H15: =WEEKDAY(G15) -> 2 | I15: =DAY(G15) -> 16 | J15: =MONTH(G15) -> 6 | K15: =YEAR(G15) -> 2014 | L15: =IFERROR(CONCATENATE("dia ",I15," de ",INDEX($C$60:$C$71,MATCH(J15,$B$60:$B$71,0))," de ",K15,"."),"") -> dia 16 de junho de 2014.
A16: 12 | B16: =IF(INÍCIO!$F$30="","",EDATE(INÍCIO!$F$30,A16)) -> 2013-12-15 | C16: 1 | D16: =IF(C16=1,B16+1,IF(C16=7,B16+2,B16)) -> 2013-12-16 | E16: 2 | G16: =IF('2ª Etapa'!J6="","",'2ª Etapa'!J6) -> 2017-05-15 | H16: =WEEKDAY(G16) -> 2 | I16: =DAY(G16) -> 15 | J16: =MONTH(G16) -> 5 | K16: =YEAR(G16) -> 2017 | L16: =IFERROR(CONCATENATE("dia ",I16," de ",INDEX($C$60:$C$71,MATCH(J16,$B$60:$B$71,0))," de ",K16,"."),"") -> dia 15 de maio de 2017.
A17: 18 | B17: =IF(INÍCIO!$F$30="","",EDATE(INÍCIO!$F$30,A17)) -> 2014-06-15 | C17: 1 | D17: 2014-06-16 | E17: 2 | G17: =IF('3ª Etapa'!J6="","",'3ª Etapa'!J6) -> 2017-04-01 | H17: 7 | I17: 1 | J17: 4 | K17: 2017 | L17: dia 1 de abril de 2017.
A18: 24 | B18: =IF(INÍCIO!$F$30="","",EDATE(INÍCIO!$F$30,A18)) -> 2014-12-15 | C18: 2 | D18: 2014-12-15 | E18: 2 | G18: =IF('4ª Etapa'!J6="","",'4ª Etapa'!J6) -> 2018-06-13 | H18: 4 | I18: 13 | J18: 6 | K18: 2018 | L18: dia 13 de junho de 2018.
A19: 30 | B19: =IF(INÍCIO!$F$30="","",EDATE(INÍCIO!$F$30,A19)) -> 2015-06-15 | C19: 2 | D19: 2015-06-15 | E19: 2 | G19: =IF('5ª Etapa'!J6="","",'5ª Etapa'!J6) -> 2017-05-01 | H19: 2 | I19: 1 | J19: 5 | K19: 2017 | L19: dia 1 de maio de 2017.
A20: 36 | B20: =IF(INÍCIO!$F$30="","",EDATE(INÍCIO!$F$30,A20)) -> 2015-12-15 | C20: =WEEKDAY(B20) -> 3 | D20: =IF(C20=1,B20+1,IF(C20=7,B20+2,B20)) -> 2015-12-15 | E20: =WEEKDAY(D20) -> 3 | G20: =IF('6ª Etapa'!J6="","",'6ª Etapa'!J6) -> 2017-06-13 | H20: 3 | I20: 13 | J20: 6 | K20: 2017 | L20: dia 13 de junho de 2017.
A21: 21 | B21: =IF(INÍCIO!$F$30="","",EDATE(INÍCIO!$F$30,A21)) -> 2014-09-15 | C21: 2 | D21: 2014-09-15 | E21: 2 | G21: =IF('7ª Etapa'!J6="","",'7ª Etapa'!J6) -> 
A22: 24 | B22: =IF(INÍCIO!$F$30="","",EDATE(INÍCIO!$F$30,A22)) -> 2014-12-15 | C22: 2 | D22: 2014-12-15 | E22: 2 | G22: =IF('8ª Etapa'!J6="","",'8ª Etapa'!J6) -> 
A23: 27 | B23: =IF(INÍCIO!$F$30="","",EDATE(INÍCIO!$F$30,A23)) -> 2015-03-15 | C23: 1 | D23: 2015-03-16 | E23: 2 | G23: =IF('9ª Etapa'!J6="","",'9ª Etapa'!J6) -> 
A24: 30 | B24: =IF(INÍCIO!$F$30="","",EDATE(INÍCIO!$F$30,A24)) -> 2015-06-15 | C24: 2 | D24: 2015-06-15 | E24: 2 | G24: =IF('10ª Etapa'!J6="","",'10ª Etapa'!J6) -> 
A25: 33 | B25: =IF(INÍCIO!$F$30="","",EDATE(INÍCIO!$F$30,A25)) -> 2015-09-15 | C25: 3 | D25: 2015-09-15 | E25: 3 | G25: =IF('11ª Etapa'!J6="","",'11ª Etapa'!J6) -> 
A26: 36 | B26: =IF(INÍCIO!$F$30="","",EDATE(INÍCIO!$F$30,A26)) -> 2015-12-15 | C26: 3 | D26: 2015-12-15 | E26: 3 | G26: =IF('12ª Etapa'!J6="","",'12ª Etapa'!J6) -> 
B29: outros
B30: 1
B31: 2
B32: 3
B33: 4
B34: 5
B35: 6
B36: 7
B38: =WEEKDAY(data_1) -> 2 | C38: =DAY(data_1) -> 17 | D38: =MONTH(data_1) -> 6 | E38: =YEAR(data_1) -> 2013 | F38: =CONCATENATE(INDEX($C$54:$C$58,MATCH(B38,$B$54:$B$58,0)),", dia ",C38," de ",INDEX($C$60:$C$71,MATCH(D38,$B$60:$B$71,0))," de ",E38,".") -> segunda-feira, dia 17 de junho de 2013.
B39: =WEEKDAY(data_2) -> 2 | C39: =DAY(data_2) -> 16 | D39: =MONTH(data_2) -> 12 | E39: =YEAR(data_2) -> 2013 | F39: =CONCATENATE(INDEX($C$54:$C$58,MATCH(B39,$B$54:$B$58,0)),", dia ",C39," de ",INDEX($C$60:$C$71,MATCH(D39,$B$60:$B$71,0))," de ",E39,".") -> segunda-feira, dia 16 de dezembro de 2013.
B40: =WEEKDAY(data_3) -> 2 | C40: =DAY(data_3) -> 16 | D40: =MONTH(data_3) -> 6 | E40: =YEAR(data_3) -> 2014 | F40: segunda-feira, dia 16 de junho de 2014.
B41: =WEEKDAY(data_4) -> 2 | C41: =DAY(data_4) -> 15 | D41: =MONTH(data_4) -> 12 | E41: =YEAR(data_4) -> 2014 | F41: segunda-feira, dia 15 de dezembro de 2014.
B42: =WEEKDAY(data_5) -> 2 | C42: =DAY(data_5) -> 15 | D42: =MONTH(data_5) -> 6 | E42: =YEAR(data_5) -> 2015 | F42: segunda-feira, dia 15 de junho de 2015.
B43: =WEEKDAY(data_6) -> 3 | C43: =DAY(data_6) -> 15 | D43: =MONTH(data_6) -> 12 | E43: =YEAR(data_6) -> 2015 | F43: terça-feira, dia 15 de dezembro de 2015.
B44: =WEEKDAY(data_7) ->  | C44: =DAY(data_7) ->  | D44: =MONTH(data_7) ->  | E44: =YEAR(data_7) -> 
B45: =WEEKDAY(data_8) ->  | C45: =DAY(data_8) ->  | D45: =MONTH(data_8) ->  | E45: =YEAR(data_8) -> 
B46: =WEEKDAY(data_9) ->  | C46: =DAY(data_9) ->  | D46: =MONTH(data_9) ->  | E46: =YEAR(data_9) -> 
B47: =WEEKDAY(data_10) ->  | C47: =DAY(data_10) ->  | D47: =MONTH(data_10) ->  | E47: =YEAR(data_10) -> 
B48: =WEEKDAY(data_11) ->  | C48: =DAY(data_11) ->  | D48: =MONTH(data_11) ->  | E48: =YEAR(data_11) -> 
B49: =WEEKDAY(data_12) ->  | C49: =DAY(data_12) ->  | D49: =MONTH(data_12) ->  | E49: =YEAR(data_12) -> 
B54: 2 | C54: segunda-feira
B55: 3 | C55: terça-feira
B56: 4 | C56: quarta-feira
B57: 5 | C57: quinta-feira
B58: 6 | C58: sexta-feira
B60: 1 | C60: janeiro
B61: 2 | C61: fevereiro
B62: 3 | C62: março
B63: 4 | C63: abril
B64: 5 | C64: maio
B65: 6 | C65: junho
B66: 7 | C66: julho
B67: 8 | C67: agosto
B68: 9 | C68: setembro
B69: 10 | C69: outubro
B70: 11 | C70: novembro
B71: 12 | C71: dezembro
B73: 1ª etapa | D73: 2ª etapa | F73: 3ª Etapa | H73: 4ª Etapa | J73: 5ª Etapa | L73: 6ª Etapa | N73: 7ª Etapa | P73: 8ª Etapa | R73: úª Etapa
A74: disc | B74: =SUM(IF('1ª Etapa'!#REF!="sim",4,IF('1ª Etapa'!#REF!="sim",3,IF('1ª Etapa'!#REF!="sim",2,IF('1ª Etapa'!#REF!="sim",1,0))))) ->  | D74: =SUM(IF(#REF!="sim",4,IF(#REF!="sim",3,IF(#REF!="sim",2,IF(#REF!="sim",1,0))))) ->  | F74: =SUM(IF(#REF!="sim",4,IF(#REF!="sim",3,IF(#REF!="sim",2,IF(#REF!="sim",1,0))))) ->  | H74: =SUM(IF(#REF!="sim",4,IF(#REF!="sim",3,IF(#REF!="sim",2,IF(#REF!="sim",1,0))))) ->  | J74: =SUM(IF(#REF!="sim",4,IF(#REF!="sim",3,IF(#REF!="sim",2,IF(#REF!="sim",1,0))))) ->  | L74: =SUM(IF(#REF!="sim",4,IF(#REF!="sim",3,IF(#REF!="sim",2,IF(#REF!="sim",1,0))))) ->  | N74: =SUM(IF(#REF!="sim",4,IF(#REF!="sim",3,IF(#REF!="sim",2,IF(#REF!="sim",1,0))))) ->  | P74: =SUM(IF(#REF!="sim",4,IF(#REF!="sim",3,IF(#REF!="sim",2,IF(#REF!="sim",1,0))))) ->  | R74: =SUM(IF(#REF!="sim",4,IF(#REF!="sim",3,IF(#REF!="sim",2,IF(#REF!="sim",1,0))))) -> 
B75: =SUM(IF('1ª Etapa'!#REF!="sim",4,IF('1ª Etapa'!#REF!="sim",3,IF('1ª Etapa'!#REF!="sim",2,IF('1ª Etapa'!#REF!="sim",1,0))))) ->  | C75: =SUM(D1_1ª+D2_1ª) ->  | D75: =SUM(IF(#REF!="sim",4,IF(#REF!="sim",3,IF(#REF!="sim",2,IF(#REF!="sim",1,0))))) ->  | E75: =D74+D75 ->  | F75: =SUM(IF(#REF!="sim",4,IF(#REF!="sim",3,IF(#REF!="sim",2,IF(#REF!="sim",1,0))))) ->  | G75: =F74+F75 ->  | H75: =SUM(IF(#REF!="sim",4,IF(#REF!="sim",3,IF(#REF!="sim",2,IF(#REF!="sim",1,0))))) ->  | I75: =H74+H75 ->  | J75: =SUM(IF(#REF!="sim",4,IF(#REF!="sim",3,IF(#REF!="sim",2,IF(#REF!="sim",1,0))))) ->  | K75: =J74+J75 ->  | L75: =SUM(IF(#REF!="sim",4,IF(#REF!="sim",3,IF(#REF!="sim",2,IF(#REF!="sim",1,0))))) ->  | M75: =L74+L75 ->  | N75: =SUM(IF(#REF!="sim",4,IF(#REF!="sim",3,IF(#REF!="sim",2,IF(#REF!="sim",1,0))))) ->  | O75: =N74+N75 ->  | P75: =SUM(IF(#REF!="sim",4,IF(#REF!="sim",3,IF(#REF!="sim",2,IF(#REF!="sim",1,0))))) ->  | Q75: =P74+P75 ->  | R75: =SUM(IF(#REF!="sim",4,IF(#REF!="sim",3,IF(#REF!="sim",2,IF(#REF!="sim",1,0))))) ->  | S75: =R74+R75 -> 
A76: efi | B76: =SUM(IF('1ª Etapa'!#REF!="sim",4,IF('1ª Etapa'!#REF!="sim",3,IF('1ª Etapa'!#REF!="sim",2,IF('1ª Etapa'!#REF!="sim",1,0))))) ->  | D76: =SUM(IF(#REF!="sim",4,IF(#REF!="sim",3,IF(#REF!="sim",2,IF(#REF!="sim",1,0))))) ->  | F76: =SUM(IF(#REF!="sim",4,IF(#REF!="sim",3,IF(#REF!="sim",2,IF(#REF!="sim",1,0))))) ->  | H76: =SUM(IF(#REF!="sim",4,IF(#REF!="sim",3,IF(#REF!="sim",2,IF(#REF!="sim",1,0))))) ->  | J76: =SUM(IF(#REF!="sim",4,IF(#REF!="sim",3,IF(#REF!="sim",2,IF(#REF!="sim",1,0))))) ->  | L76: =SUM(IF(#REF!="sim",4,IF(#REF!="sim",3,IF(#REF!="sim",2,IF(#REF!="sim",1,0))))) ->  | N76: =SUM(IF(#REF!="sim",4,IF(#REF!="sim",3,IF(#REF!="sim",2,IF(#REF!="sim",1,0))))) ->  | P76: =SUM(IF(#REF!="sim",4,IF(#REF!="sim",3,IF(#REF!="sim",2,IF(#REF!="sim",1,0))))) ->  | R76: =SUM(IF(#REF!="sim",4,IF(#REF!="sim",3,IF(#REF!="sim",2,IF(#REF!="sim",1,0))))) -> 
B77: =SUM(IF('1ª Etapa'!#REF!="sim",4,IF('1ª Etapa'!#REF!="sim",3,IF('1ª Etapa'!#REF!="sim",2,IF('1ª Etapa'!#REF!="sim",1,0))))) ->  | C77: =E1_1ª+E2_1ª ->  | D77: =SUM(IF(#REF!="sim",4,IF(#REF!="sim",3,IF(#REF!="sim",2,IF(#REF!="sim",1,0))))) ->  | E77: =D76+D77 ->  | F77: =SUM(IF(#REF!="sim",4,IF(#REF!="sim",3,IF(#REF!="sim",2,IF(#REF!="sim",1,0))))) ->  | G77: =F76+F77 ->  | H77: =SUM(IF(#REF!="sim",4,IF(#REF!="sim",3,IF(#REF!="sim",2,IF(#REF!="sim",1,0))))) ->  | I77: =H76+H77 ->  | J77: =SUM(IF(#REF!="sim",4,IF(#REF!="sim",3,IF(#REF!="sim",2,IF(#REF!="sim",1,0))))) ->  | K77: =J76+J77 ->  | L77: =SUM(IF(#REF!="sim",4,IF(#REF!="sim",3,IF(#REF!="sim",2,IF(#REF!="sim",1,0))))) ->  | M77: =L76+L77 ->  | N77: =SUM(IF(#REF!="sim",4,IF(#REF!="sim",3,IF(#REF!="sim",2,IF(#REF!="sim",1,0))))) ->  | O77: =N76+N77 ->  | P77: =SUM(IF(#REF!="sim",4,IF(#REF!="sim",3,IF(#REF!="sim",2,IF(#REF!="sim",1,0))))) ->  | Q77: =P76+P77 ->  | R77: =SUM(IF(#REF!="sim",4,IF(#REF!="sim",3,IF(#REF!="sim",2,IF(#REF!="sim",1,0))))) ->  | S77: =R76+R77 -> 
A78: resp | B78: =SUM(IF('1ª Etapa'!#REF!="sim",4,IF('1ª Etapa'!#REF!="sim",3,IF('1ª Etapa'!#REF!="sim",2,IF('1ª Etapa'!#REF!="sim",1,0))))) ->  | D78: =SUM(IF(#REF!="sim",4,IF(#REF!="sim",3,IF(#REF!="sim",2,IF(#REF!="sim",1,0))))) ->  | F78: =SUM(IF(#REF!="sim",4,IF(#REF!="sim",3,IF(#REF!="sim",2,IF(#REF!="sim",1,0))))) ->  | H78: =SUM(IF(#REF!="sim",4,IF(#REF!="sim",3,IF(#REF!="sim",2,IF(#REF!="sim",1,0))))) ->  | J78: =SUM(IF(#REF!="sim",4,IF(#REF!="sim",3,IF(#REF!="sim",2,IF(#REF!="sim",1,0))))) ->  | L78: =SUM(IF(#REF!="sim",4,IF(#REF!="sim",3,IF(#REF!="sim",2,IF(#REF!="sim",1,0))))) ->  | N78: =SUM(IF(#REF!="sim",4,IF(#REF!="sim",3,IF(#REF!="sim",2,IF(#REF!="sim",1,0))))) ->  | P78: =SUM(IF(#REF!="sim",4,IF(#REF!="sim",3,IF(#REF!="sim",2,IF(#REF!="sim",1,0))))) ->  | R78: =SUM(IF(#REF!="sim",4,IF(#REF!="sim",3,IF(#REF!="sim",2,IF(#REF!="sim",1,0))))) -> 
B79: =SUM(IF('1ª Etapa'!#REF!="sim",4,IF('1ª Etapa'!#REF!="sim",3,IF('1ª Etapa'!#REF!="sim",2,IF('1ª Etapa'!#REF!="sim",1,0))))) ->  | C79: =responsabilidade1+responsabilidade2 ->  | D79: =SUM(IF(#REF!="sim",4,IF(#REF!="sim",3,IF(#REF!="sim",2,IF(#REF!="sim",1,0))))) ->  | E79: =D79+D78 ->  | F79: =SUM(IF(#REF!="sim",4,IF(#REF!="sim",3,IF(#REF!="sim",2,IF(#REF!="sim",1,0))))) ->  | G79: =F79+F78 ->  | H79: =SUM(IF(#REF!="sim",4,IF(#REF!="sim",3,IF(#REF!="sim",2,IF(#REF!="sim",1,0))))) ->  | I79: =H79+H78 ->  | J79: =SUM(IF(#REF!="sim",4,IF(#REF!="sim",3,IF(#REF!="sim",2,IF(#REF!="sim",1,0))))) ->  | K79: =J79+J78 ->  | L79: =SUM(IF(#REF!="sim",4,IF(#REF!="sim",3,IF(#REF!="sim",2,IF(#REF!="sim",1,0))))) ->  | M79: =L79+L78 ->  | N79: =SUM(IF(#REF!="sim",4,IF(#REF!="sim",3,IF(#REF!="sim",2,IF(#REF!="sim",1,0))))) ->  | O79: =N79+N78 ->  | P79: =SUM(IF(#REF!="sim",4,IF(#REF!="sim",3,IF(#REF!="sim",2,IF(#REF!="sim",1,0))))) ->  | Q79: =P79+P78 ->  | R79: =SUM(IF(#REF!="sim",4,IF(#REF!="sim",3,IF(#REF!="sim",2,IF(#REF!="sim",1,0))))) ->  | S79: =R79+R78 -> 
A80: prod | B80: =SUM(IF('1ª Etapa'!#REF!="sim",4,IF('1ª Etapa'!#REF!="sim",3,IF('1ª Etapa'!#REF!="sim",2,IF('1ª Etapa'!#REF!="sim",1,0))))) ->  | D80: =SUM(IF(#REF!="sim",4,IF(#REF!="sim",3,IF(#REF!="sim",2,IF(#REF!="sim",1,0))))) ->  | F80: =SUM(IF(#REF!="sim",4,IF(#REF!="sim",3,IF(#REF!="sim",2,IF(#REF!="sim",1,0))))) ->  | H80: =SUM(IF(#REF!="sim",4,IF(#REF!="sim",3,IF(#REF!="sim",2,IF(#REF!="sim",1,0))))) ->  | J80: =SUM(IF(#REF!="sim",4,IF(#REF!="sim",3,IF(#REF!="sim",2,IF(#REF!="sim",1,0))))) ->  | L80: =SUM(IF(#REF!="sim",4,IF(#REF!="sim",3,IF(#REF!="sim",2,IF(#REF!="sim",1,0))))) ->  | N80: =SUM(IF(#REF!="sim",4,IF(#REF!="sim",3,IF(#REF!="sim",2,IF(#REF!="sim",1,0))))) ->  | P80: =SUM(IF(#REF!="sim",4,IF(#REF!="sim",3,IF(#REF!="sim",2,IF(#REF!="sim",1,0))))) ->  | R80: =SUM(IF(#REF!="sim",4,IF(#REF!="sim",3,IF(#REF!="sim",2,IF(#REF!="sim",1,0))))) -> 
B81: =SUM(IF('1ª Etapa'!#REF!="sim",4,IF('1ª Etapa'!#REF!="sim",3,IF('1ª Etapa'!#REF!="sim",2,IF('1ª Etapa'!#REF!="sim",1,0))))) ->  | C81: =P1_1ª+P2_1ª ->  | D81: =SUM(IF(#REF!="sim",4,IF(#REF!="sim",3,IF(#REF!="sim",2,IF(#REF!="sim",1,0))))) ->  | E81: =D80+D81 ->  | F81: =SUM(IF(#REF!="sim",4,IF(#REF!="sim",3,IF(#REF!="sim",2,IF(#REF!="sim",1,0))))) ->  | G81: =F80+F81 ->  | H81: =SUM(IF(#REF!="sim",4,IF(#REF!="sim",3,IF(#REF!="sim",2,IF(#REF!="sim",1,0))))) ->  | I81: =H80+H81 ->  | J81: =SUM(IF(#REF!="sim",4,IF(#REF!="sim",3,IF(#REF!="sim",2,IF(#REF!="sim",1,0))))) ->  | K81: =J80+J81 ->  | L81: =SUM(IF(#REF!="sim",4,IF(#REF!="sim",3,IF(#REF!="sim",2,IF(#REF!="sim",1,0))))) ->  | M81: =L80+L81 ->  | N81: =SUM(IF(#REF!="sim",4,IF(#REF!="sim",3,IF(#REF!="sim",2,IF(#REF!="sim",1,0))))) ->  | O81: =N80+N81 ->  | P81: =SUM(IF(#REF!="sim",4,IF(#REF!="sim",3,IF(#REF!="sim",2,IF(#REF!="sim",1,0))))) ->  | Q81: =P80+P81 ->  | R81: =SUM(IF(#REF!="sim",4,IF(#REF!="sim",3,IF(#REF!="sim",2,IF(#REF!="sim",1,0))))) ->  | S81: =R80+R81 -> 
A82: ass | B82: =SUM(IF('1ª Etapa'!#REF!="sim",4,IF('1ª Etapa'!#REF!="sim",3,IF('1ª Etapa'!#REF!="sim",2,IF('1ª Etapa'!#REF!="sim",1,0))))) ->  | D82: =SUM(IF(#REF!="sim",4,IF(#REF!="sim",3,IF(#REF!="sim",2,IF(#REF!="sim",1,0))))) ->  | F82: =SUM(IF(#REF!="sim",4,IF(#REF!="sim",3,IF(#REF!="sim",2,IF(#REF!="sim",1,0))))) ->  | H82: =SUM(IF(#REF!="sim",4,IF(#REF!="sim",3,IF(#REF!="sim",2,IF(#REF!="sim",1,0))))) ->  | J82: =SUM(IF(#REF!="sim",4,IF(#REF!="sim",3,IF(#REF!="sim",2,IF(#REF!="sim",1,0))))) ->  | L82: =SUM(IF(#REF!="sim",4,IF(#REF!="sim",3,IF(#REF!="sim",2,IF(#REF!="sim",1,0))))) ->  | N82: =SUM(IF(#REF!="sim",4,IF(#REF!="sim",3,IF(#REF!="sim",2,IF(#REF!="sim",1,0))))) ->  | P82: =SUM(IF(#REF!="sim",4,IF(#REF!="sim",3,IF(#REF!="sim",2,IF(#REF!="sim",1,0))))) ->  | R82: =SUM(IF(#REF!="sim",4,IF(#REF!="sim",3,IF(#REF!="sim",2,IF(#REF!="sim",1,0))))) -> 
B83: =SUM(IF('1ª Etapa'!#REF!="sim",4,IF('1ª Etapa'!#REF!="sim",3,IF('1ª Etapa'!#REF!="sim",2,IF('1ª Etapa'!#REF!="sim",1,0))))) ->  | C83: =ass1_1ª+ass2_1ª ->  | D83: =SUM(IF(#REF!="sim",4,IF(#REF!="sim",3,IF(#REF!="sim",2,IF(#REF!="sim",1,0))))) ->  | E83: =D82+D83 ->  | F83: =SUM(IF(#REF!="sim",4,IF(#REF!="sim",3,IF(#REF!="sim",2,IF(#REF!="sim",1,0))))) ->  | G83: =F82+F83 ->  | H83: =SUM(IF(#REF!="sim",4,IF(#REF!="sim",3,IF(#REF!="sim",2,IF(#REF!="sim",1,0))))) ->  | I83: =H82+H83 ->  | J83: =SUM(IF(#REF!="sim",4,IF(#REF!="sim",3,IF(#REF!="sim",2,IF(#REF!="sim",1,0))))) ->  | K83: =J82+J83 ->  | L83: =SUM(IF(#REF!="sim",4,IF(#REF!="sim",3,IF(#REF!="sim",2,IF(#REF!="sim",1,0))))) ->  | M83: =L82+L83 ->  | N83: =SUM(IF(#REF!="sim",4,IF(#REF!="sim",3,IF(#REF!="sim",2,IF(#REF!="sim",1,0))))) ->  | O83: =N82+N83 ->  | P83: =SUM(IF(#REF!="sim",4,IF(#REF!="sim",3,IF(#REF!="sim",2,IF(#REF!="sim",1,0))))) ->  | Q83: =P82+P83 ->  | R83: =SUM(IF(#REF!="sim",4,IF(#REF!="sim",3,IF(#REF!="sim",2,IF(#REF!="sim",1,0))))) ->  | S83: =R82+R83 -> 
B85: 1ª ETAPA | C85: 2ª ETAPA | D85: 3ª ETAPA | E85: 4ª ETAPA | F85: 5ª ETAPA | G85: 6ª ETAPA | H85: 7ª ETAPA | I85: 8ª ETAPA | J85: ÚLTIMA ETAPA | M85: 1ª ETAPA | N85: 2ª ETAPA | O85: 3ª ETAPA | P85: 4ª ETAPA | Q85: 5ª ETAPA | R85: 6ª ETAPA | S85: 7ª ETAPA | T85: 8ª ETAPA | U85: ÚLTIMA ETAPA
A86: DISCIPLINA | B86: =D1_TOTAL ->  | C86: =DISCIPLINA2ª ->  | D86: =G75 ->  | E86: =I75 ->  | F86: =K75 ->  | G86: =M75 ->  | H86: =O75 ->  | I86: =Q75 ->  | J86: =S75 ->  | L86: DISCIPLINA | M86: =B86 ->  | N86: =C86 ->  | V86: ASSIDUIDADE
B87: 1ª ETAPA | C87: 2ª ETAPA | D87: 3ª ETAPA | E87: 4ª ETAPA | F87: 5ª ETAPA | G87: 6ª ETAPA | H87: 7ª ETAPA | I87: 8ª ETAPA | J87: ÚLTIMA ETAPA | L87: EFICIÊNCIA | M87: =B88 ->  | N87: =C88 ->  | V87: PONTUALIDADE
A88: EFICIÊNCIA | B88: =E1_TOTAL ->  | C88: =EFICIÊNCIA2ª ->  | D88: =G77 ->  | E88: =I77 ->  | F88: =K77 ->  | G88: =M77 ->  | H88: =O77 ->  | I88: =Q77 ->  | J88: =S77 ->  | L88: RESPONSABILIDADE | M88: =B90 ->  | N88: =C90 ->  | V88: DISCIPLINA E SUBORDINAÇÃO
B89: 1ª ETAPA | C89: 2ª ETAPA | D89: 3ª ETAPA | E89: 4ª ETAPA | F89: 5ª ETAPA | G89: 6ª ETAPA | H89: 7ª ETAPA | I89: 8ª ETAPA | J89: ÚLTIMA ETAPA | L89: PRODUTIVIDADE | M89: =B92 ->  | N89: =C92 ->  | V89: QUALIDADE E PRODUTIVIDADE
A90: RESPONSABILIDADE | B90: =res_total ->  | C90: =RESPONSABILIDADE2ª ->  | D90: =G79 ->  | E90: =I79 ->  | F90: =K79 ->  | G90: =M79 ->  | H90: =O79 ->  | I90: =Q79 ->  | J90: =S79 ->  | L90: ASSIDUIDADE | M90: =B94 ->  | N90: =C94 ->  | V90: HABILIDADE E CONHECIMENTO
B91: 1ª ETAPA | C91: 2ª ETAPA | D91: 3ª ETAPA | E91: 4ª ETAPA | F91: 5ª ETAPA | G91: 6ª ETAPA | H91: 7ª ETAPA | I91: 8ª ETAPA | J91: ÚLTIMA ETAPA | V91: INICIATIVA E CRIATIVIDADE
A92: PRODUTIVIDADE | B92: =P1_TOTAL ->  | C92: =PRODUTIVIDADE2ª ->  | D92: =G81 ->  | E92: =I81 ->  | F92: =K81 ->  | G92: =M81 ->  | H92: =O81 ->  | I92: =Q81 ->  | J92: =S81 ->  | V92: RESPONSABILIDADE
B93: 1ª ETAPA | C93: 2ª ETAPA | D93: 3ª ETAPA | E93: 4ª ETAPA | F93: 5ª ETAPA | G93: 6ª ETAPA | H93: 7ª ETAPA | I93: 8ª ETAPA | J93: ÚLTIMA ETAPA | V93: COOPERAÇÃO E COLABORAÇÃO
A94: ASSIDUIDADE | B94: =a1_total ->  | C94: =ASSIDUIDADE2ª ->  | D94: =G83 ->  | E94: =I83 ->  | F94: =K83 ->  | G94: =M83 ->  | H94: =O83 ->  | I94: =Q83 ->  | J94: =S83 ->  | V94: INTERCOMUNICAÇÃO
V95: ATUALIZAÇÃO
E101: 1ª | F101: 2ª | G101: 3ª | H101: 4ª | I101: 5ª | J101: 6ª | K101: 7ª | L101: 8ª | M101: última
D102: 40
D103: 35
D104: 30
D105: 25
D106: 20
D107: 15
D108: 10
D109: 5
D110: 0
E112: DESEMPENHO GERAL | H112: DESEMPENHO INDIVIDUAL
D113: 1ª etapa | E113: =INÍCIO!I31 -> 69 | G113: ASSIDUIDADE | H113: =O143 -> 45
D114: 2ª etapa | E114: =INÍCIO!I32 -> 81.4 | G114: PONTUALIDADE | H114: 37
D115: 3ª etapa | E115: =INÍCIO!I33 -> 76.4 | G115: DISCIPLINA | H115: 40
D116: 4ª etapa | E116: =INÍCIO!I34 -> 50.8 | G116: INICIATIVA | H116: 47
D117: 5ª etapa | E117: =INÍCIO!I35 -> 58.4 | G117: PRODUTIVIDADE | H117: 43
D118: 6ª etapa | E118: =INÍCIO!I36 -> 79.6 | G118: RESPONSABILIDADE | H118: 40
D119: 7ª etapa | E119: =I140 ->  | G119: COMPORTAMENTO | H119: 50
D120: 8ª etapa | E120: =J140 ->  | G120: DESENVOLVIMENTO | H120: 30
D121: 9ª etapa | E121: =K140 -> 
D122: 10ª etapa | E122: =L140 -> 
D123: 11ª etapa | E123: =M140 -> 
D124: 12ª etapa | E124: =N140 -> 
B131: DESEMPENHO ESPECÍFICO | C131: 1ª etapa | D131: 2ª etapa | E131: 3ª Etapa | F131: 4ª Etapa | G131: 5ª Etapa | H131: 6ª Etapa | I131: 7ª Etapa | J131: 8ª Etapa | K131: 9ª Etapa | L131: 10ª Etapa | M131: 11ª Etapa | N131: 12ª Etapa
B132: ASSIDUIDADE | C132: ='1ª Etapa'!D193 -> 0.8 | D132: ='2ª Etapa'!D193 -> 0.8 | E132: ='3ª Etapa'!D193 -> 0.8 | F132: ='4ª Etapa'!D193 -> 0.8 | G132: ='5ª Etapa'!D193 -> 0.8 | H132: ='6ª Etapa'!D193 -> 0.8 | I132: ='7ª Etapa'!D194 ->  | J132: ='8ª Etapa'!D194 ->  | K132: ='9ª Etapa'!D194 ->  | L132: ='10ª Etapa'!D194 ->  | M132: ='11ª Etapa'!D194 ->  | N132: ='12ª Etapa'!D194 -> 
B133: PONTUALIDADE | C133: ='1ª Etapa'!D194 -> 0.8 | D133: ='2ª Etapa'!D194 -> 0.8 | E133: ='3ª Etapa'!D194 -> 0.8 | F133: ='4ª Etapa'!D194 -> 0.8 | G133: ='5ª Etapa'!D194 -> 0.8 | H133: ='6ª Etapa'!D194 -> 0.8 | I133: ='7ª Etapa'!D195 ->  | J133: ='8ª Etapa'!D195 ->  | K133: ='9ª Etapa'!D195 ->  | L133: ='10ª Etapa'!D195 ->  | M133: ='11ª Etapa'!D195 ->  | N133: ='12ª Etapa'!D195 -> 
B134: DISCIPLINA | C134: ='1ª Etapa'!D195 -> 1.4 | D134: ='2ª Etapa'!D195 -> 1.4 | E134: ='3ª Etapa'!D195 -> 1.4 | F134: ='4ª Etapa'!D195 -> 1.4 | G134: ='5ª Etapa'!D195 -> 1.4 | H134: ='6ª Etapa'!D195 -> 1.4 | I134: ='7ª Etapa'!D196 ->  | J134: ='8ª Etapa'!D196 ->  | K134: ='9ª Etapa'!D196 ->  | L134: ='10ª Etapa'!D196 ->  | M134: ='11ª Etapa'!D196 ->  | N134: ='12ª Etapa'!D196 -> 
B135: INICIATIVA | C135: ='1ª Etapa'!D196 -> 1.4 | D135: ='2ª Etapa'!D196 -> 1.4 | E135: ='3ª Etapa'!D196 -> 1.4 | F135: ='4ª Etapa'!D196 -> 1.4 | G135: ='5ª Etapa'!D196 -> 1.4 | H135: ='6ª Etapa'!D196 -> 1.4 | I135: ='7ª Etapa'!D197 ->  | J135: ='8ª Etapa'!D197 ->  | K135: ='9ª Etapa'!D197 ->  | L135: ='10ª Etapa'!D197 ->  | M135: ='11ª Etapa'!D197 ->  | N135: ='12ª Etapa'!D197 -> 
B136: PRODUTIVIDADE | C136: ='1ª Etapa'!D197 -> 1.4 | D136: ='2ª Etapa'!D197 -> 1.4 | E136: ='3ª Etapa'!D197 -> 1.4 | F136: ='4ª Etapa'!D197 -> 1.4 | G136: ='5ª Etapa'!D197 -> 1.4 | H136: ='6ª Etapa'!D197 -> 1.4 | I136: ='7ª Etapa'!D198 ->  | J136: ='8ª Etapa'!D198 ->  | K136: ='9ª Etapa'!D198 ->  | L136: ='10ª Etapa'!D198 ->  | M136: ='11ª Etapa'!D198 ->  | N136: ='12ª Etapa'!D198 -> 
B137: RESPONSABILIDADE | C137: ='1ª Etapa'!D198 -> 1.4 | D137: ='2ª Etapa'!D198 -> 1.4 | E137: ='3ª Etapa'!D198 -> 1.4 | F137: ='4ª Etapa'!D198 -> 1.4 | G137: ='5ª Etapa'!D198 -> 1.4 | H137: ='6ª Etapa'!D198 -> 1.4 | I137: ='7ª Etapa'!D199 ->  | J137: ='8ª Etapa'!D199 ->  | K137: ='9ª Etapa'!D199 ->  | L137: ='10ª Etapa'!D199 ->  | M137: ='11ª Etapa'!D199 ->  | N137: ='12ª Etapa'!D199 -> 
B138: COMPORTAMENTO | C138: ='1ª Etapa'!D199 -> 1.4 | D138: ='2ª Etapa'!D199 -> 1.4 | E138: ='3ª Etapa'!D199 -> 1.4 | F138: ='4ª Etapa'!D199 -> 1.4 | G138: ='5ª Etapa'!D199 -> 1.4 | H138: ='6ª Etapa'!D199 -> 1.4 | I138: ='7ª Etapa'!D200 ->  | J138: ='8ª Etapa'!D200 ->  | K138: ='9ª Etapa'!D200 ->  | L138: ='10ª Etapa'!D200 ->  | M138: ='11ª Etapa'!D200 ->  | N138: ='12ª Etapa'!D200 -> 
B139: DESENVOLVIMENTO | C139: ='1ª Etapa'!D200 -> 1.4 | D139: ='2ª Etapa'!D200 -> 1.4 | E139: ='3ª Etapa'!D200 -> 1.4 | F139: ='4ª Etapa'!D200 -> 1.4 | G139: ='5ª Etapa'!D200 -> 1.4 | H139: ='6ª Etapa'!D200 -> 1.4 | I139: ='7ª Etapa'!D201 ->  | J139: ='8ª Etapa'!D201 ->  | K139: ='9ª Etapa'!D201 ->  | L139: ='10ª Etapa'!D201 ->  | M139: ='11ª Etapa'!D201 ->  | N139: ='12ª Etapa'!D201 -> 
B140: NOTA | C140: ='1ª Etapa'!D201 -> 10 | D140: ='2ª Etapa'!D201 -> 10 | E140: ='3ª Etapa'!D201 -> 10 | F140: ='4ª Etapa'!D201 -> 10 | G140: ='5ª Etapa'!D201 -> 10 | H140: ='6ª Etapa'!D201 -> 10 | I140: ='7ª Etapa'!D202 ->  | J140: ='8ª Etapa'!D202 ->  | K140: ='9ª Etapa'!D202 ->  | L140: ='10ª Etapa'!D202 ->  | M140: ='11ª Etapa'!D202 ->  | N140: ='12ª Etapa'!D202 -> 
B142: PONTUAÇÃO | C142: 1ª etapa | D142: 2ª etapa | E142: 3ª Etapa | F142: 4ª Etapa | G142: 5ª Etapa | H142: 6ª Etapa | I142: 7ª Etapa | J142: 8ª Etapa | K142: 9ª Etapa | L142: 10ª Etapa | M142: 11ª Etapa | N142: 12ª Etapa | O142: total
B143: ASSIDUIDADE | C143: ='1ª Etapa'!C193 -> 9 | D143: ='2ª Etapa'!C193 -> 9 | E143: ='3ª Etapa'!C193 -> 10 | F143: ='4ª Etapa'!C193 -> 3 | G143: ='5ª Etapa'!C193 -> 5 | H143: ='6ª Etapa'!C193 -> 9 | I143: ='7ª Etapa'!C194 ->  | J143: ='8ª Etapa'!C194 ->  | K143: ='9ª Etapa'!C194 ->  | L143: ='10ª Etapa'!C194 ->  | M143: ='11ª Etapa'!C194 ->  | N143: ='12ª Etapa'!C194 ->  | O143: =SUM(C143:N143) -> 45
B144: PONTUALIDADE | C144: ='1ª Etapa'!C194 -> 9 | D144: ='2ª Etapa'!C194 -> 7 | E144: ='3ª Etapa'!C194 -> 5 | F144: ='4ª Etapa'!C194 -> 1 | G144: ='5ª Etapa'!C194 -> 5 | H144: ='6ª Etapa'!C194 -> 10 | I144: ='7ª Etapa'!C195 ->  | J144: ='8ª Etapa'!C195 ->  | K144: ='9ª Etapa'!C195 ->  | L144: ='10ª Etapa'!C195 ->  | M144: ='11ª Etapa'!C195 ->  | N144: ='12ª Etapa'!C195 ->  | O144: 37
B145: DISCIPLINA | C145: ='1ª Etapa'!C195 -> 5 | D145: ='2ª Etapa'!C195 -> 9 | E145: ='3ª Etapa'!C195 -> 5 | F145: ='4ª Etapa'!C195 -> 3 | G145: ='5ª Etapa'!C195 -> 9 | H145: ='6ª Etapa'!C195 -> 9 | I145: ='7ª Etapa'!C196 ->  | J145: ='8ª Etapa'!C196 ->  | K145: ='9ª Etapa'!C196 ->  | L145: ='10ª Etapa'!C196 ->  | M145: ='11ª Etapa'!C196 ->  | N145: ='12ª Etapa'!C196 ->  | O145: 40
B146: INICIATIVA | C146: ='1ª Etapa'!C196 -> 10 | D146: ='2ª Etapa'!C196 -> 9 | E146: ='3ª Etapa'!C196 -> 5 | F146: ='4ª Etapa'!C196 -> 9 | G146: ='5ª Etapa'!C196 -> 5 | H146: ='6ª Etapa'!C196 -> 9 | I146: ='7ª Etapa'!C197 ->  | J146: ='8ª Etapa'!C197 ->  | K146: ='9ª Etapa'!C197 ->  | L146: ='10ª Etapa'!C197 ->  | M146: ='11ª Etapa'!C197 ->  | N146: ='12ª Etapa'!C197 ->  | O146: 47
B147: PRODUTIVIDADE | C147: ='1ª Etapa'!C197 -> 7 | D147: ='2ª Etapa'!C197 -> 5 | E147: ='3ª Etapa'!C197 -> 10 | F147: ='4ª Etapa'!C197 -> 7 | G147: ='5ª Etapa'!C197 -> 7 | H147: ='6ª Etapa'!C197 -> 7 | I147: ='7ª Etapa'!C198 ->  | J147: ='8ª Etapa'!C198 ->  | K147: ='9ª Etapa'!C198 ->  | L147: ='10ª Etapa'!C198 ->  | M147: ='11ª Etapa'!C198 ->  | N147: ='12ª Etapa'!C198 ->  | O147: 43
B148: RESPONSABILIDADE | C148: ='1ª Etapa'!C198 -> 5 | D148: ='2ª Etapa'!C198 -> 9 | E148: ='3ª Etapa'!C198 -> 9 | F148: ='4ª Etapa'!C198 -> 5 | G148: ='5ª Etapa'!C198 -> 5 | H148: ='6ª Etapa'!C198 -> 7 | I148: ='7ª Etapa'!C199 ->  | J148: ='8ª Etapa'!C199 ->  | K148: ='9ª Etapa'!C199 ->  | L148: ='10ª Etapa'!C199 ->  | M148: ='11ª Etapa'!C199 ->  | N148: ='12ª Etapa'!C199 ->  | O148: 40
B149: COMPORTAMENTO | C149: ='1ª Etapa'!C199 -> 7 | D149: ='2ª Etapa'!C199 -> 10 | E149: ='3ª Etapa'!C199 -> 10 | F149: ='4ª Etapa'!C199 -> 7 | G149: ='5ª Etapa'!C199 -> 7 | H149: ='6ª Etapa'!C199 -> 9 | I149: ='7ª Etapa'!C200 ->  | J149: ='8ª Etapa'!C200 ->  | K149: ='9ª Etapa'!C200 ->  | L149: ='10ª Etapa'!C200 ->  | M149: ='11ª Etapa'!C200 ->  | N149: ='12ª Etapa'!C200 ->  | O149: 50
B150: DESENVOLVIMENTO | C150: ='1ª Etapa'!C200 -> 5 | D150: ='2ª Etapa'!C200 -> 7 | E150: ='3ª Etapa'!C200 -> 7 | F150: ='4ª Etapa'!C200 -> 3 | G150: ='5ª Etapa'!C200 -> 3 | H150: ='6ª Etapa'!C200 -> 5 | I150: ='7ª Etapa'!C201 ->  | J150: ='8ª Etapa'!C201 ->  | K150: ='9ª Etapa'!C201 ->  | L150: ='10ª Etapa'!C201 ->  | M150: ='11ª Etapa'!C201 ->  | N150: ='12ª Etapa'!C201 ->  | O150: 30
B151: NOTA
B155: DESEMPENHO ESPECÍFICO | C155: 1ª etapa | D155: 2ª etapa | E155: 3ª Etapa | F155: 4ª Etapa | G155: 5ª Etapa | H155: 6ª Etapa | I155: 7ª Etapa | J155: 8ª Etapa | K155: 9ª Etapa | L155: 10ª Etapa | M155: 11ª Etapa | N155: 12ª Etapa
B156: ASSIDUIDADE | C156: =C143 -> 9 | D156: =D143 -> 9 | E156: 10 | F156: 3 | G156: 5 | H156: 9
B157: DESEMPENHO ESPECÍFICO | C157: 1ª etapa | D157: 2ª etapa | E157: 3ª Etapa | F157: 4ª Etapa | G157: 5ª Etapa | H157: 6ª Etapa | I157: 7ª Etapa | J157: 8ª Etapa | K157: 9ª Etapa | L157: 10ª Etapa | M157: 11ª Etapa | N157: 12ª Etapa
B158: PONTUALIDADE | C158: =C144 -> 9 | D158: =D144 -> 7 | E158: 5 | F158: 1 | G158: 5 | H158: 10
B159: DESEMPENHO ESPECÍFICO | C159: 1ª etapa | D159: 2ª etapa | E159: 3ª Etapa | F159: 4ª Etapa | G159: 5ª Etapa | H159: 6ª Etapa | I159: 7ª Etapa | J159: 8ª Etapa | K159: 9ª Etapa | L159: 10ª Etapa | M159: 11ª Etapa | N159: 12ª Etapa
B160: DISCIPLINA | C160: =C145 -> 5 | D160: =D145 -> 9 | E160: 5 | F160: 3 | G160: 9 | H160: 9
B161: DESEMPENHO ESPECÍFICO | C161: 1ª etapa | D161: 2ª etapa | E161: 3ª Etapa | F161: 4ª Etapa | G161: 5ª Etapa | H161: 6ª Etapa | I161: 7ª Etapa | J161: 8ª Etapa | K161: 9ª Etapa | L161: 10ª Etapa | M161: 11ª Etapa | N161: 12ª Etapa
B162: INICIATIVA | C162: =C146 -> 10 | D162: =D146 -> 9 | E162: 5 | F162: 9 | G162: 5 | H162: 9
B163: DESEMPENHO ESPECÍFICO | C163: 1ª etapa | D163: 2ª etapa | E163: 3ª Etapa | F163: 4ª Etapa | G163: 5ª Etapa | H163: 6ª Etapa | I163: 7ª Etapa | J163: 8ª Etapa | K163: 9ª Etapa | L163: 10ª Etapa | M163: 11ª Etapa | N163: 12ª Etapa
B164: PRODUTIVIDADE | C164: =C147 -> 7 | D164: =D147 -> 5 | E164: 10 | F164: 7 | G164: 7 | H164: 7
B165: DESEMPENHO ESPECÍFICO | C165: 1ª etapa | D165: 2ª etapa | E165: 3ª Etapa | F165: 4ª Etapa | G165: 5ª Etapa | H165: 6ª Etapa | I165: 7ª Etapa | J165: 8ª Etapa | K165: 9ª Etapa | L165: 10ª Etapa | M165: 11ª Etapa | N165: 12ª Etapa
B166: RESPONSABILIDADE | C166: =C148 -> 5 | D166: =D148 -> 9 | E166: 9 | F166: 5 | G166: 5 | H166: 7
B167: DESEMPENHO ESPECÍFICO | C167: 1ª etapa | D167: 2ª etapa | E167: 3ª Etapa | F167: 4ª Etapa | G167: 5ª Etapa | H167: 6ª Etapa | I167: 7ª Etapa | J167: 8ª Etapa | K167: 9ª Etapa | L167: 10ª Etapa | M167: 11ª Etapa | N167: 12ª Etapa
B168: COMPORTAMENTO | C168: =C149 -> 7 | D168: =D149 -> 10 | E168: 10 | F168: 7 | G168: 7 | H168: 9
B169: DESEMPENHO ESPECÍFICO | C169: 1ª etapa | D169: 2ª etapa | E169: 3ª Etapa | F169: 4ª Etapa | G169: 5ª Etapa | H169: 6ª Etapa | I169: 7ª Etapa | J169: 8ª Etapa | K169: 9ª Etapa | L169: 10ª Etapa | M169: 11ª Etapa | N169: 12ª Etapa
B170: DESENVOLVIMENTO | C170: =C150 -> 5 | D170: =D150 -> 7 | E170: 7 | F170: 3 | G170: 3 | H170: 5
B176: pontuação fatores | C176: lista_bom
B177: 10
B178: 9 | C178: Atende
B179: 7 | C179: Não atende
B180: 5
B181: 3
B182: 1
B183: 0
A185: ASS | B185: Graduação_assiduidade | D185: ASS_O1 | E185: ASS_O2 | F185: ASS_O3 | G185: ASS_O4 | H185: ASS_O5 | I185: ASS_O6
B186: Sem ocorrências | D186: =ASS_O1 -> 1 ou 2 ocorrências | E186: =ASS_O2 -> 1 ou 2 ocorrências | F186: =ASS_O3 -> Sem ocorrências | G186: =ASS_O4 -> De 7 a 8 ocorrências | H186: =ASS_O5 -> De 5 a 6 ocorrências | I186: =ASS_O6 -> 1 ou 2 ocorrências
B187: 1 ou 2 ocorrências | D187: ASS_P1 | E187: ASS_P2 | F187: ASS_P3 | G187: ASS_P4 | H187: ASS_P5 | I187: ASS_P6
B188: De 3 a 4 ocorrências | D188: =ASS_P1 -> 9 | E188: =ASS_P2 -> 9 | F188: =ASS_P3 -> 10 | G188: =ASS_P4 -> 3 | H188: =ASS_P5 -> 5 | I188: =ASS_P6 -> 9
B189: De 5 a 6 ocorrências
B190: De 7 a 8 ocorrências
B191: De 9 a 10 ocorrências
B192: A partir de 11 ocorrências
A194: PON | B194: graduação_pontualidade | D194: PON_O1 | E194: PON_O2 | F194: PON_O3 | G194: PON_O4 | H194: PON_O5 | I194: PON_O6
B195: Sem ocorrências | D195: =PON_O1 -> Até 60 minutos | E195: =PON_O2 -> De 61 minutos até 240 minutos | F195: =PON_O3 -> De 241 minutos até 480 minutos | G195: =PON_O4 -> De 961 minutos até 1200 minutos | H195: =PON_O5 -> De 241 minutos até 480 minutos | I195: =PON_O6 -> Sem ocorrências
B196: Até 60 minutos | D196: PON_P1 | E196: PON_P2 | F196: PON_P3 | G196: PON_P4 | H196: PON_P5 | I196: PON_P6
B197: De 61 minutos até 240 minutos | D197: =PON_P1 -> 9 | E197: =PON_P2 -> 7 | F197: =PON_P3 -> 5 | G197: =PON_P4 -> 1 | H197: =PON_P5 -> 5 | I197: =PON_P6 -> 10
B198: De 241 minutos até 480 minutos
B199: De 481 minutos até 960 minutos
B200: De 961 minutos até 1200 minutos
B201: Superior a 1200 minutos
A203: DIS | B203: graduação_disciplina | C203: ocorrências_disciplina | D203: Dis_o1 | E203: Dis_o2 | F203: Dis_o3 | G203: Dis_o4 | H203: Dis_o5 | I203: Dis_o6
B204: Sem ocorrências | C204: 0 | D204: =SUM('1ª Etapa'!J38:J51) -> 7 | E204: =SUM('2ª Etapa'!J38:J51) -> 2 | F204: =SUM('3ª Etapa'!J38:J51) -> 7 | G204: =SUM('4ª Etapa'!J38:J51) -> 12 | H204: =SUM('5ª Etapa'!J38:J51) -> 2 | I204: =SUM('6ª Etapa'!J38:J51) -> 2
B205: 1 ou 2 ocorrências | C205: 1 | D205: DIS_P1 | E205: DIS_P2 | F205: DIS_P3 | G205: DIS_P4 | H205: DIS_P5 | I205: DIS_P6
B206: De 3 a 6 ocorrências | C206: 3 | D206: =DIS_P1 -> 5 | E206: =DIS_P2 -> 9 | F206: =DIS_P3 -> 5 | G206: =DIS_P4 -> 3 | H206: =DIS_P5 -> 9 | I206: =DIS_P6 -> 9
B207: De 7 a 10 ocorrências | C207: 7
B208: De 11 a 14 ocorrências | C208: 11
B209: De 15 a 18 ocorrências | C209: 15
B210: A partir de 19 ocorrências | C210: 19
A212: INI | B212: graduação_iniciativa | C212: ocorrências_iniciativa | D212: Ini_o1 | E212: Ini_o2 | F212: Ini_o3 | G212: Ini_o4 | H212: Ini_o5 | I212: Ini_o6
B213: Atende às expectativas em todos os fatores | C213: 0 | D213: =COUNTIF(INI_Q1,"não atende") -> 0 | E213: =COUNTIF(INI_Q2,"não atende") -> 1 | F213: =COUNTIF(INI_Q3,"não atende") -> 0 | G213: =COUNTIF(INI_Q4,"não atende") -> 1 | H213: =COUNTIF(INI_Q5,"não atende") -> 3 | I213: =COUNTIF(INI_Q6,"não atende") -> 1
B214: Atende às expectativas em 5 fatores | C214: 1 | D214: INI_P1 | E214: INI_P2 | F214: INI_P3 | G214: INI_P4 | H214: INI_P5 | I214: INI_P6
B215: Atende às expectativas em 4 fatores | C215: 2 | D215: =INI_P1 -> 10 | E215: =INI_P2 -> 9 | F215: =INI_P3 -> 5 | G215: =INI_P4 -> 9 | H215: =INI_P5 -> 5 | I215: =INI_P6 -> 9
B216: Atende às expectativas em 3 fatores | C216: 3
B217: Atende às expectativas em 2 fatores | C217: 4
B218: Atende às expectativas em 1 | C218: 5
B219: Não atende às expectativas | C219: 6
A221: PRO | B221: graduação_produtividade | C221: ocorrências_produtividade | D221: PRO_O1 | E221: PRO_O2 | F221: PRO_O3 | G221: PRO_O4 | H221: PRO_O5 | I221: PRO_O6
B222: Atende às expectativas em todos os fatores | C222: 0 | D222: =COUNTIF('1ª Etapa'!J91:J102,"não atende") -> 2 | E222: =COUNTIF('2ª Etapa'!J91:J102,"não atende") -> 3 | F222: =COUNTIF('3ª Etapa'!J91:J102,"não atende") -> 0 | G222: =COUNTIF('4ª Etapa'!J91:J102,"não atende") -> 2 | H222: =COUNTIF('5ª Etapa'!J91:J102,"não atende") -> 2 | I222: =COUNTIF('6ª Etapa'!J91:J102,"não atende") -> 2
B223: Atende às expectativas em 5 fatores | C223: 1 | D223: PRO_P1 | E223: PRO_P2 | F223: PRO_P3 | G223: PRO_P4 | H223: PRO_P5 | I223: PRO_P6
B224: Atende às expectativas em 4 fatores | C224: 2 | D224: =PRO_P1 -> 7 | E224: =PRO_P2 -> 5 | F224: =PRO_P3 -> 10 | G224: =PRO_P4 -> 7 | H224: =PRO_P5 -> 7 | I224: =PRO_P6 -> 7
B225: Atende às expectativas em 3 fatores | C225: 3
B226: Atende às expectativas em 2 fatores | C226: 4
B227: Atende às expectativas em 1 | C227: 5
B228: Não atende às expectativas | C228: 6
A230: RES | B230: graduação_responsabilidade | C230: ocorrências_responsabilidade | D230: RES_O1 | E230: RES_O2 | F230: RES_O3 | G230: RES_O4 | H230: RES_O5 | I230: RES_O6
B231: Atende às expectativas em todos os fatores | C231: 0 | D231: =COUNTIF('1ª Etapa'!J117:J128,"não atende") -> 3 | E231: =COUNTIF('2ª Etapa'!J117:J128,"não atende") -> 1 | F231: =COUNTIF('3ª Etapa'!J117:J128,"não atende") -> 1 | G231: =COUNTIF('4ª Etapa'!J117:J128,"não atende") -> 3 | H231: =COUNTIF('5ª Etapa'!J117:J128,"não atende") -> 3 | I231: =COUNTIF('6ª Etapa'!J117:J128,"não atende") -> 2
B232: Atende às expectativas em 5 fatores | C232: 1 | D232: RES_P1 | E232: RES_P2 | F232: RES_P3 | G232: RES_P4 | H232: RES_P5 | I232: RES_P6
B233: Atende às expectativas em 4 fatores | C233: 2 | D233: =RES_P1 -> 5 | E233: =RES_P2 -> 9 | F233: =RES_P3 -> 9 | G233: =RES_P4 -> 5 | H233: =RES_P5 -> 5 | I233: =RES_P6 -> 7
B234: Atende às expectativas em 3 fatores | C234: 3
B235: Atende às expectativas em 2 fatores | C235: 4
B236: Atende às expectativas em 1 | C236: 5
B237: Não atende às expectativas | C237: 6
A239: COM | B239: graduação_comportamento | C239: ocorrências_comportamento | D239: COM_O1 | E239: COM_O2 | F239: COM_O3 | G239: COM_O4 | H239: COM_O5 | I239: COM_O6
B240: Atende às expectativas em todos os fatores | C240: 0 | D240: =COUNTIF('1ª Etapa'!J143:J154,"não atende") -> 2 | E240: =COUNTIF('2ª Etapa'!J143:J154,"não atende") -> 0 | F240: =COUNTIF('3ª Etapa'!J143:J154,"não atende") -> 0 | G240: =COUNTIF('4ª Etapa'!J143:J154,"não atende") -> 2 | H240: =COUNTIF('5ª Etapa'!J143:J154,"não atende") -> 2 | I240: =COUNTIF('6ª Etapa'!J143:J154,"não atende") -> 1
B241: Atende às expectativas em 5 fatores | C241: 1 | D241: COM_P1 | E241: COM_P2 | F241: COM_P3 | G241: COM_P4 | H241: COM_P5 | I241: COM_P6
... 13 more rows

Sheet 1ª Etapa
A1: FICHA DE AVALIAÇÃO DE DESEMPENHO
A2: =IFERROR(CONCATENATE("1ª ETAPA: de ",DAY(L2),"/",MONTH(L2),"/",YEAR(L2)," a ",DAY(M2),"/",MONTH(M2),"/",YEAR(M2)),"") -> 1ª ETAPA: de 15/12/2012 a 17/6/2013 | L2: =EXERCÍCIO -> 2012-12-15 | M2: =data_1 -> 2013-06-17
A4: Empregado: | B4: =IF(nome_empregado="","",nome_empregado) -> Tício | F4: Início do Exercício: | H4: =IF(EXERCÍCIO="","",EXERCÍCIO) -> 2012-12-15 | I4: Matrícula: | J4: =IF(matrícula="","",matrícula) -> 0
A5: Cargo: | B5: =IF(CARGO="","",CARGO) -> Assistente | F5: Lotação: | I5: RG/CPF: | J5: =IF(rg="","",rg) -> 
A6: Avaliador: | F6: Função: | I6: Data: | J6: 2014-06-16
A8: FATORES DE DESEMPENHO
A10: ASSIDUIDADE | B10: Refere-se à frequência com que o Empregado comparece ao Trabalho. A ausência injustificada do local de trabalho acarretará redução da nota, sendo que serão computadas como ocorrências neste quesito as faltas superiores a 60 (sessenta) minutos, ocorridas num mesmo dia, conforme critérios estabelecidos:
B14: Relatório de ocorrências:
F20: Quantidade de ocorrências: | I20: Pontuação:
F21: 1 ou 2 ocorrências | I21: =IFERROR(IF(J6="","",INDEX(FATORES_PONT,MATCH(F21,Graduação_assiduidade,))),"") -> 9
A23: PONTUALIDADE | B23: Refere-se ao cumprimento do horário de trabalho estabelecido. Serão computados como ocorrência neste quesito os atrasos ou saídas antecipadas não superiores a 60 (sessenta) minutos, ocorridas num mesmo dia, sem justificativa e fora do previsto na CLT, conforme critérios estabelecidos:
B26: Relatório de ocorrências:
F32: Quantidade de ocorrências: | I32: Pontuação:
F33: Até 60 minutos | I33: =IFERROR(IF(J6="","",INDEX(FATORES_PONT,MATCH(F33,graduação_pontualidade,))),"") -> 9
A35: DISCIPLINA | B35: Refere-se ao cumprimento de normas internas do Conselho, como Regulamento de Pessoal, e respeito à hierarquia. São consideradas ocorrências:
B37: Situações: | J37: Quantidade:
B38: a) Alteração do horário de intervalo de almoço sem autorização prévia ou posterior justificativa aceita pelo superior imediato; | J38: 1
B40: b) Descumprimento do intervalo intrajornada mínimo de 60 minutos para os empregados com carga diária superior a 6 horas ou de 15 minutos para os empregados com carga diária entre 4 e 6 horas; | J40: 2
B42: c) Realização de horas extras sem autorização prévia ou posterior justificativa do superior imediato; | J42: 1
B44: d) Realização de compensação de jornada sem autorização prévia; | J44: 1
B46: e) Ausência da sede do Conselho, durante o expediente, sem comunicação ao superior imediato ou a outra pessoa de mesma hierarquia; | J46: 1
B48: f) Ocorrência de descumprimento do Regulamento de Pessoal; | J48: 1
B50: g) Ocorrência de descumprimento de orientações da chefia imediata ou desrespeito à hierarquia; | J50: 0
B53: Relatório de ocorrências:
E59: Graduação: | I59: Pontuação:
E60: =IF(COUNTA(DIS_Q1)=0,"",INDEX(graduação_disciplina,MATCH(DIS_O1,ocorrências_disciplina,1))) -> De 7 a 10 ocorrências | I60: =IFERROR(IF(J6="","",INDEX(FATORES_PONT,MATCH(E60,graduação_disciplina,))),"") -> 5
A62: INICIATIVA | B62: Refere-se ao comportamento proativo, com adoção de providências em situações não definidas pelo superior ou não previstas no(s) manual(is) de normas e procedimentos. São atitudes consideradas para a avaliação:
B65: Ocorrências: | J65: Avaliação:
B66: a) Busca atividades para ocupação do tempo, se houver momentos de baixa demanda; | J66: Atende
B68: b) Quando necessário, identifica atividades prioritárias com resolução pendente, atendendo ou auxiliando no atendimento dessas questõe | J68: Atende
B70: c) Contribui para a melhoria do trabalho, identificando problemas existentes e potenciais, apresentando ideias e propondo sugestões; | J70: Atende
B72: d) É participativo e demostra interesse e engajamento nas atividades de reuniões, capacitações, eventos, entre outros; | J72: Atende
B74: e) Demonstra iniciativa para resolver imprevistos, buscando soluções em situações adversas; | J74: Atende
B76: f) Demonstra receptividade e adaptabilidade frente à implantação de mudanças; | J76: Atende
B79: Relatório de ocorrências:
E85: Graduação: | I85: Pontuação:
E86: =IF(COUNTA(INI_Q1)=0,"",INDEX(graduação_iniciativa,MATCH(IF(INI_O1=7,6,INI_O1),ocorrências_iniciativa,))) -> Atende às expectativas em todos os fatores | I86: =IFERROR(IF(J6="","",INDEX(FATORES_PONT,MATCH(E86,graduação_iniciativa,))),"") -> 10
A88: PRODUTIVIDADE | B88: Refere-se à análise do volume e qualidade de trabalho conforme resultados esperados para o cargo. São atitudes consideradas para a avaliação:
B90: Atitudes: | J90: Avaliação:
B91: a) Realiza um volume de trabalho compatível com o esperado, considerando o histórico habitual; | J91: Atende
B93: b) Apresenta um trabalho com qualidade satisfatória, evitando retrabalhos; | J93: Não atende
B95: c) Cumpre os prazos estabelecidos, entregando as tarefas sob a sua responsabilidade no tempo previsto, evitando acúmulos nas demandas; | J95: Atende
B97: d) Estrutura e sistematiza as atividades para melhor utilização dos recursos. Estabelece prioridades e organiza suas atividades; | J97: Não atende
B99: e) Desempenha os procedimentos e atividades com eficiência e técnicas adequadas; | J99: Atende
B101: f) Executa suas tarefas com foco e equilíbrio, evitando distrações e dispersões; | J101: Atende
B104: Relatório de ocorrências:
E110: Graduação: | I110: Pontuação:
E111: =IF(COUNTA(PRO_Q1)=0,"",INDEX(graduação_produtividade,MATCH(PRO_O1,ocorrências_produtividade,))) -> Atende às expectativas em 4 fatores | I111: =IFERROR(IF(J6="","",INDEX(FATORES_PONT,MATCH(E111,graduação_produtividade,))),"") -> 7
A113: RESPONSABILIDADE | B113: Refere-se à análise quanto ao comprometimento com as tarefas delegadas, o grau de segurança que transmite aos superiores e zelo pelos recursos disponibilizados. São atitudes consideradas para a avaliação:
B116: Atitudes: | J116: Avaliação:
B117: a) Colabora com a conservação do patrimônio público e utilização dos materiais; | J117: Atende
B119: b) Diante de questões além de sua competência, realiza o encaminhamento interno necessário, possibilitando continuidade no atendimento e na resolução adequados; | J119: Não atende
B121: c) Avisa ao superior sobre situações adversas relacionadas ao andamento do trabalho. | J121: Não atende
B123: d) Demonstra organização e planejamento no cumprimento de suas atividades; | J123: Não atende
B125: e) Apresenta autonomia nas decisões relativas às funções desenvolvidas, demonstrando comprometimento com o trabalho; | J125: Atende
B127: f) Transmite segurança no desempenho de suas funções, cumprindo suas tarefas de acordo com as instruções recebidas; | J127: Atende
B130: Relatório de ocorrências:
E136: Graduação: | I136: Pontuação:
E137: =IF(COUNTA(RES_Q1)=0,"",INDEX(graduação_responsabilidade,MATCH(RES_O1,ocorrências_responsabilidade,))) -> Atende às expectativas em 3 fatores | I137: =IFERROR(IF(J6="","",INDEX(FATORES_PONT,MATCH(E137,graduação_responsabilidade,))),"") -> 5
A139: COMPORTAMENTO | B139: Refere-se à postura e sigilo sobre assuntos reservados e confidenciais , ao comportamento e conhecimento disciplinar e ético. São atitudes consideradas para a avaliação:
B142: Atitudes: | J142: Avaliação:
B143: a) Trata informações e documentos com o grau de reserva ou sigilo necessários; | J143: Atende
B145: b) Atua com ética e profissionalismo, demonstrando postura equilibrada e adequada ao ambiente de trabalho; | J145: Atende
B147: c) É receptivo em relação aos apontamentos e sugestões de melhoria feitas acerca de sua postura e desempenho do trabalho; | J147: Atende
B149: d) Trata a todos de forma solícita, gentil e respeitosa; | J149: Não atende
B151: e) Difunde conhecimentos, ideias, soluções e boas práticas; | J151: Não atende
B153: f) Contribui para um melhor ambiente de trabalho, apresentando um bom relacionamento interpessoal e harmonia na convivência com os diversos perfis profissionais e pessoais, e em situações adversas. | J153: Atende
B156: Relatório de ocorrências:
E162: Graduação: | I162: Pontuação:
E163: =IF(COUNTA(COM_Q1)=0,"",INDEX(graduação_comportamento,MATCH(COM_O1,ocorrências_comportamento,))) -> Atende às expectativas em 4 fatores | I163: =IFERROR(IF(J6="","",INDEX(FATORES_PONT,MATCH(E163,graduação_comportamento,))),"") -> 7
A165: DESENVOLVIMENTO | B165: Refere-se à análise quanto a potencialidade para aprendizagem e aplicação do conhecimento. São atitudes consideradas para a avaliação:
B167: Atitudes: | J167: Avaliação:
B168: a) Tem domínio sobre as atividades, normativas, procedimentos e processos da área em que atua, assegurando corretas orientações para a sua equipe e sociedade; | J168: Atende
B170: b) Demonstra interesse em absorver novos conhecimentos e no treinamento para novas tarefas, procedimentos e processos; | J170: Atende
B172: c) Comunica-se de forma clara e eficiente, atentando para a qualidade da linguagem e da informação transmitida; | J172: Não atende
B174: d) Busca aperfeiçoamento no exercício de suas atribuições, atualizando-se continuamente no que diz respeito aos dispositivos legais e habilidades específicas necessários ao desenvolvimento de suas atividades; | J174: Atende
B176: e) Demonstra senso crítico em relação às tarefas de rotina, buscando o aperfeiçoamento técnico e lógico dos procedimentos realizados; | J176: Não atende
B178: f) Desempenha suas atividades com atenção, demonstrando conhecimento e memória de trabalho. | J178: Não atende
B181: Relatório de ocorrências:
E187: Graduação: | I187: Pontuação:
E188: =IF(COUNTA(DES_Q1)=0,"",INDEX(GRADUAÇÃ0_DESENVOLVIMENTO,MATCH(DES_O1,ocorrências_DESENVOLVIMENTO,))) -> Atende às expectativas em 3 fatores | I188: =IFERROR(IF(J6="","",INDEX(FATORES_PONT,MATCH(E188,GRADUAÇÃ0_DESENVOLVIMENTO,))),"") -> 5
A190: GRADUAÇÕES
A192: FATORES | C192: PONTUAÇÃO | D192: PESO | E192: NOTA | G192: CONCEITOS
A193: ASSIDUIDADE | C193: =I21 -> 9 | D193: 0.8 | E193: =IFERROR(C193*D193,"") -> 7.2 | G193: Insatisfatório | H193: até 29,9 | I193: Desempenho ruim.
A194: PONTUALIDADE | C194: =I33 -> 9 | D194: 0.8 | E194: 7.2 | G194: Regular | H194: 30 a 49,9 | I194: Desempenho abaixo da média.
A195: DISCIPLINA | C195: =I60 -> 5 | D195: 1.4 | E195: 7 | G195: Bom | H195: 50 a 69,9 | I195: Desempenho satisfaz.
A196: INICIATIVA | C196: =I86 -> 10 | D196: 1.4 | E196: 14 | G196: Muito bom | H196: 70 a 89,9 | I196: Desempenho acima da média.
A197: PRODUTIVIDADE | C197: =I111 -> 7 | D197: 1.4 | E197: 9.8 | G197: Excelente | H197: 90 a 100 | I197: Desempenho exemplar.
A198: RESPONSABILIDADE | C198: =I137 -> 5 | D198: 1.4 | E198: 7
A199: COMPORTAMENTO | C199: =I163 -> 7 | D199: 1.4 | E199: 9.8 | G199: Resultado: | I199: Conceito:
A200: DESENVOLVIMENTO | C200: =I188 -> 5 | D200: 1.4 | E200: 7 | G200: =E201 -> 69 | I200: =IF(G200="","",IF(E201>mbom,G197,IF(E201>bom,G196,IF(E201>reg,G195,IF(E201>insat,G194,IF(E201>=0,G193,"")))))) -> Bom
C201: TOTAIS: | D201: =IF(SUM(D193:D200)=0,"",SUM(D193:D200)) -> 10 | E201: =IF(SUM(E193:E200)=0,"",SUM(E193:E200)) -> 69
A203: PARECER DO AVALIADOR
B215: Ciente do conteúdo da avaliação.
B216: =IFERROR(CONCATENATE("Porto Alegre, ",dataav_1),"") -> Porto Alegre, dia 16 de junho de 2014.
C220: =IF(nome_empregado="","",nome_empregado) -> Tício | H220: =IF(B6="","",B6) -> 
C221: AVALIADO | H221: AVALIADOR

Sheet 2ª Etapa
A1: FICHA DE AVALIAÇÃO DE DESEMPENHO
A2: =IFERROR(CONCATENATE("2ª ETAPA: de ",DAY(L2),"/",MONTH(L2),"/",YEAR(L2)," a ",DAY(M2),"/",MONTH(M2),"/",YEAR(M2)),"") -> 2ª ETAPA: de 18/6/2013 a 16/12/2013 | L2: =data_1+1 -> 2013-06-18 | M2: =data_2 -> 2013-12-16
A4: Empregado: | B4: =IF(nome_empregado="","",nome_empregado) -> Tício | F4: Início do Exercício: | H4: =IF(EXERCÍCIO="","",EXERCÍCIO) -> 2012-12-15 | I4: Matrícula: | J4: =IF(matrícula="","",matrícula) -> 0
A5: Cargo: | B5: =IF(CARGO="","",CARGO) -> Assistente | F5: Lotação: | I5: RG/CPF: | J5: =IF(rg="","",rg) -> 
A6: Avaliador: | F6: Função: | I6: Data: | J6: 2017-05-15
A8: FATORES DE DESEMPENHO
A10: ASSIDUIDADE | B10: Refere-se à frequência com que o Empregado comparece ao Trabalho. A ausência injustificada do local de trabalho acarretará redução da nota, sendo que serão computadas como ocorrências neste quesito as faltas superiores a 60 (sessenta) minutos, ocorridas num mesmo dia, conforme critérios estabelecidos:
B14: Relatório de ocorrências:
F20: Quantidade de ocorrências: | I20: Pontuação:
F21: 1 ou 2 ocorrências | I21: =IFERROR(IF(J6="","",INDEX(FATORES_PONT,MATCH(F21,Graduação_assiduidade,))),"") -> 9
A23: PONTUALIDADE | B23: Refere-se ao cumprimento do horário de trabalho estabelecido. Serão computados como ocorrência neste quesito os atrasos ou saídas antecipadas não superiores a 60 (sessenta) minutos, ocorridas num mesmo dia, sem justificativa e fora do previsto na CLT, conforme critérios estabelecidos:
B26: Relatório de ocorrências:
F32: Quantidade de ocorrências: | I32: Pontuação:
F33: De 61 minutos até 240 minutos | I33: =IFERROR(IF(J6="","",INDEX(FATORES_PONT,MATCH(F33,graduação_pontualidade,))),"") -> 7
A35: DISCIPLINA | B35: Refere-se ao cumprimento de normas internas do Conselho, como Regulamento de Pessoal, e respeito à hierarquia. São consideradas ocorrências:
B37: Situações: | J37: Quantidade:
B38: a) Alteração do horário de intervalo de almoço sem autorização prévia ou posterior justificativa aceita pelo superior imediato; | J38: 1
B40: b) Descumprimento do intervalo intrajornada mínimo de 60 minutos para os empregados com carga diária superior a 6 horas ou de 15 minutos para os empregados com carga diária entre 4 e 6 horas;
B42: c) Realização de horas extras sem autorização prévia ou posterior justificativa do superior imediato; | J42: 0
B44: d) Realização de compensação de jornada sem autorização prévia; | J44: 0
B46: e) Ausência da sede do Conselho, durante o expediente, sem comunicação ao superior imediato ou a outra pessoa de mesma hierarquia; | J46: 0
B48: f) Ocorrência de descumprimento do Regulamento de Pessoal; | J48: 0
B50: g) Ocorrência de descumprimento de orientações da chefia imediata ou desrespeito à hierarquia; | J50: 1
B53: Relatório de ocorrências:
E59: Graduação: | I59: Pontuação:
E60: =IF(COUNTA(DIS_Q2)=0,"",INDEX(graduação_disciplina,MATCH(DIS_O2,ocorrências_disciplina,1))) -> 1 ou 2 ocorrências | I60: =IFERROR(IF(J6="","",INDEX(FATORES_PONT,MATCH(E60,graduação_disciplina,))),"") -> 9
A62: INICIATIVA | B62: Refere-se ao comportamento proativo, com adoção de providências em situações não definidas pelo superior ou não previstas no(s) manual(is) de normas e procedimentos. São atitudes consideradas para a avaliação:
B65: Ocorrências: | J65: Avaliação:
B66: a) Busca atividades para ocupação do tempo, se houver momentos de baixa demanda; | J66: Atende
B68: b) Quando necessário, identifica atividades prioritárias com resolução pendente, atendendo ou auxiliando no atendimento dessas questõe | J68: Atende
B70: c) Contribui para a melhoria do trabalho, identificando problemas existentes e potenciais, apresentando ideias e propondo sugestões; | J70: Atende
B72: d) É participativo e demostra interesse e engajamento nas atividades de reuniões, capacitações, eventos, entre outros; | J72: Atende
B74: e) Demonstra iniciativa para resolver imprevistos, buscando soluções em situações adversas; | J74: Não atende
B76: f) Demonstra receptividade e adaptabilidade frente à implantação de mudanças; | J76: Atende
B79: Relatório de ocorrências:
E85: Graduação: | I85: Pontuação:
E86: =IF(COUNTA(INI_Q2)=0,"",INDEX(graduação_iniciativa,MATCH(IF(INI_O2=7,6,INI_O2),ocorrências_iniciativa,))) -> Atende às expectativas em 5 fatores | I86: =IFERROR(IF(J6="","",INDEX(FATORES_PONT,MATCH(E86,graduação_iniciativa,-11))),"") -> 9
A88: PRODUTIVIDADE | B88: Refere-se à análise do volume e qualidade de trabalho conforme resultados esperados para o cargo. São atitudes consideradas para a avaliação:
B90: Atitudes: | J90: Avaliação:
B91: a) Realiza um volume de trabalho compatível com o esperado, considerando o histórico habitual; | J91: Não atende
B93: b) Apresenta um trabalho com qualidade satisfatória, evitando retrabalhos; | J93: Não atende
B95: c) Cumpre os prazos estabelecidos, entregando as tarefas sob a sua responsabilidade no tempo previsto, evitando acúmulos nas demandas; | J95: Atende
B97: d) Estrutura e sistematiza as atividades para melhor utilização dos recursos. Estabelece prioridades e organiza suas atividades; | J97: Atende
B99: e) Desempenha os procedimentos e atividades com eficiência e técnicas adequadas; | J99: Não atende
B101: f) Executa suas tarefas com foco e equilíbrio, evitando distrações e dispersões; | J101: Atende
B104: Relatório de ocorrências:
E110: Graduação: | I110: Pontuação:
E111: =IF(COUNTA(PRO_Q2)=0,"",INDEX(graduação_produtividade,MATCH(PRO_O2,ocorrências_produtividade,))) -> Atende às expectativas em 3 fatores | I111: =IFERROR(IF(J6="","",INDEX(FATORES_PONT,MATCH(E111,graduação_produtividade,))),"") -> 5
A113: RESPONSABILIDADE | B113: Refere-se à análise quanto ao comprometimento com as tarefas delegadas, o grau de segurança que transmite aos superiores e zelo pelos recursos disponibilizados. São atitudes consideradas para a avaliação:
B116: Atitudes: | J116: Avaliação:
B117: a) Colabora com a conservação do patrimônio público e utilização dos materiais; | J117: Atende
B119: b) Diante de questões além de sua competência, realiza o encaminhamento interno necessário, possibilitando continuidade no atendimento e na resolução adequados; | J119: Atende
B121: c) Avisa ao superior sobre situações adversas relacionadas ao andamento do trabalho. | J121: Atende
B123: d) Demonstra organização e planejamento no cumprimento de suas atividades; | J123: Não atende
B125: e) Apresenta autonomia nas decisões relativas às funções desenvolvidas, demonstrando comprometimento com o trabalho; | J125: Atende
B127: f) Transmite segurança no desempenho de suas funções, cumprindo suas tarefas de acordo com as instruções recebidas; | J127: Atende
B130: Relatório de ocorrências:
E136: Graduação: | I136: Pontuação:
E137: =IF(COUNTA(RES_Q2)=0,"",INDEX(graduação_responsabilidade,MATCH(RES_O2,ocorrências_responsabilidade,))) -> Atende às expectativas em 5 fatores | I137: =IFERROR(IF(J6="","",INDEX(FATORES_PONT,MATCH(E137,graduação_responsabilidade,))),"") -> 9
A139: COMPORTAMENTO | B139: Refere-se à postura e sigilo sobre assuntos reservados e confidenciais , ao comportamento e conhecimento disciplinar e ético. São atitudes consideradas para a avaliação:
B142: Atitudes: | J142: Avaliação:
B143: a) Trata informações e documentos com o grau de reserva ou sigilo necessários; | J143: Atende
B145: b) Atua com ética e profissionalismo, demonstrando postura equilibrada e adequada ao ambiente de trabalho; | J145: Atende
B147: c) É receptivo em relação aos apontamentos e sugestões de melhoria feitas acerca de sua postura e desempenho do trabalho; | J147: Atende
B149: d) Trata a todos de forma solícita, gentil e respeitosa; | J149: Atende
B151: e) Difunde conhecimentos, ideias, soluções e boas práticas; | J151: Atende
B153: f) Contribui para um melhor ambiente de trabalho, apresentando um bom relacionamento interpessoal e harmonia na convivência com os diversos perfis profissionais e pessoais, e em situações adversas. | J153: Atende
B156: Relatório de ocorrências:
E162: Graduação: | I162: Pontuação:
E163: =IF(COUNTA(COM_Q2)=0,"",INDEX(graduação_comportamento,MATCH(COM_O2,ocorrências_comportamento,))) -> Atende às expectativas em todos os fatores | I163: =IFERROR(IF(J6="","",INDEX(FATORES_PONT,MATCH(E163,graduação_comportamento,))),"") -> 10
A165: DESENVOLVIMENTO | B165: Refere-se à análise quanto a potencialidade para aprendizagem e aplicação do conhecimento. São atitudes consideradas para a avaliação:
B167: Atitudes: | J167: Avaliação:
B168: a) Tem domínio sobre as atividades, normativas, procedimentos e processos da área em que atua, assegurando corretas orientações para a sua equipe e sociedade; | J168: Atende
B170: b) Demonstra interesse em absorver novos conhecimentos e no treinamento para novas tarefas, procedimentos e processos; | J170: Atende
B172: c) Comunica-se de forma clara e eficiente, atentando para a qualidade da linguagem e da informação transmitida; | J172: Atende
B174: d) Busca aperfeiçoamento no exercício de suas atribuições, atualizando-se continuamente no que diz respeito aos dispositivos legais e habilidades específicas necessários ao desenvolvimento de suas atividades; | J174: Atende
B176: e) Demonstra senso crítico em relação às tarefas de rotina, buscando o aperfeiçoamento técnico e lógico dos procedimentos realizados; | J176: Não atende
B178: f) Desempenha suas atividades com atenção, demonstrando conhecimento e memória de trabalho. | J178: Não atende
B181: Relatório de ocorrências:
E187: Graduação: | I187: Pontuação:
E188: =IF(COUNTA(DES_Q2)=0,"",INDEX(GRADUAÇÃ0_DESENVOLVIMENTO,MATCH(DES_O2,ocorrências_DESENVOLVIMENTO,))) -> Atende às expectativas em 4 fatores | I188: =IFERROR(IF(J6="","",INDEX(FATORES_PONT,MATCH(E188,GRADUAÇÃ0_DESENVOLVIMENTO,))),"") -> 7
A190: GRADUAÇÕES
A192: FATORES | C192: PONTUAÇÃO | D192: PESO | E192: NOTA | G192: CONCEITOS
A193: ASSIDUIDADE | C193: =I21 -> 9 | D193: 0.8 | E193: =IFERROR(C193*D193,"") -> 7.2 | G193: Insatisfatório | H193: até 29,9 | I193: Desempenho ruim.
A194: PONTUALIDADE | C194: =I33 -> 7 | D194: 0.8 | E194: 5.6 | G194: Regular | H194: 30 a 49,9 | I194: Desempenho abaixo da média.
A195: DISCIPLINA | C195: =I60 -> 9 | D195: 1.4 | E195: 12.6 | G195: Bom | H195: 50 a 69,9 | I195: Desempenho satisfaz.
A196: INICIATIVA | C196: =I86 -> 9 | D196: 1.4 | E196: 12.6 | G196: Muito bom | H196: 70 a 89,9 | I196: Desempenho acima da média.
A197: PRODUTIVIDADE | C197: =I111 -> 5 | D197: 1.4 | E197: 7 | G197: Excelente | H197: 90 a 100 | I197: Desempenho exemplar.
A198: RESPONSABILIDADE | C198: =I137 -> 9 | D198: 1.4 | E198: 12.6
A199: COMPORTAMENTO | C199: =I163 -> 10 | D199: 1.4 | E199: 14 | G199: Resultado: | I199: Conceito:
A200: DESENVOLVIMENTO | C200: =I188 -> 7 | D200: 1.4 | E200: 9.8 | G200: =E201 -> 81.4 | I200: =IF(G200="","",IF(E201>mbom,G197,IF(E201>bom,G196,IF(E201>reg,G195,IF(E201>insat,G194,IF(E201>=0,G193,"")))))) -> Muito bom
C201: TOTAIS: | D201: =IF(SUM(D193:D200)=0,"",SUM(D193:D200)) -> 10 | E201: =IF(SUM(E193:E200)=0,"",SUM(E193:E200)) -> 81.4
A203: PARECER DO AVALIADOR
B215: Ciente do conteúdo da avaliação.
B216: =IFERROR(CONCATENATE("Porto Alegre, ",dataav_2),"") -> Porto Alegre, dia 15 de maio de 2017.
C220: =IF(nome_empregado="","",nome_empregado) -> Tício | H220: =IF(B6="","",B6) -> 
C221: AVALIADO | H221: AVALIADOR

Sheet 3ª Etapa
A1: FICHA DE AVALIAÇÃO DE DESEMPENHO
A2: =IFERROR(CONCATENATE("3ª ETAPA: de ",DAY(L2),"/",MONTH(L2),"/",YEAR(L2)," a ",DAY(M2),"/",MONTH(M2),"/",YEAR(M2)),"") -> 3ª ETAPA: de 17/12/2013 a 16/6/2014 | L2: =data_2+1 -> 2013-12-17 | M2: =data_3 -> 2014-06-16
A4: Empregado: | B4: =IF(nome_empregado="","",nome_empregado) -> Tício | F4: Início do Exercício: | H4: =IF(EXERCÍCIO="","",EXERCÍCIO) -> 2012-12-15 | I4: Matrícula: | J4: =IF(matrícula="","",matrícula) -> 0
A5: Cargo: | B5: =IF(CARGO="","",CARGO) -> Assistente | F5: Lotação: | I5: RG/CPF: | J5: =IF(rg="","",rg) -> 
A6: Avaliador: | F6: Função: | I6: Data: | J6: 2017-04-01
A8: FATORES DE DESEMPENHO
A10: ASSIDUIDADE | B10: Refere-se à frequência com que o Empregado comparece ao Trabalho. A ausência injustificada do local de trabalho acarretará redução da nota, sendo que serão computadas como ocorrências neste quesito as faltas superiores a 60 (sessenta) minutos, ocorridas num mesmo dia, conforme critérios estabelecidos:
B14: Relatório de ocorrências:
F20: Quantidade de ocorrências: | I20: Pontuação:
F21: Sem ocorrências | I21: =IFERROR(IF(J6="","",INDEX(FATORES_PONT,MATCH(F21,Graduação_assiduidade,))),"") -> 10
A23: PONTUALIDADE | B23: Refere-se ao cumprimento do horário de trabalho estabelecido. Serão computados como ocorrência neste quesito os atrasos ou saídas antecipadas não superiores a 60 (sessenta) minutos, ocorridas num mesmo dia, sem justificativa e fora do previsto na CLT, conforme critérios estabelecidos:
B26: Relatório de ocorrências:
F32: Quantidade de ocorrências: | I32: Pontuação:
F33: De 241 minutos até 480 minutos | I33: =IFERROR(IF(J6="","",INDEX(FATORES_PONT,MATCH(F33,graduação_pontualidade,))),"") -> 5
A35: DISCIPLINA | B35: Refere-se ao cumprimento de normas internas do Conselho, como Regulamento de Pessoal, e respeito à hierarquia. São consideradas ocorrências:
B37: Situações: | J37: Quantidade:
B38: a) Alteração do horário de intervalo de almoço sem autorização prévia ou posterior justificativa aceita pelo superior imediato; | J38: 1
B40: b) Descumprimento do intervalo intrajornada mínimo de 60 minutos para os empregados com carga diária superior a 6 horas ou de 15 minutos para os empregados com carga diária entre 4 e 6 horas; | J40: 1
B42: c) Realização de horas extras sem autorização prévia ou posterior justificativa do superior imediato; | J42: 1
B44: d) Realização de compensação de jornada sem autorização prévia; | J44: 1
B46: e) Ausência da sede do Conselho, durante o expediente, sem comunicação ao superior imediato ou a outra pessoa de mesma hierarquia; | J46: 1
B48: f) Ocorrência de descumprimento do Regulamento de Pessoal; | J48: 1
B50: g) Ocorrência de descumprimento de orientações da chefia imediata ou desrespeito à hierarquia; | J50: 1
B53: Relatório de ocorrências:
E59: Graduação: | I59: Pontuação:
E60: =IF(COUNTA(DIS_Q3)=0,"",INDEX(graduação_disciplina,MATCH(DIS_O3,ocorrências_disciplina,1))) -> De 7 a 10 ocorrências | I60: =IFERROR(IF(J6="","",INDEX(FATORES_PONT,MATCH(E60,graduação_disciplina,))),"") -> 5
A62: INICIATIVA | B62: Refere-se ao comportamento proativo, com adoção de providências em situações não definidas pelo superior ou não previstas no(s) manual(is) de normas e procedimentos. São atitudes consideradas para a avaliação:
B65: Ocorrências: | J65: Avaliação:
B66: a) Busca atividades para ocupação do tempo, se houver momentos de baixa demanda; | J66: Atende
B68: b) Quando necessário, identifica atividades prioritárias com resolução pendente, atendendo ou auxiliando no atendimento dessas questõe | J68: Atende
B70: c) Contribui para a melhoria do trabalho, identificando problemas existentes e potenciais, apresentando ideias e propondo sugestões; | J70: Atende
B72: d) É participativo e demostra interesse e engajamento nas atividades de reuniões, capacitações, eventos, entre outros; | J72: Atende
B74: e) Demonstra iniciativa para resolver imprevistos, buscando soluções em situações adversas; | J74: Atende
B76: f) Demonstra receptividade e adaptabilidade frente à implantação de mudanças; | J76: Atende
B79: Relatório de ocorrências:
E85: Graduação: | I85: Pontuação:
E86: =IF(COUNTA(DIS_Q3)=0,"",INDEX(graduação_disciplina,MATCH(DIS_O3,ocorrências_disciplina,1))) -> De 7 a 10 ocorrências | I86: =IFERROR(IF(J6="","",INDEX(FATORES_PONT,MATCH(E86,graduação_disciplina,))),"") -> 5
A88: PRODUTIVIDADE | B88: Refere-se à análise do volume e qualidade de trabalho conforme resultados esperados para o cargo. São atitudes consideradas para a avaliação:
B90: Atitudes: | J90: Avaliação:
B91: a) Realiza um volume de trabalho compatível com o esperado, considerando o histórico habitual; | J91: Atende
B93: b) Apresenta um trabalho com qualidade satisfatória, evitando retrabalhos; | J93: Atende
B95: c) Cumpre os prazos estabelecidos, entregando as tarefas sob a sua responsabilidade no tempo previsto, evitando acúmulos nas demandas; | J95: Atende
B97: d) Estrutura e sistematiza as atividades para melhor utilização dos recursos. Estabelece prioridades e organiza suas atividades; | J97: Atende
B99: e) Desempenha os procedimentos e atividades com eficiência e técnicas adequadas; | J99: Atende
B101: f) Executa suas tarefas com foco e equilíbrio, evitando distrações e dispersões; | J101: Atende
B104: Relatório de ocorrências:
E110: Graduação: | I110: Pontuação:
E111: =IF(COUNTA(PRO_Q3)=0,"",INDEX(graduação_produtividade,MATCH(PRO_O3,ocorrências_produtividade,))) -> Atende às expectativas em todos os fatores | I111: =IFERROR(IF(J6="","",INDEX(FATORES_PONT,MATCH(E111,graduação_produtividade,))),"") -> 10
A113: RESPONSABILIDADE | B113: Refere-se à análise quanto ao comprometimento com as tarefas delegadas, o grau de segurança que transmite aos superiores e zelo pelos recursos disponibilizados. São atitudes consideradas para a avaliação:
B116: Atitudes: | J116: Avaliação:
B117: a) Colabora com a conservação do patrimônio público e utilização dos materiais; | J117: Atende
B119: b) Diante de questões além de sua competência, realiza o encaminhamento interno necessário, possibilitando continuidade no atendimento e na resolução adequados; | J119: Atende
B121: c) Avisa ao superior sobre situações adversas relacionadas ao andamento do trabalho. | J121: Atende
B123: d) Demonstra organização e planejamento no cumprimento de suas atividades; | J123: Não atende
B125: e) Apresenta autonomia nas decisões relativas às funções desenvolvidas, demonstrando comprometimento com o trabalho; | J125: Atende
B127: f) Transmite segurança no desempenho de suas funções, cumprindo suas tarefas de acordo com as instruções recebidas; | J127: Atende
B130: Relatório de ocorrências:
E136: Graduação: | I136: Pontuação:
E137: =IF(COUNTA(RES_Q3)=0,"",INDEX(graduação_responsabilidade,MATCH(RES_O3,ocorrências_responsabilidade,))) -> Atende às expectativas em 5 fatores | I137: =IFERROR(IF(J6="","",INDEX(FATORES_PONT,MATCH(E137,graduação_responsabilidade,))),"") -> 9
A139: COMPORTAMENTO | B139: Refere-se à postura e sigilo sobre assuntos reservados e confidenciais , ao comportamento e conhecimento disciplinar e ético. São atitudes consideradas para a avaliação:
B142: Atitudes: | J142: Avaliação:
B143: a) Trata informações e documentos com o grau de reserva ou sigilo necessários; | J143: Atende
B145: b) Atua com ética e profissionalismo, demonstrando postura equilibrada e adequada ao ambiente de trabalho; | J145: Atende
B147: c) É receptivo em relação aos apontamentos e sugestões de melhoria feitas acerca de sua postura e desempenho do trabalho; | J147: Atende
B149: d) Trata a todos de forma solícita, gentil e respeitosa; | J149: Atende
B151: e) Difunde conhecimentos, ideias, soluções e boas práticas; | J151: Atende
B153: f) Contribui para um melhor ambiente de trabalho, apresentando um bom relacionamento interpessoal e harmonia na convivência com os diversos perfis profissionais e pessoais, e em situações adversas. | J153: Atende
B156: Relatório de ocorrências:
E162: Graduação: | I162: Pontuação:
E163: =IF(COUNTA(COM_Q3)=0,"",INDEX(graduação_comportamento,MATCH(COM_O3,ocorrências_comportamento,))) -> Atende às expectativas em todos os fatores | I163: =IFERROR(IF(J6="","",INDEX(FATORES_PONT,MATCH(E163,graduação_comportamento,))),"") -> 10
A165: DESENVOLVIMENTO | B165: Refere-se à análise quanto a potencialidade para aprendizagem e aplicação do conhecimento. São atitudes consideradas para a avaliação:
B167: Atitudes: | J167: Avaliação:
B168: a) Tem domínio sobre as atividades, normativas, procedimentos e processos da área em que atua, assegurando corretas orientações para a sua equipe e sociedade; | J168: Atende
B170: b) Demonstra interesse em absorver novos conhecimentos e no treinamento para novas tarefas, procedimentos e processos; | J170: Atende
B172: c) Comunica-se de forma clara e eficiente, atentando para a qualidade da linguagem e da informação transmitida; | J172: Não atende
B174: d) Busca aperfeiçoamento no exercício de suas atribuições, atualizando-se continuamente no que diz respeito aos dispositivos legais e habilidades específicas necessários ao desenvolvimento de suas atividades; | J174: Atende
B176: e) Demonstra senso crítico em relação às tarefas de rotina, buscando o aperfeiçoamento técnico e lógico dos procedimentos realizados; | J176: Atende
B178: f) Desempenha suas atividades com atenção, demonstrando conhecimento e memória de trabalho. | J178: Não atende
B181: Relatório de ocorrências:
E187: Graduação: | I187: Pontuação:
E188: =IF(COUNTA(DES_Q3)=0,"",INDEX(GRADUAÇÃ0_DESENVOLVIMENTO,MATCH(DES_O3,ocorrências_DESENVOLVIMENTO,))) -> Atende às expectativas em 4 fatores | I188: =IFERROR(IF(J6="","",INDEX(FATORES_PONT,MATCH(E188,GRADUAÇÃ0_DESENVOLVIMENTO,))),"") -> 7
A190: GRADUAÇÕES
A192: FATORES | C192: PONTUAÇÃO | D192: PESO | E192: NOTA | G192: CONCEITOS
A193: ASSIDUIDADE | C193: =I21 -> 10 | D193: 0.8 | E193: =IFERROR(C193*D193,"") -> 8 | G193: Insatisfatório | H193: até 29,9 | I193: Desempenho ruim.
A194: PONTUALIDADE | C194: =I33 -> 5 | D194: 0.8 | E194: 4 | G194: Regular | H194: 30 a 49,9 | I194: Desempenho abaixo da média.
A195: DISCIPLINA | C195: =I60 -> 5 | D195: 1.4 | E195: 7 | G195: Bom | H195: 50 a 69,9 | I195: Desempenho satisfaz.
A196: INICIATIVA | C196: =I86 -> 5 | D196: 1.4 | E196: 7 | G196: Muito bom | H196: 70 a 89,9 | I196: Desempenho acima da média.
A197: PRODUTIVIDADE | C197: =I111 -> 10 | D197: 1.4 | E197: 14 | G197: Excelente | H197: 90 a 100 | I197: Desempenho exemplar.
A198: RESPONSABILIDADE | C198: =I137 -> 9 | D198: 1.4 | E198: 12.6
A199: COMPORTAMENTO | C199: =I163 -> 10 | D199: 1.4 | E199: 14 | G199: Resultado: | I199: Conceito:
A200: DESENVOLVIMENTO | C200: =I188 -> 7 | D200: 1.4 | E200: 9.8 | G200: =E201 -> 76.4 | I200: =IF(G200="","",IF(E201>mbom,G197,IF(E201>bom,G196,IF(E201>reg,G195,IF(E201>insat,G194,IF(E201>=0,G193,"")))))) -> Muito bom
C201: TOTAIS: | D201: =IF(SUM(D193:D200)=0,"",SUM(D193:D200)) -> 10 | E201: =IF(SUM(E193:E200)=0,"",SUM(E193:E200)) -> 76.4
A203: PARECER DO AVALIADOR
B215: Ciente do conteúdo da avaliação.
B216: =IFERROR(CONCATENATE("Porto Alegre, ",dataav_3),"") -> Porto Alegre, dia 1 de abril de 2017.
C220: =IF(nome_empregado="","",nome_empregado) -> Tício | H220: =IF(B6="","",B6) -> 
C221: AVALIADO | H221: AVALIADOR

Sheet 4ª Etapa
A1: FICHA DE AVALIAÇÃO DE DESEMPENHO
A2: =IFERROR(CONCATENATE("4ª ETAPA: de ",DAY(L2),"/",MONTH(L2),"/",YEAR(L2)," a ",DAY(M2),"/",MONTH(M2),"/",YEAR(M2)),"") -> 4ª ETAPA: de 17/6/2014 a 15/12/2014 | L2: =data_3+1 -> 2014-06-17 | M2: =data_4 -> 2014-12-15
A4: Empregado: | B4: =IF(nome_empregado="","",nome_empregado) -> Tício | F4: Início do Exercício: | H4: =IF(EXERCÍCIO="","",EXERCÍCIO) -> 2012-12-15 | I4: Matrícula: | J4: =IF(matrícula="","",matrícula) -> 0
A5: Cargo: | B5: =IF(CARGO="","",CARGO) -> Assistente | F5: Lotação: | I5: RG/CPF: | J5: =IF(rg="","",rg) -> 
A6: Avaliador: | F6: Função: | I6: Data: | J6: 2018-06-13
A8: FATORES DE DESEMPENHO
A10: ASSIDUIDADE | B10: Refere-se à frequência com que o Empregado comparece ao Trabalho. A ausência injustificada do local de trabalho acarretará redução da nota, sendo que serão computadas como ocorrências neste quesito as faltas superiores a 60 (sessenta) minutos, ocorridas num mesmo dia, conforme critérios estabelecidos:
B14: Relatório de ocorrências:
F20: Quantidade de ocorrências: | I20: Pontuação:
F21: De 7 a 8 ocorrências | I21: =IFERROR(IF(J6="","",INDEX(FATORES_PONT,MATCH(F21,Graduação_assiduidade,))),"") -> 3
A23: PONTUALIDADE | B23: Refere-se ao cumprimento do horário de trabalho estabelecido. Serão computados como ocorrência neste quesito os atrasos ou saídas antecipadas não superiores a 60 (sessenta) minutos, ocorridas num mesmo dia, sem justificativa e fora do previsto na CLT, conforme critérios estabelecidos:
B26: Relatório de ocorrências:
F32: Quantidade de ocorrências: | I32: Pontuação:
F33: De 961 minutos até 1200 minutos | I33: =IFERROR(IF(J6="","",INDEX(FATORES_PONT,MATCH(F33,graduação_pontualidade,))),"") -> 1
A35: DISCIPLINA | B35: Refere-se ao cumprimento de normas internas do Conselho, como Regulamento de Pessoal, e respeito à hierarquia. São consideradas ocorrências:
B37: Situações: | J37: Quantidade:
B38: a) Alteração do horário de intervalo de almoço sem autorização prévia ou posterior justificativa aceita pelo superior imediato; | J38: 1
B40: b) Descumprimento do intervalo intrajornada mínimo de 60 minutos para os empregados com carga diária superior a 6 horas ou de 15 minutos para os empregados com carga diária entre 4 e 6 horas; | J40: 1
B42: c) Realização de horas extras sem autorização prévia ou posterior justificativa do superior imediato; | J42: 6
B44: d) Realização de compensação de jornada sem autorização prévia; | J44: 1
B46: e) Ausência da sede do Conselho, durante o expediente, sem comunicação ao superior imediato ou a outra pessoa de mesma hierarquia; | J46: 1
B48: f) Ocorrência de descumprimento do Regulamento de Pessoal; | J48: 1
B50: g) Ocorrência de descumprimento de orientações da chefia imediata ou desrespeito à hierarquia; | J50: 1
B53: Relatório de ocorrências:
E59: Graduação: | I59: Pontuação:
E60: =IF(COUNTA(DIS_Q4)=0,"",INDEX(graduação_disciplina,MATCH(DIS_O4,ocorrências_disciplina,1))) -> De 11 a 14 ocorrências | I60: =IFERROR(IF(J6="","",INDEX(FATORES_PONT,MATCH(E60,graduação_disciplina,))),"") -> 3
A62: INICIATIVA | B62: Refere-se ao comportamento proativo, com adoção de providências em situações não definidas pelo superior ou não previstas no(s) manual(is) de normas e procedimentos. São atitudes consideradas para a avaliação:
B65: Ocorrências: | J65: Avaliação:
B66: a) Busca atividades para ocupação do tempo, se houver momentos de baixa demanda; | J66: Atende
B68: b) Quando necessário, identifica atividades prioritárias com resolução pendente, atendendo ou auxiliando no atendimento dessas questõe | J68: Atende
B70: c) Contribui para a melhoria do trabalho, identificando problemas existentes e potenciais, apresentando ideias e propondo sugestões; | J70: Não atende
B72: d) É participativo e demostra interesse e engajamento nas atividades de reuniões, capacitações, eventos, entre outros; | J72: Atende
B74: e) Demonstra iniciativa para resolver imprevistos, buscando soluções em situações adversas; | J74: Atende
B76: f) Demonstra receptividade e adaptabilidade frente à implantação de mudanças; | J76: Atende
B79: Relatório de ocorrências:
E85: Graduação: | I85: Pontuação:
E86: =IF(COUNTA(INI_Q4)=0,"",INDEX(graduação_iniciativa,MATCH(IF(INI_O4=7,6,INI_O4),ocorrências_iniciativa,))) -> Atende às expectativas em 5 fatores | I86: =IFERROR(IF(J6="","",INDEX(FATORES_PONT,MATCH(E86,graduação_iniciativa,))),"") -> 9
A88: PRODUTIVIDADE | B88: Refere-se à análise do volume e qualidade de trabalho conforme resultados esperados para o cargo. São atitudes consideradas para a avaliação:
B90: Atitudes: | J90: Avaliação:
B91: a) Realiza um volume de trabalho compatível com o esperado, considerando o histórico habitual; | J91: Atende
B93: b) Apresenta um trabalho com qualidade satisfatória, evitando retrabalhos; | J93: Não atende
B95: c) Cumpre os prazos estabelecidos, entregando as tarefas sob a sua responsabilidade no tempo previsto, evitando acúmulos nas demandas; | J95: Não atende
B97: d) Estrutura e sistematiza as atividades para melhor utilização dos recursos. Estabelece prioridades e organiza suas atividades; | J97: Atende
B99: e) Desempenha os procedimentos e atividades com eficiência e técnicas adequadas; | J99: Atende
B101: f) Executa suas tarefas com foco e equilíbrio, evitando distrações e dispersões; | J101: Atende
B104: Relatório de ocorrências:
E110: Graduação: | I110: Pontuação:
E111: =IF(COUNTA(PRO_Q4)=0,"",INDEX(graduação_produtividade,MATCH(PRO_O4,ocorrências_produtividade,))) -> Atende às expectativas em 4 fatores | I111: =IFERROR(IF(J6="","",INDEX(FATORES_PONT,MATCH(E111,graduação_produtividade,))),"") -> 7
A113: RESPONSABILIDADE | B113: Refere-se à análise quanto ao comprometimento com as tarefas delegadas, o grau de segurança que transmite aos superiores e zelo pelos recursos disponibilizados. São atitudes consideradas para a avaliação:
B116: Atitudes: | J116: Avaliação:
B117: a) Colabora com a conservação do patrimônio público e utilização dos materiais; | J117: Atende
B119: b) Diante de questões além de sua competência, realiza o encaminhamento interno necessário, possibilitando continuidade no atendimento e na resolução adequados; | J119: Atende
B121: c) Avisa ao superior sobre situações adversas relacionadas ao andamento do trabalho. | J121: Não atende
B123: d) Demonstra organização e planejamento no cumprimento de suas atividades; | J123: Não atende
B125: e) Apresenta autonomia nas decisões relativas às funções desenvolvidas, demonstrando comprometimento com o trabalho; | J125: Não atende
B127: f) Transmite segurança no desempenho de suas funções, cumprindo suas tarefas de acordo com as instruções recebidas; | J127: Atende
B130: Relatório de ocorrências:
E136: Graduação: | I136: Pontuação:
E137: =IF(COUNTA(RES_Q4)=0,"",INDEX(graduação_responsabilidade,MATCH(RES_O4,ocorrências_responsabilidade,))) -> Atende às expectativas em 3 fatores | I137: =IFERROR(IF(J6="","",INDEX(FATORES_PONT,MATCH(E137,graduação_responsabilidade,))),"") -> 5
A139: COMPORTAMENTO | B139: Refere-se à postura e sigilo sobre assuntos reservados e confidenciais , ao comportamento e conhecimento disciplinar e ético. São atitudes consideradas para a avaliação:
B142: Atitudes: | J142: Avaliação:
B143: a) Trata informações e documentos com o grau de reserva ou sigilo necessários; | J143: Atende
B145: b) Atua com ética e profissionalismo, demonstrando postura equilibrada e adequada ao ambiente de trabalho; | J145: Atende
B147: c) É receptivo em relação aos apontamentos e sugestões de melhoria feitas acerca de sua postura e desempenho do trabalho; | J147: Atende
B149: d) Trata a todos de forma solícita, gentil e respeitosa; | J149: Não atende
B151: e) Difunde conhecimentos, ideias, soluções e boas práticas; | J151: Não atende
B153: f) Contribui para um melhor ambiente de trabalho, apresentando um bom relacionamento interpessoal e harmonia na convivência com os diversos perfis profissionais e pessoais, e em situações adversas. | J153: Atende
B156: Relatório de ocorrências:
E162: Graduação: | I162: Pontuação:
E163: =IF(COUNTA(COM_Q4)=0,"",INDEX(graduação_comportamento,MATCH(COM_O4,ocorrências_comportamento,))) -> Atende às expectativas em 4 fatores | I163: =IFERROR(IF(J6="","",INDEX(FATORES_PONT,MATCH(E163,graduação_comportamento,))),"") -> 7
A165: DESENVOLVIMENTO | B165: Refere-se à análise quanto a potencialidade para aprendizagem e aplicação do conhecimento. São atitudes consideradas para a avaliação:
B167: Atitudes: | J167: Avaliação:
B168: a) Tem domínio sobre as atividades, normativas, procedimentos e processos da área em que atua, assegurando corretas orientações para a sua equipe e sociedade; | J168: Atende
B170: b) Demonstra interesse em absorver novos conhecimentos e no treinamento para novas tarefas, procedimentos e processos; | J170: Atende
B172: c) Comunica-se de forma clara e eficiente, atentando para a qualidade da linguagem e da informação transmitida; | J172: Não atende
B174: d) Busca aperfeiçoamento no exercício de suas atribuições, atualizando-se continuamente no que diz respeito aos dispositivos legais e habilidades específicas necessários ao desenvolvimento de suas atividades; | J174: Não atende
B176: e) Demonstra senso crítico em relação às tarefas de rotina, buscando o aperfeiçoamento técnico e lógico dos procedimentos realizados; | J176: Não atende
B178: f) Desempenha suas atividades com atenção, demonstrando conhecimento e memória de trabalho. | J178: Não atende
B181: Relatório de ocorrências:
E187: Graduação: | I187: Pontuação:
E188: =IF(COUNTA(DES_Q4)=0,"",INDEX(GRADUAÇÃ0_DESENVOLVIMENTO,MATCH(DES_O4,ocorrências_DESENVOLVIMENTO,))) -> Atende às expectativas em 2 fatores | I188: =IFERROR(IF(J6="","",INDEX(FATORES_PONT,MATCH(E188,GRADUAÇÃ0_DESENVOLVIMENTO,))),"") -> 3
A190: GRADUAÇÕES
A192: FATORES | C192: PONTUAÇÃO | D192: PESO | E192: NOTA | G192: CONCEITOS
A193: ASSIDUIDADE | C193: =I21 -> 3 | D193: 0.8 | E193: =IFERROR(C193*D193,"") -> 2.4 | G193: Insatisfatório | H193: até 29,9 | I193: Desempenho ruim.
A194: PONTUALIDADE | C194: =I33 -> 1 | D194: 0.8 | E194: 0.8 | G194: Regular | H194: 30 a 49,9 | I194: Desempenho abaixo da média.
A195: DISCIPLINA | C195: =I60 -> 3 | D195: 1.4 | E195: 4.2 | G195: Bom | H195: 50 a 69,9 | I195: Desempenho satisfaz.
A196: INICIATIVA | C196: =I86 -> 9 | D196: 1.4 | E196: 12.6 | G196: Muito bom | H196: 70 a 89,9 | I196: Desempenho acima da média.
A197: PRODUTIVIDADE | C197: =I111 -> 7 | D197: 1.4 | E197: 9.8 | G197: Excelente | H197: 90 a 100 | I197: Desempenho exemplar.
A198: RESPONSABILIDADE | C198: =I137 -> 5 | D198: 1.4 | E198: 7
A199: COMPORTAMENTO | C199: =I163 -> 7 | D199: 1.4 | E199: 9.8 | G199: Resultado: | I199: Conceito:
A200: DESENVOLVIMENTO | C200: =I188 -> 3 | D200: 1.4 | E200: 4.2 | G200: =E201 -> 50.8 | I200: =IF(G200="","",IF(E201>mbom,G197,IF(E201>bom,G196,IF(E201>reg,G195,IF(E201>insat,G194,IF(E201>=0,G193,"")))))) -> Bom
C201: TOTAIS: | D201: =IF(SUM(D193:D200)=0,"",SUM(D193:D200)) -> 10 | E201: =IF(SUM(E193:E200)=0,"",SUM(E193:E200)) -> 50.8
A203: PARECER DO AVALIADOR
B215: Ciente do conteúdo da avaliação.
B216: =IFERROR(CONCATENATE("Porto Alegre, ",dataav_4),"") -> Porto Alegre, dia 13 de junho de 2018.
C220: =IF(nome_empregado="","",nome_empregado) -> Tício | H220: =IF(B6="","",B6) -> 
C221: AVALIADO | H221: AVALIADOR

Sheet 5ª Etapa
A1: FICHA DE AVALIAÇÃO DE DESEMPENHO
A2: =IFERROR(CONCATENATE("5ª ETAPA: de ",DAY(L2),"/",MONTH(L2),"/",YEAR(L2)," a ",DAY(M2),"/",MONTH(M2),"/",YEAR(M2)),"") -> 5ª ETAPA: de 16/12/2014 a 15/6/2015 | L2: =data_4+1 -> 2014-12-16 | M2: =data_5 -> 2015-06-15
A4: Empregado: | B4: =IF(nome_empregado="","",nome_empregado) -> Tício | F4: Início do Exercício: | H4: =IF(EXERCÍCIO="","",EXERCÍCIO) -> 2012-12-15 | I4: Matrícula: | J4: =IF(matrícula="","",matrícula) -> 0
A5: Cargo: | B5: =IF(CARGO="","",CARGO) -> Assistente | F5: Lotação: | I5: RG/CPF: | J5: =IF(rg="","",rg) -> 
A6: Avaliador: | F6: Função: | I6: Data: | J6: 2017-05-01
A8: FATORES DE DESEMPENHO
A10: ASSIDUIDADE | B10: Refere-se à frequência com que o Empregado comparece ao Trabalho. A ausência injustificada do local de trabalho acarretará redução da nota, sendo que serão computadas como ocorrências neste quesito as faltas superiores a 60 (sessenta) minutos, ocorridas num mesmo dia, conforme critérios estabelecidos:
B14: Relatório de ocorrências:
F20: Quantidade de ocorrências: | I20: Pontuação:
F21: De 5 a 6 ocorrências | I21: =IFERROR(IF(J6="","",INDEX(FATORES_PONT,MATCH(F21,Graduação_assiduidade,))),"") -> 5
A23: PONTUALIDADE | B23: Refere-se ao cumprimento do horário de trabalho estabelecido. Serão computados como ocorrência neste quesito os atrasos ou saídas antecipadas não superiores a 60 (sessenta) minutos, ocorridas num mesmo dia, sem justificativa e fora do previsto na CLT, conforme critérios estabelecidos:
B26: Relatório de ocorrências:
F32: Quantidade de ocorrências: | I32: Pontuação:
F33: De 241 minutos até 480 minutos | I33: =IFERROR(IF(J6="","",INDEX(FATORES_PONT,MATCH(F33,graduação_pontualidade,))),"") -> 5
A35: DISCIPLINA | B35: Refere-se ao cumprimento de normas internas do Conselho, como Regulamento de Pessoal, e respeito à hierarquia. São consideradas ocorrências:
B37: Situações: | J37: Quantidade:
B38: a) Alteração do horário de intervalo de almoço sem autorização prévia ou posterior justificativa aceita pelo superior imediato; | J38: 0
B40: b) Descumprimento do intervalo intrajornada mínimo de 60 minutos para os empregados com carga diária superior a 6 horas ou de 15 minutos para os empregados com carga diária entre 4 e 6 horas;
B42: c) Realização de horas extras sem autorização prévia ou posterior justificativa do superior imediato;
B44: d) Realização de compensação de jornada sem autorização prévia;
B46: e) Ausência da sede do Conselho, durante o expediente, sem comunicação ao superior imediato ou a outra pessoa de mesma hierarquia;
B48: f) Ocorrência de descumprimento do Regulamento de Pessoal; | J48: 1
B50: g) Ocorrência de descumprimento de orientações da chefia imediata ou desrespeito à hierarquia; | J50: 1
B53: Relatório de ocorrências:
E59: Graduação: | I59: Pontuação:
E60: =IF(COUNTA(DIS_Q5)=0,"",INDEX(graduação_disciplina,MATCH(DIS_O5,ocorrências_disciplina,1))) -> 1 ou 2 ocorrências | I60: =IFERROR(IF(J6="","",INDEX(FATORES_PONT,MATCH(E60,graduação_disciplina,))),"") -> 9
A62: INICIATIVA | B62: Refere-se ao comportamento proativo, com adoção de providências em situações não definidas pelo superior ou não previstas no(s) manual(is) de normas e procedimentos. São atitudes consideradas para a avaliação:
B65: Ocorrências: | J65: Avaliação:
B66: a) Busca atividades para ocupação do tempo, se houver momentos de baixa demanda; | J66: Atende
B68: b) Quando necessário, identifica atividades prioritárias com resolução pendente, atendendo ou auxiliando no atendimento dessas questõe | J68: Não atende
B70: c) Contribui para a melhoria do trabalho, identificando problemas existentes e potenciais, apresentando ideias e propondo sugestões; | J70: Não atende
B72: d) É participativo e demostra interesse e engajamento nas atividades de reuniões, capacitações, eventos, entre outros; | J72: Não atende
B74: e) Demonstra iniciativa para resolver imprevistos, buscando soluções em situações adversas; | J74: Atende
B76: f) Demonstra receptividade e adaptabilidade frente à implantação de mudanças; | J76: Atende
B79: Relatório de ocorrências:
E85: Graduação: | I85: Pontuação:
E86: =IF(COUNTA(INI_Q5)=0,"",INDEX(graduação_iniciativa,MATCH(IF(INI_O5=7,6,INI_O5),ocorrências_iniciativa,))) -> Atende às expectativas em 3 fatores | I86: =IFERROR(IF(J6="","",INDEX(FATORES_PONT,MATCH(E86,graduação_iniciativa,))),"") -> 5
A88: PRODUTIVIDADE | B88: Refere-se à análise do volume e qualidade de trabalho conforme resultados esperados para o cargo. São atitudes consideradas para a avaliação:
B90: Atitudes: | J90: Avaliação:
B91: a) Realiza um volume de trabalho compatível com o esperado, considerando o histórico habitual; | J91: Atende
B93: b) Apresenta um trabalho com qualidade satisfatória, evitando retrabalhos; | J93: Não atende
B95: c) Cumpre os prazos estabelecidos, entregando as tarefas sob a sua responsabilidade no tempo previsto, evitando acúmulos nas demandas; | J95: Não atende
B97: d) Estrutura e sistematiza as atividades para melhor utilização dos recursos. Estabelece prioridades e organiza suas atividades; | J97: Atende
B99: e) Desempenha os procedimentos e atividades com eficiência e técnicas adequadas; | J99: Atende
B101: f) Executa suas tarefas com foco e equilíbrio, evitando distrações e dispersões; | J101: Atende
B104: Relatório de ocorrências:
E110: Graduação: | I110: Pontuação:
E111: =IF(COUNTA(PRO_Q5)=0,"",INDEX(graduação_produtividade,MATCH(PRO_O5,ocorrências_produtividade,))) -> Atende às expectativas em 4 fatores | I111: =IFERROR(IF(J6="","",INDEX(FATORES_PONT,MATCH(E111,graduação_produtividade,))),"") -> 7
A113: RESPONSABILIDADE | B113: Refere-se à análise quanto ao comprometimento com as tarefas delegadas, o grau de segurança que transmite aos superiores e zelo pelos recursos disponibilizados. São atitudes consideradas para a avaliação:
B116: Atitudes: | J116: Avaliação:
B117: a) Colabora com a conservação do patrimônio público e utilização dos materiais; | J117: Atende
B119: b) Diante de questões além de sua competência, realiza o encaminhamento interno necessário, possibilitando continuidade no atendimento e na resolução adequados; | J119: Atende
B121: c) Avisa ao superior sobre situações adversas relacionadas ao andamento do trabalho. | J121: Não atende
B123: d) Demonstra organização e planejamento no cumprimento de suas atividades; | J123: Não atende
B125: e) Apresenta autonomia nas decisões relativas às funções desenvolvidas, demonstrando comprometimento com o trabalho; | J125: Atende
B127: f) Transmite segurança no desempenho de suas funções, cumprindo suas tarefas de acordo com as instruções recebidas; | J127: Não atende
B130: Relatório de ocorrências:
E136: Graduação: | I136: Pontuação:
E137: =IF(COUNTA(RES_Q5)=0,"",INDEX(graduação_responsabilidade,MATCH(RES_O5,ocorrências_responsabilidade,))) -> Atende às expectativas em 3 fatores | I137: =IFERROR(IF(J6="","",INDEX(FATORES_PONT,MATCH(E137,graduação_responsabilidade,))),"") -> 5
A139: COMPORTAMENTO | B139: Refere-se à postura e sigilo sobre assuntos reservados e confidenciais , ao comportamento e conhecimento disciplinar e ético. São atitudes consideradas para a avaliação:
B142: Atitudes: | J142: Avaliação:
B143: a) Trata informações e documentos com o grau de reserva ou sigilo necessários; | J143: Atende
B145: b) Atua com ética e profissionalismo, demonstrando postura equilibrada e adequada ao ambiente de trabalho; | J145: Não atende
B147: c) É receptivo em relação aos apontamentos e sugestões de melhoria feitas acerca de sua postura e desempenho do trabalho; | J147: Atende
B149: d) Trata a todos de forma solícita, gentil e respeitosa; | J149: Atende
B151: e) Difunde conhecimentos, ideias, soluções e boas práticas; | J151: Não atende
B153: f) Contribui para um melhor ambiente de trabalho, apresentando um bom relacionamento interpessoal e harmonia na convivência com os diversos perfis profissionais e pessoais, e em situações adversas. | J153: Atende
B156: Relatório de ocorrências:
E162: Graduação: | I162: Pontuação:
E163: =IF(COUNTA(COM_Q5)=0,"",INDEX(graduação_comportamento,MATCH(COM_O5,ocorrências_comportamento,))) -> Atende às expectativas em 4 fatores | I163: =IFERROR(IF(J6="","",INDEX(FATORES_PONT,MATCH(E163,graduação_comportamento,))),"") -> 7
A165: DESENVOLVIMENTO | B165: Refere-se à análise quanto a potencialidade para aprendizagem e aplicação do conhecimento. São atitudes consideradas para a avaliação:
B167: Atitudes: | J167: Avaliação:
B168: a) Tem domínio sobre as atividades, normativas, procedimentos e processos da área em que atua, assegurando corretas orientações para a sua equipe e sociedade; | J168: Atende
B170: b) Demonstra interesse em absorver novos conhecimentos e no treinamento para novas tarefas, procedimentos e processos; | J170: Não atende
B172: c) Comunica-se de forma clara e eficiente, atentando para a qualidade da linguagem e da informação transmitida; | J172: Não atende
B174: d) Busca aperfeiçoamento no exercício de suas atribuições, atualizando-se continuamente no que diz respeito aos dispositivos legais e habilidades específicas necessários ao desenvolvimento de suas atividades; | J174: Atende
B176: e) Demonstra senso crítico em relação às tarefas de rotina, buscando o aperfeiçoamento técnico e lógico dos procedimentos realizados; | J176: Não atende
B178: f) Desempenha suas atividades com atenção, demonstrando conhecimento e memória de trabalho. | J178: Não atende
B181: Relatório de ocorrências:
E187: Graduação: | I187: Pontuação:
E188: =IF(COUNTA(DES_Q5)=0,"",INDEX(GRADUAÇÃ0_DESENVOLVIMENTO,MATCH(DES_O5,ocorrências_DESENVOLVIMENTO,))) -> Atende às expectativas em 2 fatores | I188: =IFERROR(IF(J6="","",INDEX(FATORES_PONT,MATCH(E188,GRADUAÇÃ0_DESENVOLVIMENTO,))),"") -> 3
A190: GRADUAÇÕES
A192: FATORES | C192: PONTUAÇÃO | D192: PESO | E192: NOTA | G192: CONCEITOS
A193: ASSIDUIDADE | C193: =I21 -> 5 | D193: 0.8 | E193: =IFERROR(C193*D193,"") -> 4 | G193: Insatisfatório | H193: até 29,9 | I193: Desempenho ruim.
A194: PONTUALIDADE | C194: =I33 -> 5 | D194: 0.8 | E194: 4 | G194: Regular | H194: 30 a 49,9 | I194: Desempenho abaixo da média.
A195: DISCIPLINA | C195: =I60 -> 9 | D195: 1.4 | E195: 12.6 | G195: Bom | H195: 50 a 69,9 | I195: Desempenho satisfaz.
A196: INICIATIVA | C196: =I86 -> 5 | D196: 1.4 | E196: 7 | G196: Muito bom | H196: 70 a 89,9 | I196: Desempenho acima da média.
A197: PRODUTIVIDADE | C197: =I111 -> 7 | D197: 1.4 | E197: 9.8 | G197: Excelente | H197: 90 a 100 | I197: Desempenho exemplar.
A198: RESPONSABILIDADE | C198: =I137 -> 5 | D198: 1.4 | E198: 7
A199: COMPORTAMENTO | C199: =I163 -> 7 | D199: 1.4 | E199: 9.8 | G199: Resultado: | I199: Conceito:
A200: DESENVOLVIMENTO | C200: =I188 -> 3 | D200: 1.4 | E200: 4.2 | G200: =E201 -> 58.4 | I200: =IF(G200="","",IF(E201>mbom,G197,IF(E201>bom,G196,IF(E201>reg,G195,IF(E201>insat,G194,IF(E201>=0,G193,"")))))) -> Bom
C201: TOTAIS: | D201: =IF(SUM(D193:D200)=0,"",SUM(D193:D200)) -> 10 | E201: =IF(SUM(E193:E200)=0,"",SUM(E193:E200)) -> 58.4
A203: PARECER DO AVALIADOR
B215: Ciente do conteúdo da avaliação.
B216: =IFERROR(CONCATENATE("Porto Alegre, ",dataav_5),"") -> Porto Alegre, dia 1 de maio de 2017.
C220: =IF(nome_empregado="","",nome_empregado) -> Tício | H220: =IF(B6="","",B6) -> 
C221: AVALIADO | H221: AVALIADOR

Sheet 6ª Etapa
A1: FICHA DE AVALIAÇÃO DE DESEMPENHO
A2: =IFERROR(CONCATENATE("6ª ETAPA: de ",DAY(L2),"/",MONTH(L2),"/",YEAR(L2)," a ",DAY(M2),"/",MONTH(M2),"/",YEAR(M2)),"") -> 6ª ETAPA: de 16/6/2015 a 15/12/2015 | L2: =data_5+1 -> 2015-06-16 | M2: =data_6 -> 2015-12-15
A4: Empregado: | B4: =IF(nome_empregado="","",nome_empregado) -> Tício | F4: Início do Exercício: | H4: =IF(EXERCÍCIO="","",EXERCÍCIO) -> 2012-12-15 | I4: Matrícula: | J4: =IF(matrícula="","",matrícula) -> 0
A5: Cargo: | B5: =IF(CARGO="","",CARGO) -> Assistente | F5: Lotação: | I5: RG/CPF: | J5: =IF(rg="","",rg) -> 
A6: Avaliador: | F6: Função: | I6: Data: | J6: 2017-06-13
A8: FATORES DE DESEMPENHO
A10: ASSIDUIDADE | B10: Refere-se à frequência com que o Empregado comparece ao Trabalho. A ausência injustificada do local de trabalho acarretará redução da nota, sendo que serão computadas como ocorrências neste quesito as faltas superiores a 60 (sessenta) minutos, ocorridas num mesmo dia, conforme critérios estabelecidos:
B14: Relatório de ocorrências:
F20: Quantidade de ocorrências: | I20: Pontuação:
F21: 1 ou 2 ocorrências | I21: =IFERROR(IF(J6="","",INDEX(FATORES_PONT,MATCH(F21,Graduação_assiduidade,))),"") -> 9
A23: PONTUALIDADE | B23: Refere-se ao cumprimento do horário de trabalho estabelecido. Serão computados como ocorrência neste quesito os atrasos ou saídas antecipadas não superiores a 60 (sessenta) minutos, ocorridas num mesmo dia, sem justificativa e fora do previsto na CLT, conforme critérios estabelecidos:
B26: Relatório de ocorrências:
F32: Quantidade de ocorrências: | I32: Pontuação:
F33: Sem ocorrências | I33: =IFERROR(IF(J6="","",INDEX(FATORES_PONT,MATCH(F33,graduação_pontualidade,))),"") -> 10
A35: DISCIPLINA | B35: Refere-se ao cumprimento de normas internas do Conselho, como Regulamento de Pessoal, e respeito à hierarquia. São consideradas ocorrências:
B37: Situações: | J37: Quantidade:
B38: a) Alteração do horário de intervalo de almoço sem autorização prévia ou posterior justificativa aceita pelo superior imediato; | J38: 1
B40: b) Descumprimento do intervalo intrajornada mínimo de 60 minutos para os empregados com carga diária superior a 6 horas ou de 15 minutos para os empregados com carga diária entre 4 e 6 horas;
B42: c) Realização de horas extras sem autorização prévia ou posterior justificativa do superior imediato;
B44: d) Realização de compensação de jornada sem autorização prévia;
B46: e) Ausência da sede do Conselho, durante o expediente, sem comunicação ao superior imediato ou a outra pessoa de mesma hierarquia;
B48: f) Ocorrência de descumprimento do Regulamento de Pessoal;
B50: g) Ocorrência de descumprimento de orientações da chefia imediata ou desrespeito à hierarquia; | J50: 1
B53: Relatório de ocorrências:
E59: Graduação: | I59: Pontuação:
E60: =IF(COUNTA(DIS_Q6)=0,"",INDEX(graduação_disciplina,MATCH(DIS_O6,ocorrências_disciplina,1))) -> 1 ou 2 ocorrências | I60: =IFERROR(IF(J6="","",INDEX(FATORES_PONT,MATCH(E60,graduação_disciplina,))),"") -> 9
A62: INICIATIVA | B62: Refere-se ao comportamento proativo, com adoção de providências em situações não definidas pelo superior ou não previstas no(s) manual(is) de normas e procedimentos. São atitudes consideradas para a avaliação:
B65: Ocorrências: | J65: Avaliação:
B66: a) Busca atividades para ocupação do tempo, se houver momentos de baixa demanda; | J66: Atende
B68: b) Quando necessário, identifica atividades prioritárias com resolução pendente, atendendo ou auxiliando no atendimento dessas questõe | J68: Atende
B70: c) Contribui para a melhoria do trabalho, identificando problemas existentes e potenciais, apresentando ideias e propondo sugestões; | J70: Atende
B72: d) É participativo e demostra interesse e engajamento nas atividades de reuniões, capacitações, eventos, entre outros; | J72: Atende
B74: e) Demonstra iniciativa para resolver imprevistos, buscando soluções em situações adversas; | J74: Não atende
B76: f) Demonstra receptividade e adaptabilidade frente à implantação de mudanças; | J76: Atende
B79: Relatório de ocorrências:
E85: Graduação: | I85: Pontuação:
E86: =IF(COUNTA(INI_Q6)=0,"",INDEX(graduação_iniciativa,MATCH(IF(INI_O6=7,6,INI_O6),ocorrências_iniciativa,))) -> Atende às expectativas em 5 fatores | I86: =IFERROR(IF(J6="","",INDEX(FATORES_PONT,MATCH(E86,graduação_iniciativa,))),"") -> 9
A88: PRODUTIVIDADE | B88: Refere-se à análise do volume e qualidade de trabalho conforme resultados esperados para o cargo. São atitudes consideradas para a avaliação:
B90: Atitudes: | J90: Avaliação:
B91: a) Realiza um volume de trabalho compatível com o esperado, considerando o histórico habitual; | J91: Atende
B93: b) Apresenta um trabalho com qualidade satisfatória, evitando retrabalhos; | J93: Não atende
B95: c) Cumpre os prazos estabelecidos, entregando as tarefas sob a sua responsabilidade no tempo previsto, evitando acúmulos nas demandas; | J95: Atende
B97: d) Estrutura e sistematiza as atividades para melhor utilização dos recursos. Estabelece prioridades e organiza suas atividades; | J97: Não atende
B99: e) Desempenha os procedimentos e atividades com eficiência e técnicas adequadas; | J99: Atende
B101: f) Executa suas tarefas com foco e equilíbrio, evitando distrações e dispersões; | J101: Atende
B104: Relatório de ocorrências:
E110: Graduação: | I110: Pontuação:
E111: =IF(COUNTA(PRO_Q6)=0,"",INDEX(graduação_produtividade,MATCH(PRO_O6,ocorrências_produtividade,))) -> Atende às expectativas em 4 fatores | I111: =IFERROR(IF(J6="","",INDEX(FATORES_PONT,MATCH(E111,graduação_produtividade,))),"") -> 7
A113: RESPONSABILIDADE | B113: Refere-se à análise quanto ao comprometimento com as tarefas delegadas, o grau de segurança que transmite aos superiores e zelo pelos recursos disponibilizados. São atitudes consideradas para a avaliação:
B116: Atitudes: | J116: Avaliação:
B117: a) Colabora com a conservação do patrimônio público e utilização dos materiais; | J117: Atende
B119: b) Diante de questões além de sua competência, realiza o encaminhamento interno necessário, possibilitando continuidade no atendimento e na resolução adequados; | J119: Atende
B121: c) Avisa ao superior sobre situações adversas relacionadas ao andamento do trabalho. | J121: Não atende
B123: d) Demonstra organização e planejamento no cumprimento de suas atividades; | J123: Não atende
B125: e) Apresenta autonomia nas decisões relativas às funções desenvolvidas, demonstrando comprometimento com o trabalho; | J125: Atende
B127: f) Transmite segurança no desempenho de suas funções, cumprindo suas tarefas de acordo com as instruções recebidas; | J127: Atende
B130: Relatório de ocorrências:
E136: Graduação: | I136: Pontuação:
E137: =IF(COUNTA(RES_Q6)=0,"",INDEX(graduação_responsabilidade,MATCH(RES_O6,ocorrências_responsabilidade,))) -> Atende às expectativas em 4 fatores | I137: =IFERROR(IF(J6="","",INDEX(FATORES_PONT,MATCH(E137,graduação_responsabilidade,))),"") -> 7
A139: COMPORTAMENTO | B139: Refere-se à postura e sigilo sobre assuntos reservados e confidenciais , ao comportamento e conhecimento disciplinar e ético. São atitudes consideradas para a avaliação:
B142: Atitudes: | J142: Avaliação:
B143: a) Trata informações e documentos com o grau de reserva ou sigilo necessários; | J143: Atende
B145: b) Atua com ética e profissionalismo, demonstrando postura equilibrada e adequada ao ambiente de trabalho; | J145: Atende
B147: c) É receptivo em relação aos apontamentos e sugestões de melhoria feitas acerca de sua postura e desempenho do trabalho; | J147: Atende
B149: d) Trata a todos de forma solícita, gentil e respeitosa; | J149: Atende
B151: e) Difunde conhecimentos, ideias, soluções e boas práticas; | J151: Não atende
B153: f) Contribui para um melhor ambiente de trabalho, apresentando um bom relacionamento interpessoal e harmonia na convivência com os diversos perfis profissionais e pessoais, e em situações adversas. | J153: Atende
B156: Relatório de ocorrências:
E162: Graduação: | I162: Pontuação:
E163: =IF(COUNTA(COM_Q6)=0,"",INDEX(graduação_comportamento,MATCH(COM_O6,ocorrências_comportamento,))) -> Atende às expectativas em 5 fatores | I163: =IFERROR(IF(J6="","",INDEX(FATORES_PONT,MATCH(E163,graduação_comportamento,))),"") -> 9
A165: DESENVOLVIMENTO | B165: Refere-se à análise quanto a potencialidade para aprendizagem e aplicação do conhecimento. São atitudes consideradas para a avaliação:
B167: Atitudes: | J167: Avaliação:
B168: a) Tem domínio sobre as atividades, normativas, procedimentos e processos da área em que atua, assegurando corretas orientações para a sua equipe e sociedade; | J168: Atende
B170: b) Demonstra interesse em absorver novos conhecimentos e no treinamento para novas tarefas, procedimentos e processos; | J170: Atende
B172: c) Comunica-se de forma clara e eficiente, atentando para a qualidade da linguagem e da informação transmitida; | J172: Não atende
B174: d) Busca aperfeiçoamento no exercício de suas atribuições, atualizando-se continuamente no que diz respeito aos dispositivos legais e habilidades específicas necessários ao desenvolvimento de suas atividades; | J174: Atende
B176: e) Demonstra senso crítico em relação às tarefas de rotina, buscando o aperfeiçoamento técnico e lógico dos procedimentos realizados; | J176: Não atende
B178: f) Desempenha suas atividades com atenção, demonstrando conhecimento e memória de trabalho. | J178: Não atende
B181: Relatório de ocorrências:
E187: Graduação: | I187: Pontuação:
E188: =IF(COUNTA(DES_Q6)=0,"",INDEX(GRADUAÇÃ0_DESENVOLVIMENTO,MATCH(DES_O6,ocorrências_DESENVOLVIMENTO,))) -> Atende às expectativas em 3 fatores | I188: =IFERROR(IF(J6="","",INDEX(FATORES_PONT,MATCH(E188,GRADUAÇÃ0_DESENVOLVIMENTO,))),"") -> 5
A190: GRADUAÇÕES
A192: FATORES | C192: PONTUAÇÃO | D192: PESO | E192: NOTA | G192: CONCEITOS
A193: ASSIDUIDADE | C193: =I21 -> 9 | D193: 0.8 | E193: =IFERROR(C193*D193,"") -> 7.2 | G193: Insatisfatório | H193: até 29,9 | I193: Desempenho ruim.
A194: PONTUALIDADE | C194: =I33 -> 10 | D194: 0.8 | E194: 8 | G194: Regular | H194: 30 a 49,9 | I194: Desempenho abaixo da média.
A195: DISCIPLINA | C195: =I60 -> 9 | D195: 1.4 | E195: 12.6 | G195: Bom | H195: 50 a 69,9 | I195: Desempenho satisfaz.
A196: INICIATIVA | C196: =I86 -> 9 | D196: 1.4 | E196: 12.6 | G196: Muito bom | H196: 70 a 89,9 | I196: Desempenho acima da média.
A197: PRODUTIVIDADE | C197: =I111 -> 7 | D197: 1.4 | E197: 9.8 | G197: Excelente | H197: 90 a 100 | I197: Desempenho exemplar.
A198: RESPONSABILIDADE | C198: =I137 -> 7 | D198: 1.4 | E198: 9.8
A199: COMPORTAMENTO | C199: =I163 -> 9 | D199: 1.4 | E199: 12.6 | G199: Resultado: | I199: Conceito:
A200: DESENVOLVIMENTO | C200: =I188 -> 5 | D200: 1.4 | E200: 7 | G200: =E201 -> 79.6 | I200: =IF(G200="","",IF(E201>mbom,G197,IF(E201>bom,G196,IF(E201>reg,G195,IF(E201>insat,G194,IF(E201>=0,G193,"")))))) -> Muito bom
C201: TOTAIS: | D201: =IF(SUM(D193:D200)=0,"",SUM(D193:D200)) -> 10 | E201: =IF(SUM(E193:E200)=0,"",SUM(E193:E200)) -> 79.6
A203: PARECER DO AVALIADOR
B215: Ciente do conteúdo da avaliação.
B216: =IFERROR(CONCATENATE("Porto Alegre, ",dataav_6),"") -> Porto Alegre, dia 13 de junho de 2017.
C220: =IF(nome_empregado="","",nome_empregado) -> Tício | H220: =IF(B6="","",B6) -> 
C221: AVALIADO | H221: AVALIADOR

Sheet 7ª Etapa (hidden)
A1: FICHA DE AVALIAÇÃO DE DESEMPENHO
A2: =IFERROR(CONCATENATE("7ª ETAPA: de ",DAY(L2),"/",MONTH(L2),"/",YEAR(L2)," a ",DAY(M2),"/",MONTH(M2),"/",YEAR(M2)),"") ->  | L2: =data_6+1 -> 2015-12-16 | M2: =data_7 -> 
A4: Empregado: | B4: =IF(nome_empregado="","",nome_empregado) -> Tício | F4: Início do Exercício: | H4: =IF(EXERCÍCIO="","",EXERCÍCIO) -> 2012-12-15 | I4: Matrícula: | J4: =IF(matrícula="","",matrícula) -> 0
A5: Cargo: | B5: =IF(CARGO="","",CARGO) -> Assistente | F5: Lotação: | I5: RG/CPF: | J5: =IF(rg="","",rg) -> 
A6: Avaliador: | F6: Função: | I6: Data:
A8: FATORES DE DESEMPENHO
S9: até 3 anos
A10: ASSIDUIDADE | B10: Refere-se à frequência com que o Empregado comparece ao Trabalho, por trimestre, nos primeiros 03 (três) anos do contrato de trabalho, ou por semetre, após esse período. A ausência injustificada do local de trabalho acarretará redução da nota, sendo que serão computadas como ocorrências neste quesito as faltas superiores a 60 (sessenta) minutos, ocorridas num mesmo dia, conforme critérios estabelecidos: | S10: =I21 -> 
R11: Sem ocorrências | S11: 10 | T11: Sem ocorrências | U11: Sem ocorrências
R12: =IF($T$54>=3,U12,T12) -> 1 ocorrência | S12: 9 | T12: 1 ocorrência | U12: 1 ou 2 ocorrências
R13: 2 ocorrências | S13: 7 | T13: 2 ocorrências | U13: De 3 a 4 ocorrências
B14: Relatório de ocorrências: | R14: 3 ocorrências | S14: 5 | T14: 3 ocorrências | U14: De 5 a 6 ocorrências
R15: 4 ocorrências | S15: 3 | T15: 4 ocorrências | U15: De 7 a 8 ocorrências
R16: 5 ocorrências | S16: 1 | T16: 5 ocorrências | U16: De 9 a 10 ocorrências
R17: A partir de 6 ocorrências | S17: 0 | T17: A partir de 6 ocorrências | U17: A partir de 11 ocorrências
R19: =INDEX(R11:R17,MATCH(S10,S11:S17,1)) -> 
F20: Quantidade de ocorrências: | I20: Pontuação:
I21: =IFERROR(IF(J6="","",INDEX(S10:S17,MATCH(F21,R10:R17,))),"") -> 
S22: até 3 anos
A23: PONTUALIDADE | B23: Refere-se ao cumprimento do horário de trabalho estabelecido, por trimestre, nos primeiros 03 (três) anos do contrato de trabalho, ou por semetre, após esse período. Serão computados como ocorrência neste quesito os atrasos ou saídas antecipadas não superiores a 60 (sessenta) minutos, ocorridas num mesmo dia, sem justificativa e fora do previsto na CLT, conforme critérios estabelecidos: | S23: =I34 -> 
R24: Sem ocorrências | S24: 10 | T24: Sem ocorrências | U24: Sem ocorrências
R25: =IF($T$54>=3,U25,T25) -> Até 30 minutos | S25: 9 | T25: Até 30 minutos | U25: Até 60 minutos
R26: =IF($T$54>=3,U26,T26) -> De 31 minutos até 120 minutos | S26: 7 | T26: De 31 minutos até 120 minutos | U26: De 61 minutos até 240 minutos
B27: Relatório de ocorrências: | R27: De 121 minutos até 240 minutos | S27: 5 | T27: De 121 minutos até 240 minutos | U27: De 241 minutos até 480 minutos
R28: De 241 minutos até 480 minutos | S28: 3 | T28: De 241 minutos até 480 minutos | U28: De 481 minutos até 960 minutos
R29: De 481 minutos até 600 minutos | S29: 1 | T29: De 481 minutos até 600 minutos | U29: De 961 minutos até 1200 minutos
R30: Superior a 600 minutos | S30: 0 | T30: Superior a 600 minutos | U30: Superior a 1200 minutos
R32: =INDEX(R24:R30,MATCH(S23,S24:S30,1)) -> 
F33: Quantidade de ocorrências: | I33: Pontuação:
I34: =IFERROR(IF(J6="","",INDEX(S24:S30,MATCH(F34,R24:R30,))),"") -> 
A36: DISCIPLINA | B36: Refere-se ao cumprimento de normas internas do Conselho, como Regulamento de Pessoal, e respeito à hierarquia, por trimestre, nos primeiros 03 (três) anos do contrato de trabalho, ou por semetre, após esse período. São consideradas ocorrências:
B39: Situações: | J39: Quantidade: | S39: até 3 anos | V39: mais de 3 anos
B40: a) Alteração do horário de intervalo de almoço sem autorização prévia ou posterior justificativa aceita pelo superior imediato; | S40: =SUM(J40:J53) -> 0 | V40: =SUM(J40:J53) -> 0
B42: b) Descumprimento do intervalo intrajornada mínimo de 60 minutos para os empregados com carga diária superior a 6 horas ou de 15 minutos para os empregados com carga diária entre 4 e 6 horas;
B44: c) Realização de horas extras sem autorização prévia ou posterior justificativa do superior imediato; | R44: Sem ocorrências | S44: 0 | T44: 10 | U44: Sem ocorrências | V44: 0 | W44: 10
R45: 1 ocorrência | S45: 1 | T45: 9 | U45: 1 ou 2 ocorrências | V45: 1 | W45: 9
B46: d) Realização de compensação de jornada sem autorização prévia; | R46: De 2 a 3 ocorrências | S46: 2 | T46: 7 | U46: De 3 a 6 ocorrências | V46: 3 | W46: 7
R47: De 4 a 5 ocorrências | S47: 4 | T47: 5 | U47: De 7 a 10 ocorrências | V47: 7 | W47: 5
B48: e) Ausência da sede do Conselho, durante o expediente, sem comunicação ao superior imediato ou a outra pessoa de mesma hierarquia; | R48: De 6 a 7 ocorrências | S48: 6 | T48: 3 | U48: De 11 a 14 ocorrências | V48: 11 | W48: 3
R49: De 8 a 9 ocorrências | S49: 8 | T49: 1 | U49: De 15 a 18 ocorrências | V49: 15 | W49: 1
B50: f) Ocorrência de descumprimento do Regulamento de Pessoal; | R50: A partir de 10 ocorrências | S50: 10 | T50: 0 | U50: A partir de 19 ocorrências | V50: 19 | W50: 0
B52: g) Ocorrência de descumprimento de orientações da chefia imediata ou desrespeito à hierarquia; | R52: =INDEX(R44:R50,MATCH(S40,S44:S50,1)) -> Sem ocorrências | U52: =INDEX(U44:U50,MATCH(V40,V44:V50,1)) -> Sem ocorrências
B54: Relatório de ocorrências: | R54: =EXERCÍCIO -> 2012-12-15 | S54: =J6 -> 00:00:00 | T54: =ROUNDDOWN((S54-R54)/365.25,0) -> -112
U55: =IFERROR(IF(T54>=3,U52,R52),"") -> Sem ocorrências
E60: Graduação: | I60: Pontuação:
E61: =IF(COUNTA(J40:J53)=0,"",U55) ->  | I61: =IFERROR(IF(J6="","",IF(T54>=3,INDEX(W43:W50,MATCH(E61,U43:U50,)),INDEX(W43:W50,MATCH(E61,R43:R50,)))),"") -> 
A63: INICIATIVA | B63: Refere-se ao cumprimento de normas internas do Conselho, como Regulamento de Pessoal, e respeito à hierarquia, por trimestre, nos primeiros 03 (três) anos do contrato de trabalho, ou por semetre, após esse período. São consideradas ocorrências:
B66: Ocorrências: | J66: Avaliação:
B67: a) Alteração do horário de intervalo de almoço sem autorização prévia ou posterior justificativa aceita pelo superior imediato; | R67: Bom | S67: =COUNTIF(J67:J80,"ruim") -> 0
R68: Ruim
B69: b) Descumprimento do intervalo intrajornada mínimo de 60 minutos para os empregados com carga diária superior a 6 horas ou de 15 minutos para os empregados com carga diária entre 4 e 6 horas;
B71: c) Realização de horas extras sem autorização prévia ou posterior justificativa do superior imediato; | R71: Bom desempenho em todos os fatores | S71: 0 | T71: 10
R72: Bom desempenho em 5 fatores | S72: 1 | T72: 9
B73: d) Realização de compensação de jornada sem autorização prévia; | R73: Bom desempenho em 4 fatores | S73: 2 | T73: 7
R74: Bom desempenho em 3 fatores | S74: 3 | T74: 5
B75: e) Ausência da sede do Conselho, durante o expediente, sem comunicação ao superior imediato ou a outra pessoa de mesma hierarquia; | R75: Bom desempenho em 2 fatores | S75: 4 | T75: 3
R76: Bom desempenho em 1 fator | S76: 5 | T76: 1
B77: f) Ocorrência de descumprimento do Regulamento de Pessoal; | R77: Não apresenta iniciativa | S77: 6 | T77: 0
B79: g) Ocorrência de descumprimento de orientações da chefia imediata ou desrespeito à hierarquia;
B81: Relatório de ocorrências:
E87: Graduação: | I87: Pontuação:
E88: =IF(COUNTA(J67:J80)=0,"",INDEX(R71:R77,MATCH(S67,S71:S77,))) ->  | I88: =IFERROR(IF(J6="","",INDEX(T70:T77,MATCH(E88,R70:R77,))),"") -> 
A90: PRODUTIVIDADE | B90: Refere-se à análise do volume e qualidade de trabalho conforme resultados esperados para o cargo, por trimestre, nos primeiros 03 (três) anos do contrato de trabalho, ou por semetre, após esse período. São atitudes consideradas para a avaliação:
B93: Atitudes: | J93: Avaliação:
B94: a) Realiza um volume de trabalho compatível com o esperado, considerando o histórico habitual; | R94: Bom | S94: =COUNTIF(J94:J105,"ruim") -> 0
R95: Ruim
B96: b) Apresenta um trabalho com qualidade satisfatória, evitando retrabalhos;
B98: c) Cumpre os prazos estabelecidos, entregando as tarefas sob a sua responsabilidade no tempo previsto, evitando acúmulos nas demandas; | R98: Bom desempenho em todos os fatores | S98: 0 | T98: 10
R99: Bom desempenho em 5 fatores | S99: 1 | T99: 9
B100: d) Estrutura e sistematiza as atividades para melhor utilização dos recursos. Estabelece prioridades e organiza suas atividades; | R100: Bom desempenho em 4 fatores | S100: 2 | T100: 7
R101: Bom desempenho em 3 fatores | S101: 3 | T101: 5
B102: e) Desempenha os procedimentos e atividades com eficiência e técnicas adequadas; | R102: Bom desempenho em 2 fatores | S102: 4 | T102: 3
R103: Bom desempenho em 1 fator | S103: 5 | T103: 1
B104: f) Executa suas tarefas com foco e equilíbrio, evitando distrações e dispersões; | R104: Não apresenta iniciativa | S104: 6 | T104: 0
B106: Relatório de ocorrências:
E112: Graduação: | I112: Pontuação:
E113: =IF(COUNTA(J94:J105)=0,"",INDEX(R98:R104,MATCH(S94,S98:S104,))) ->  | I113: =IFERROR(IF(J6="","",INDEX(T97:T104,MATCH(E113,R97:R104,))),"") -> 
A115: RESPONSABILIDADE | B115: Refere-se à análise quanto ao comprometimento com as tarefas delegadas, o grau de segurança que transmite aos superiores e zelo pelos recursos disponibilizados, por trimestre, nos primeiros 03 (três) anos do contrato de trabalho, ou por semetre, após esse período. São atitudes consideradas para a avaliação:
B119: Atitudes: | J119: Avaliação:
B120: a) Colabora com a conservação do patrimônio público e utilização dos materiais; | R120: Bom | S120: =COUNTIF(J120:J131,"ruim") -> 0
R121: Ruim
B122: b) Busca orientação para solucionar questões do dia-a-dia que estão além de sua competência;
B124: c) Avisa ao superior sobre situações adversas relacionadas ao andamento do trabalho. | R124: Bom desempenho em todos os fatores | S124: 0 | T124: 10
R125: Bom desempenho em 5 fatores | S125: 1 | T125: 9
B126: d) Demonstra organização e planejamento no cumprimento de suas atividades; | R126: Bom desempenho em 4 fatores | S126: 2 | T126: 7
R127: Bom desempenho em 3 fatores | S127: 3 | T127: 5
B128: e) Apresenta autonomia nas decisões relativas às funções desenvolvidas, demonstrando comprometimento com o trabalho; | R128: Bom desempenho em 2 fatores | S128: 4 | T128: 3
R129: Bom desempenho em 1 fator | S129: 5 | T129: 1
B130: f) Transmite segurança no desempenho de suas funções, cumprindo suas tarefas de acordo com as instruções recebidas; | R130: Não apresenta iniciativa | S130: 6 | T130: 0
B132: Relatório de ocorrências:
E138: Graduação: | I138: Pontuação:
E139: =IF(COUNTA(J120:J131)=0,"",INDEX(R124:R130,MATCH(S120,S124:S130,))) ->  | I139: =IFERROR(IF(J6="","",INDEX(T123:T130,MATCH(E139,R123:R130,))),"") -> 
A141: COMPORTAMENTO | B141: Refere-se à postura e sigilo sobre assuntos reservados e confidenciais , ao comportamento e conhecimento disciplinar e ético, por trimestre, nos primeiros 03 (três) anos do contrato de trabalho, ou por semetre, após esse período. São atitudes consideradas para a avaliação:
B144: Atitudes: | J144: Avaliação:
B145: a) Trata informações e documentos com o grau de reserva ou sigilo necessários; | R145: Bom | S145: =COUNTIF(J145:J156,"ruim") -> 0
R146: Ruim
B147: b) Atua com ética e profissionalismo, demonstrando postura equilibrada e adequada ao ambiente de trabalho.
B149: c) É receptivo em relação aos apontamentos e sugestões de melhoria feitas acerca de sua postura e desempenho do trabalho; | R149: Bom desempenho em todos os fatores | S149: 0 | T149: 10
R150: Bom desempenho em 5 fatores | S150: 1 | T150: 9
B151: d) Trata a todos de forma solícita, gentil e respeitosa; | R151: Bom desempenho em 4 fatores | S151: 2 | T151: 7
R152: Bom desempenho em 3 fatores | S152: 3 | T152: 5
B153: e) Difunde conhecimentos, ideias, soluções e boas práticas; | R153: Bom desempenho em 2 fatores | S153: 4 | T153: 3
R154: Bom desempenho em 1 fator | S154: 5 | T154: 1
B155: f) Contribui para um melhor ambiente de trabalho, apresentando um bom relacionamento interpessoal e harmonia na convivência com os diversos perfis profissionais e pessoais, e em situações adversas. | R155: Não apresenta iniciativa | S155: 6 | T155: 0
B157: Relatório de ocorrências:
E163: Graduação: | I163: Pontuação:
E164: =IF(COUNTA(J145:J156)=0,"",INDEX(R149:R155,MATCH(S145,S149:S155,))) ->  | I164: =IFERROR(IF(J6="","",INDEX(T148:T155,MATCH(E164,R148:R155,))),"") -> 
A166: DESENVOLVIMENTO | B166: Refere-se à análise quanto a potencialidade para aprendizagem e aplicação do conhecimento, por trimestre, nos primeiros 03 (três) anos do contrato de trabalho, ou por semetre, após esse período. São atitudes consideradas para a avaliação:
B169: Atitudes: | J169: Avaliação:
B170: a) Tem domínio sobre as atividades, normativas, procedimentos e processos da área em que atua, assegurando corretas orientações para a sua equipe e sociedade; | R170: Bom | S170: =COUNTIF(J170:J181,"ruim") -> 0
R171: Ruim
B172: b) Tem facilidade em absorver novos conhecimentos, no aprendizado de novas tarefas, procedimentos e processos;
B174: c) Comunica-se de forma clara e eficiente, atentando para a qualidade da linguagem e da informação transmitida; | R174: Bom desempenho em todos os fatores | S174: 0 | T174: 10
R175: Bom desempenho em 5 fatores | S175: 1 | T175: 9
B176: d) Procura evoluir pessoal, profissional e intelectualmente, buscando aperfeiçoamento e atualização contínua de seus conhecimentos e habilidades. | R176: Bom desempenho em 4 fatores | S176: 2 | T176: 7
R177: Bom desempenho em 3 fatores | S177: 3 | T177: 5
B178: e) Demonstra senso crítico em relação às tarefas de rotina, buscando o aperfeiçoamento técnico e lógico dos procedimentos realizados. | R178: Bom desempenho em 2 fatores | S178: 4 | T178: 3
R179: Bom desempenho em 1 fator | S179: 5 | T179: 1
B180: f) Desempenha suas atividades com atenção, demonstrando conhecimento e memória de trabalho. | R180: Não apresenta iniciativa | S180: 6 | T180: 0
B182: Relatório de ocorrências:
E188: Graduação: | I188: Pontuação:
E189: =IF(COUNTA(J170:J181)=0,"",INDEX(R174:R180,MATCH(S170,S174:S180,))) ->  | I189: =IFERROR(IF(J6="","",INDEX(T173:T180,MATCH(E189,R173:R180,))),"") -> 
A191: GRADUAÇÕES
A193: FATORES | C193: PONTUAÇÃO | D193: NOTA | F193: CONCEITOS
A194: ASSIDUIDADE | C194: =I21 ->  | D194: =IFERROR(C194*E194,"") ->  | E194: 0.8 | F194: Insatisfatório | G194: até 49,9 | H194: Desempenho ruim.
A195: PONTUALIDADE | C195: =I34 ->  | D195: =IFERROR(C195*E195,"") ->  | E195: 0.8 | F195: Regular | G195: 50 a 69,9 | H195: Desempenho satisfaz em parte.
A196: DISCIPLINA | C196: =I61 ->  | E196: 1.4 | F196: Bom | G196: 70 a 89,9 | H196: Desempenho satisfaz.
A197: INICIATIVA | C197: =I88 ->  | E197: 1.4 | F197: Excelente | G197: 90 a 100 | H197: Desempenho ultrapassa as expectativas.
A198: PRODUTIVIDADE | C198: =I113 ->  | E198: 1.4
A199: RESPONSABILIDADE | C199: =I139 ->  | E199: 1.4 | G199: Resultado: | H199: =D202 -> 
A200: COMPORTAMENTO | C200: =I164 ->  | E200: 1.4
A201: DESENVOLVIMENTO | C201: =I189 ->  | E201: 1.4 | G201: Conceito: | H201: =IF(H199="","",IF(D202>90,F197,IF(D202>70,F196,IF(D202>50,F195,IF(D202>0,F194,""))))) -> 
C202: TOTAL: | D202: =IF(SUM(D194:D201)=0,"",SUM(D194:D201)) -> 
A204: PARECER DO AVALIADOR
B216: Ciente do conteúdo da avaliação.
B217: =IFERROR(CONCATENATE("Porto Alegre, ",dataav_7),"") -> Porto Alegre,
C221: =IF(nome_empregado="","",nome_empregado) -> Tício | H221: =IF(B6="","",B6) -> 
C222: AVALIADO | H222: AVALIADOR

Sheet 8ª Etapa (hidden)
A1: FICHA DE AVALIAÇÃO DE DESEMPENHO
A2: =IFERROR(CONCATENATE("8ª ETAPA: de ",DAY(L2),"/",MONTH(L2),"/",YEAR(L2)," a ",DAY(M2),"/",MONTH(M2),"/",YEAR(M2)),"") ->  | L2: =data_7+1 ->  | M2: =data_8 -> 
A4: Empregado: | B4: =IF(nome_empregado="","",nome_empregado) -> Tício | F4: Início do Exercício: | H4: =IF(EXERCÍCIO="","",EXERCÍCIO) -> 2012-12-15 | I4: Matrícula: | J4: =IF(matrícula="","",matrícula) -> 0
A5: Cargo: | B5: =IF(CARGO="","",CARGO) -> Assistente | F5: Lotação: | I5: RG/CPF: | J5: =IF(rg="","",rg) -> 
A6: Avaliador: | F6: Função: | I6: Data:
A8: FATORES DE DESEMPENHO
S9: até 3 anos
A10: ASSIDUIDADE | B10: Refere-se à frequência com que o Empregado comparece ao Trabalho, por trimestre, nos primeiros 03 (três) anos do contrato de trabalho, ou por semetre, após esse período. A ausência injustificada do local de trabalho acarretará redução da nota, sendo que serão computadas como ocorrências neste quesito as faltas superiores a 60 (sessenta) minutos, ocorridas num mesmo dia, conforme critérios estabelecidos: | S10: =I21 -> 
R11: Sem ocorrências | S11: 10 | T11: Sem ocorrências | U11: Sem ocorrências
R12: =IF($T$54>=3,U12,T12) -> 1 ocorrência | S12: 9 | T12: 1 ocorrência | U12: 1 ou 2 ocorrências
R13: 2 ocorrências | S13: 7 | T13: 2 ocorrências | U13: De 3 a 4 ocorrências
B14: Relatório de ocorrências: | R14: 3 ocorrências | S14: 5 | T14: 3 ocorrências | U14: De 5 a 6 ocorrências
R15: 4 ocorrências | S15: 3 | T15: 4 ocorrências | U15: De 7 a 8 ocorrências
R16: 5 ocorrências | S16: 1 | T16: 5 ocorrências | U16: De 9 a 10 ocorrências
R17: A partir de 6 ocorrências | S17: 0 | T17: A partir de 6 ocorrências | U17: A partir de 11 ocorrências
R19: =INDEX(R11:R17,MATCH(S10,S11:S17,1)) -> 
F20: Quantidade de ocorrências: | I20: Pontuação:
I21: =IFERROR(IF(J6="","",INDEX(S10:S17,MATCH(F21,R10:R17,))),"") -> 
S22: até 3 anos
A23: PONTUALIDADE | B23: Refere-se ao cumprimento do horário de trabalho estabelecido, por trimestre, nos primeiros 03 (três) anos do contrato de trabalho, ou por semetre, após esse período. Serão computados como ocorrência neste quesito os atrasos ou saídas antecipadas não superiores a 60 (sessenta) minutos, ocorridas num mesmo dia, sem justificativa e fora do previsto na CLT, conforme critérios estabelecidos: | S23: =I34 -> 
R24: Sem ocorrências | S24: 10 | T24: Sem ocorrências | U24: Sem ocorrências
R25: =IF($T$54>=3,U25,T25) -> Até 30 minutos | S25: 9 | T25: Até 30 minutos | U25: Até 60 minutos
R26: =IF($T$54>=3,U26,T26) -> De 31 minutos até 120 minutos | S26: 7 | T26: De 31 minutos até 120 minutos | U26: De 61 minutos até 240 minutos
B27: Relatório de ocorrências: | R27: De 121 minutos até 240 minutos | S27: 5 | T27: De 121 minutos até 240 minutos | U27: De 241 minutos até 480 minutos
R28: De 241 minutos até 480 minutos | S28: 3 | T28: De 241 minutos até 480 minutos | U28: De 481 minutos até 960 minutos
R29: De 481 minutos até 600 minutos | S29: 1 | T29: De 481 minutos até 600 minutos | U29: De 961 minutos até 1200 minutos
R30: Superior a 600 minutos | S30: 0 | T30: Superior a 600 minutos | U30: Superior a 1200 minutos
R32: =INDEX(R24:R30,MATCH(S23,S24:S30,1)) -> 
F33: Quantidade de ocorrências: | I33: Pontuação:
I34: =IFERROR(IF(J6="","",INDEX(S24:S30,MATCH(F34,R24:R30,))),"") -> 
A36: DISCIPLINA | B36: Refere-se ao cumprimento de normas internas do Conselho, como Regulamento de Pessoal, e respeito à hierarquia, por trimestre, nos primeiros 03 (três) anos do contrato de trabalho, ou por semetre, após esse período. São consideradas ocorrências:
B39: Situações: | J39: Quantidade: | S39: até 3 anos | V39: mais de 3 anos
B40: a) Alteração do horário de intervalo de almoço sem autorização prévia ou posterior justificativa aceita pelo superior imediato; | S40: =SUM(J40:J53) -> 0 | V40: =SUM(J40:J53) -> 0
B42: b) Descumprimento do intervalo intrajornada mínimo de 60 minutos para os empregados com carga diária superior a 6 horas ou de 15 minutos para os empregados com carga diária entre 4 e 6 horas;
B44: c) Realização de horas extras sem autorização prévia ou posterior justificativa do superior imediato; | R44: Sem ocorrências | S44: 0 | T44: 10 | U44: Sem ocorrências | V44: 0 | W44: 10
R45: 1 ocorrência | S45: 1 | T45: 9 | U45: 1 ou 2 ocorrências | V45: 1 | W45: 9
B46: d) Realização de compensação de jornada sem autorização prévia; | R46: De 2 a 3 ocorrências | S46: 2 | T46: 7 | U46: De 3 a 6 ocorrências | V46: 3 | W46: 7
R47: De 4 a 5 ocorrências | S47: 4 | T47: 5 | U47: De 7 a 10 ocorrências | V47: 7 | W47: 5
B48: e) Ausência da sede do Conselho, durante o expediente, sem comunicação ao superior imediato ou a outra pessoa de mesma hierarquia; | R48: De 6 a 7 ocorrências | S48: 6 | T48: 3 | U48: De 11 a 14 ocorrências | V48: 11 | W48: 3
R49: De 8 a 9 ocorrências | S49: 8 | T49: 1 | U49: De 15 a 18 ocorrências | V49: 15 | W49: 1
B50: f) Ocorrência de descumprimento do Regulamento de Pessoal; | R50: A partir de 10 ocorrências | S50: 10 | T50: 0 | U50: A partir de 19 ocorrências | V50: 19 | W50: 0
B52: g) Ocorrência de descumprimento de orientações da chefia imediata ou desrespeito à hierarquia; | R52: =INDEX(R44:R50,MATCH(S40,S44:S50,1)) -> Sem ocorrências | U52: =INDEX(U44:U50,MATCH(V40,V44:V50,1)) -> Sem ocorrências
B54: Relatório de ocorrências: | R54: =EXERCÍCIO -> 2012-12-15 | S54: =J6 -> 00:00:00 | T54: =ROUNDDOWN((S54-R54)/365.25,0) -> -112
U55: =IFERROR(IF(T54>=3,U52,R52),"") -> Sem ocorrências
E60: Graduação: | I60: Pontuação:
E61: =IF(COUNTA(J40:J53)=0,"",U55) ->  | I61: =IFERROR(IF(J6="","",IF(T54>=3,INDEX(W43:W50,MATCH(E61,U43:U50,)),INDEX(W43:W50,MATCH(E61,R43:R50,)))),"") -> 
A63: INICIATIVA | B63: Refere-se ao cumprimento de normas internas do Conselho, como Regulamento de Pessoal, e respeito à hierarquia, por trimestre, nos primeiros 03 (três) anos do contrato de trabalho, ou por semetre, após esse período. São consideradas ocorrências:
B66: Ocorrências: | J66: Avaliação:
B67: a) Alteração do horário de intervalo de almoço sem autorização prévia ou posterior justificativa aceita pelo superior imediato; | R67: Bom | S67: =COUNTIF(J67:J80,"ruim") -> 0
R68: Ruim
B69: b) Descumprimento do intervalo intrajornada mínimo de 60 minutos para os empregados com carga diária superior a 6 horas ou de 15 minutos para os empregados com carga diária entre 4 e 6 horas;
B71: c) Realização de horas extras sem autorização prévia ou posterior justificativa do superior imediato; | R71: Bom desempenho em todos os fatores | S71: 0 | T71: 10
R72: Bom desempenho em 5 fatores | S72: 1 | T72: 9
B73: d) Realização de compensação de jornada sem autorização prévia; | R73: Bom desempenho em 4 fatores | S73: 2 | T73: 7
R74: Bom desempenho em 3 fatores | S74: 3 | T74: 5
B75: e) Ausência da sede do Conselho, durante o expediente, sem comunicação ao superior imediato ou a outra pessoa de mesma hierarquia; | R75: Bom desempenho em 2 fatores | S75: 4 | T75: 3
R76: Bom desempenho em 1 fator | S76: 5 | T76: 1
B77: f) Ocorrência de descumprimento do Regulamento de Pessoal; | R77: Não apresenta iniciativa | S77: 6 | T77: 0
B79: g) Ocorrência de descumprimento de orientações da chefia imediata ou desrespeito à hierarquia;
B81: Relatório de ocorrências:
E87: Graduação: | I87: Pontuação:
E88: =IF(COUNTA(J67:J80)=0,"",INDEX(R71:R77,MATCH(S67,S71:S77,))) ->  | I88: =IFERROR(IF(J6="","",INDEX(T70:T77,MATCH(E88,R70:R77,))),"") -> 
A90: PRODUTIVIDADE | B90: Refere-se à análise do volume e qualidade de trabalho conforme resultados esperados para o cargo, por trimestre, nos primeiros 03 (três) anos do contrato de trabalho, ou por semetre, após esse período. São atitudes consideradas para a avaliação:
B93: Atitudes: | J93: Avaliação:
B94: a) Realiza um volume de trabalho compatível com o esperado, considerando o histórico habitual; | R94: Bom | S94: =COUNTIF(J94:J105,"ruim") -> 0
R95: Ruim
B96: b) Apresenta um trabalho com qualidade satisfatória, evitando retrabalhos;
B98: c) Cumpre os prazos estabelecidos, entregando as tarefas sob a sua responsabilidade no tempo previsto, evitando acúmulos nas demandas; | R98: Bom desempenho em todos os fatores | S98: 0 | T98: 10
R99: Bom desempenho em 5 fatores | S99: 1 | T99: 9
B100: d) Estrutura e sistematiza as atividades para melhor utilização dos recursos. Estabelece prioridades e organiza suas atividades; | R100: Bom desempenho em 4 fatores | S100: 2 | T100: 7
R101: Bom desempenho em 3 fatores | S101: 3 | T101: 5
B102: e) Desempenha os procedimentos e atividades com eficiência e técnicas adequadas; | R102: Bom desempenho em 2 fatores | S102: 4 | T102: 3
R103: Bom desempenho em 1 fator | S103: 5 | T103: 1
B104: f) Executa suas tarefas com foco e equilíbrio, evitando distrações e dispersões; | R104: Não apresenta iniciativa | S104: 6 | T104: 0
B106: Relatório de ocorrências:
E112: Graduação: | I112: Pontuação:
E113: =IF(COUNTA(J94:J105)=0,"",INDEX(R98:R104,MATCH(S94,S98:S104,))) ->  | I113: =IFERROR(IF(J6="","",INDEX(T97:T104,MATCH(E113,R97:R104,))),"") -> 
A115: RESPONSABILIDADE | B115: Refere-se à análise quanto ao comprometimento com as tarefas delegadas, o grau de segurança que transmite aos superiores e zelo pelos recursos disponibilizados, por trimestre, nos primeiros 03 (três) anos do contrato de trabalho, ou por semetre, após esse período. São atitudes consideradas para a avaliação:
B119: Atitudes: | J119: Avaliação:
B120: a) Colabora com a conservação do patrimônio público e utilização dos materiais; | R120: Bom | S120: =COUNTIF(J120:J131,"ruim") -> 0
R121: Ruim
B122: b) Busca orientação para solucionar questões do dia-a-dia que estão além de sua competência;
B124: c) Avisa ao superior sobre situações adversas relacionadas ao andamento do trabalho. | R124: Bom desempenho em todos os fatores | S124: 0 | T124: 10
R125: Bom desempenho em 5 fatores | S125: 1 | T125: 9
B126: d) Demonstra organização e planejamento no cumprimento de suas atividades; | R126: Bom desempenho em 4 fatores | S126: 2 | T126: 7
R127: Bom desempenho em 3 fatores | S127: 3 | T127: 5
B128: e) Apresenta autonomia nas decisões relativas às funções desenvolvidas, demonstrando comprometimento com o trabalho; | R128: Bom desempenho em 2 fatores | S128: 4 | T128: 3
R129: Bom desempenho em 1 fator | S129: 5 | T129: 1
B130: f) Transmite segurança no desempenho de suas funções, cumprindo suas tarefas de acordo com as instruções recebidas; | R130: Não apresenta iniciativa | S130: 6 | T130: 0
B132: Relatório de ocorrências:
E138: Graduação: | I138: Pontuação:
E139: =IF(COUNTA(J120:J131)=0,"",INDEX(R124:R130,MATCH(S120,S124:S130,))) ->  | I139: =IFERROR(IF(J6="","",INDEX(T123:T130,MATCH(E139,R123:R130,))),"") -> 
A141: COMPORTAMENTO | B141: Refere-se à postura e sigilo sobre assuntos reservados e confidenciais , ao comportamento e conhecimento disciplinar e ético, por trimestre, nos primeiros 03 (três) anos do contrato de trabalho, ou por semetre, após esse período. São atitudes consideradas para a avaliação:
B144: Atitudes: | J144: Avaliação:
B145: a) Trata informações e documentos com o grau de reserva ou sigilo necessários; | R145: Bom | S145: =COUNTIF(J145:J156,"ruim") -> 0
R146: Ruim
B147: b) Atua com ética e profissionalismo, demonstrando postura equilibrada e adequada ao ambiente de trabalho.
B149: c) É receptivo em relação aos apontamentos e sugestões de melhoria feitas acerca de sua postura e desempenho do trabalho; | R149: Bom desempenho em todos os fatores | S149: 0 | T149: 10
R150: Bom desempenho em 5 fatores | S150: 1 | T150: 9
B151: d) Trata a todos de forma solícita, gentil e respeitosa; | R151: Bom desempenho em 4 fatores | S151: 2 | T151: 7
R152: Bom desempenho em 3 fatores | S152: 3 | T152: 5
B153: e) Difunde conhecimentos, ideias, soluções e boas práticas; | R153: Bom desempenho em 2 fatores | S153: 4 | T153: 3
R154: Bom desempenho em 1 fator | S154: 5 | T154: 1
B155: f) Contribui para um melhor ambiente de trabalho, apresentando um bom relacionamento interpessoal e harmonia na convivência com os diversos perfis profissionais e pessoais, e em situações adversas. | R155: Não apresenta iniciativa | S155: 6 | T155: 0
B157: Relatório de ocorrências:
E163: Graduação: | I163: Pontuação:
E164: =IF(COUNTA(J145:J156)=0,"",INDEX(R149:R155,MATCH(S145,S149:S155,))) ->  | I164: =IFERROR(IF(J6="","",INDEX(T148:T155,MATCH(E164,R148:R155,))),"") -> 
A166: DESENVOLVIMENTO | B166: Refere-se à análise quanto a potencialidade para aprendizagem e aplicação do conhecimento, por trimestre, nos primeiros 03 (três) anos do contrato de trabalho, ou por semetre, após esse período. São atitudes consideradas para a avaliação:
B169: Atitudes: | J169: Avaliação:
B170: a) Tem domínio sobre as atividades, normativas, procedimentos e processos da área em que atua, assegurando corretas orientações para a sua equipe e sociedade; | R170: Bom | S170: =COUNTIF(J170:J181,"ruim") -> 0
R171: Ruim
B172: b) Tem facilidade em absorver novos conhecimentos, no aprendizado de novas tarefas, procedimentos e processos;
B174: c) Comunica-se de forma clara e eficiente, atentando para a qualidade da linguagem e da informação transmitida; | R174: Bom desempenho em todos os fatores | S174: 0 | T174: 10
R175: Bom desempenho em 5 fatores | S175: 1 | T175: 9
B176: d) Procura evoluir pessoal, profissional e intelectualmente, buscando aperfeiçoamento e atualização contínua de seus conhecimentos e habilidades. | R176: Bom desempenho em 4 fatores | S176: 2 | T176: 7
R177: Bom desempenho em 3 fatores | S177: 3 | T177: 5
B178: e) Demonstra senso crítico em relação às tarefas de rotina, buscando o aperfeiçoamento técnico e lógico dos procedimentos realizados. | R178: Bom desempenho em 2 fatores | S178: 4 | T178: 3
R179: Bom desempenho em 1 fator | S179: 5 | T179: 1
B180: f) Desempenha suas atividades com atenção, demonstrando conhecimento e memória de trabalho. | R180: Não apresenta iniciativa | S180: 6 | T180: 0
B182: Relatório de ocorrências:
E188: Graduação: | I188: Pontuação:
E189: =IF(COUNTA(J170:J181)=0,"",INDEX(R174:R180,MATCH(S170,S174:S180,))) ->  | I189: =IFERROR(IF(J6="","",INDEX(T173:T180,MATCH(E189,R173:R180,))),"") -> 
A191: GRADUAÇÕES
A193: FATORES | C193: PONTUAÇÃO | D193: NOTA | F193: CONCEITOS
A194: ASSIDUIDADE | C194: =I21 ->  | D194: =IFERROR(C194*E194,"") ->  | E194: 0.8 | F194: Insatisfatório | G194: até 49,9 | H194: Desempenho ruim.
A195: PONTUALIDADE | C195: =I34 ->  | D195: =IFERROR(C195*E195,"") ->  | E195: 0.8 | F195: Regular | G195: 50 a 69,9 | H195: Desempenho satisfaz em parte.
A196: DISCIPLINA | C196: =I61 ->  | E196: 1.4 | F196: Bom | G196: 70 a 89,9 | H196: Desempenho satisfaz.
A197: INICIATIVA | C197: =I88 ->  | E197: 1.4 | F197: Excelente | G197: 90 a 100 | H197: Desempenho ultrapassa as expectativas.
A198: PRODUTIVIDADE | C198: =I113 ->  | E198: 1.4
A199: RESPONSABILIDADE | C199: =I139 ->  | E199: 1.4 | G199: Resultado: | H199: =D202 -> 
A200: COMPORTAMENTO | C200: =I164 ->  | E200: 1.4
A201: DESENVOLVIMENTO | C201: =I189 ->  | E201: 1.4 | G201: Conceito: | H201: =IF(H199="","",IF(D202>90,F197,IF(D202>70,F196,IF(D202>50,F195,IF(D202>0,F194,""))))) -> 
C202: TOTAL: | D202: =IF(SUM(D194:D201)=0,"",SUM(D194:D201)) -> 
A204: PARECER DO AVALIADOR
B216: Ciente do conteúdo da avaliação.
B217: =IFERROR(CONCATENATE("Porto Alegre, ",dataav_8),"") -> Porto Alegre,
C221: =IF(nome_empregado="","",nome_empregado) -> Tício | H221: =IF(B6="","",B6) -> 
C222: AVALIADO | H222: AVALIADOR

Sheet 9ª Etapa (hidden)
A1: FICHA DE AVALIAÇÃO DE DESEMPENHO
A2: =IFERROR(CONCATENATE("9ª ETAPA: de ",DAY(L2),"/",MONTH(L2),"/",YEAR(L2)," a ",DAY(M2),"/",MONTH(M2),"/",YEAR(M2)),"") ->  | L2: =data_8+1 ->  | M2: =data_9 -> 
A4: Empregado: | B4: =IF(nome_empregado="","",nome_empregado) -> Tício | F4: Início do Exercício: | H4: =IF(EXERCÍCIO="","",EXERCÍCIO) -> 2012-12-15 | I4: Matrícula: | J4: =IF(matrícula="","",matrícula) -> 0
A5: Cargo: | B5: =IF(CARGO="","",CARGO) -> Assistente | F5: Lotação: | I5: RG/CPF: | J5: =IF(rg="","",rg) -> 
A6: Avaliador: | F6: Função: | I6: Data:
A8: FATORES DE DESEMPENHO
S9: até 3 anos
A10: ASSIDUIDADE | B10: Refere-se à frequência com que o Empregado comparece ao Trabalho, por trimestre, nos primeiros 03 (três) anos do contrato de trabalho, ou por semetre, após esse período. A ausência injustificada do local de trabalho acarretará redução da nota, sendo que serão computadas como ocorrências neste quesito as faltas superiores a 60 (sessenta) minutos, ocorridas num mesmo dia, conforme critérios estabelecidos: | S10: =I21 -> 
R11: Sem ocorrências | S11: 10 | T11: Sem ocorrências | U11: Sem ocorrências
R12: =IF($T$54>=3,U12,T12) -> 1 ocorrência | S12: 9 | T12: 1 ocorrência | U12: 1 ou 2 ocorrências
R13: 2 ocorrências | S13: 7 | T13: 2 ocorrências | U13: De 3 a 4 ocorrências
B14: Relatório de ocorrências: | R14: 3 ocorrências | S14: 5 | T14: 3 ocorrências | U14: De 5 a 6 ocorrências
R15: 4 ocorrências | S15: 3 | T15: 4 ocorrências | U15: De 7 a 8 ocorrências
R16: 5 ocorrências | S16: 1 | T16: 5 ocorrências | U16: De 9 a 10 ocorrências
R17: A partir de 6 ocorrências | S17: 0 | T17: A partir de 6 ocorrências | U17: A partir de 11 ocorrências
R19: =INDEX(R11:R17,MATCH(S10,S11:S17,1)) -> 
F20: Quantidade de ocorrências: | I20: Pontuação:
I21: =IFERROR(IF(J6="","",INDEX(S10:S17,MATCH(F21,R10:R17,))),"") -> 
S22: até 3 anos
A23: PONTUALIDADE | B23: Refere-se ao cumprimento do horário de trabalho estabelecido, por trimestre, nos primeiros 03 (três) anos do contrato de trabalho, ou por semetre, após esse período. Serão computados como ocorrência neste quesito os atrasos ou saídas antecipadas não superiores a 60 (sessenta) minutos, ocorridas num mesmo dia, sem justificativa e fora do previsto na CLT, conforme critérios estabelecidos: | S23: =I34 -> 
R24: Sem ocorrências | S24: 10 | T24: Sem ocorrências | U24: Sem ocorrências
R25: =IF($T$54>=3,U25,T25) -> Até 30 minutos | S25: 9 | T25: Até 30 minutos | U25: Até 60 minutos
R26: =IF($T$54>=3,U26,T26) -> De 31 minutos até 120 minutos | S26: 7 | T26: De 31 minutos até 120 minutos | U26: De 61 minutos até 240 minutos
B27: Relatório de ocorrências: | R27: De 121 minutos até 240 minutos | S27: 5 | T27: De 121 minutos até 240 minutos | U27: De 241 minutos até 480 minutos
R28: De 241 minutos até 480 minutos | S28: 3 | T28: De 241 minutos até 480 minutos | U28: De 481 minutos até 960 minutos
R29: De 481 minutos até 600 minutos | S29: 1 | T29: De 481 minutos até 600 minutos | U29: De 961 minutos até 1200 minutos
R30: Superior a 600 minutos | S30: 0 | T30: Superior a 600 minutos | U30: Superior a 1200 minutos
R32: =INDEX(R24:R30,MATCH(S23,S24:S30,1)) -> 
F33: Quantidade de ocorrências: | I33: Pontuação:
I34: =IFERROR(IF(J6="","",INDEX(S24:S30,MATCH(F34,R24:R30,))),"") -> 
A36: DISCIPLINA | B36: Refere-se ao cumprimento de normas internas do Conselho, como Regulamento de Pessoal, e respeito à hierarquia, por trimestre, nos primeiros 03 (três) anos do contrato de trabalho, ou por semetre, após esse período. São consideradas ocorrências:
B39: Situações: | J39: Quantidade: | S39: até 3 anos | V39: mais de 3 anos
B40: a) Alteração do horário de intervalo de almoço sem autorização prévia ou posterior justificativa aceita pelo superior imediato; | S40: =SUM(J40:J53) -> 0 | V40: =SUM(J40:J53) -> 0
B42: b) Descumprimento do intervalo intrajornada mínimo de 60 minutos para os empregados com carga diária superior a 6 horas ou de 15 minutos para os empregados com carga diária entre 4 e 6 horas;
B44: c) Realização de horas extras sem autorização prévia ou posterior justificativa do superior imediato; | R44: Sem ocorrências | S44: 0 | T44: 10 | U44: Sem ocorrências | V44: 0 | W44: 10
R45: 1 ocorrência | S45: 1 | T45: 9 | U45: 1 ou 2 ocorrências | V45: 1 | W45: 9
B46: d) Realização de compensação de jornada sem autorização prévia; | R46: De 2 a 3 ocorrências | S46: 2 | T46: 7 | U46: De 3 a 6 ocorrências | V46: 3 | W46: 7
R47: De 4 a 5 ocorrências | S47: 4 | T47: 5 | U47: De 7 a 10 ocorrências | V47: 7 | W47: 5
B48: e) Ausência da sede do Conselho, durante o expediente, sem comunicação ao superior imediato ou a outra pessoa de mesma hierarquia; | R48: De 6 a 7 ocorrências | S48: 6 | T48: 3 | U48: De 11 a 14 ocorrências | V48: 11 | W48: 3
R49: De 8 a 9 ocorrências | S49: 8 | T49: 1 | U49: De 15 a 18 ocorrências | V49: 15 | W49: 1
B50: f) Ocorrência de descumprimento do Regulamento de Pessoal; | R50: A partir de 10 ocorrências | S50: 10 | T50: 0 | U50: A partir de 19 ocorrências | V50: 19 | W50: 0
B52: g) Ocorrência de descumprimento de orientações da chefia imediata ou desrespeito à hierarquia; | R52: =INDEX(R44:R50,MATCH(S40,S44:S50,1)) -> Sem ocorrências | U52: =INDEX(U44:U50,MATCH(V40,V44:V50,1)) -> Sem ocorrências
B54: Relatório de ocorrências: | R54: =EXERCÍCIO -> 2012-12-15 | S54: =J6 -> 00:00:00 | T54: =ROUNDDOWN((S54-R54)/365.25,0) -> -112
U55: =IFERROR(IF(T54>=3,U52,R52),"") -> Sem ocorrências
E60: Graduação: | I60: Pontuação:
E61: =IF(COUNTA(J40:J53)=0,"",U55) ->  | I61: =IFERROR(IF(J6="","",IF(T54>=3,INDEX(W43:W50,MATCH(E61,U43:U50,)),INDEX(W43:W50,MATCH(E61,R43:R50,)))),"") -> 
A63: INICIATIVA | B63: Refere-se ao cumprimento de normas internas do Conselho, como Regulamento de Pessoal, e respeito à hierarquia, por trimestre, nos primeiros 03 (três) anos do contrato de trabalho, ou por semetre, após esse período. São consideradas ocorrências:
B66: Ocorrências: | J66: Avaliação:
B67: a) Alteração do horário de intervalo de almoço sem autorização prévia ou posterior justificativa aceita pelo superior imediato; | R67: Bom | S67: =COUNTIF(J67:J80,"ruim") -> 0
R68: Ruim
B69: b) Descumprimento do intervalo intrajornada mínimo de 60 minutos para os empregados com carga diária superior a 6 horas ou de 15 minutos para os empregados com carga diária entre 4 e 6 horas;
B71: c) Realização de horas extras sem autorização prévia ou posterior justificativa do superior imediato; | R71: Bom desempenho em todos os fatores | S71: 0 | T71: 10
R72: Bom desempenho em 5 fatores | S72: 1 | T72: 9
B73: d) Realização de compensação de jornada sem autorização prévia; | R73: Bom desempenho em 4 fatores | S73: 2 | T73: 7
R74: Bom desempenho em 3 fatores | S74: 3 | T74: 5
B75: e) Ausência da sede do Conselho, durante o expediente, sem comunicação ao superior imediato ou a outra pessoa de mesma hierarquia; | R75: Bom desempenho em 2 fatores | S75: 4 | T75: 3
R76: Bom desempenho em 1 fator | S76: 5 | T76: 1
B77: f) Ocorrência de descumprimento do Regulamento de Pessoal; | R77: Não apresenta iniciativa | S77: 6 | T77: 0
B79: g) Ocorrência de descumprimento de orientações da chefia imediata ou desrespeito à hierarquia;
B81: Relatório de ocorrências:
E87: Graduação: | I87: Pontuação:
E88: =IF(COUNTA(J67:J80)=0,"",INDEX(R71:R77,MATCH(S67,S71:S77,))) ->  | I88: =IFERROR(IF(J6="","",INDEX(T70:T77,MATCH(E88,R70:R77,))),"") -> 
A90: PRODUTIVIDADE | B90: Refere-se à análise do volume e qualidade de trabalho conforme resultados esperados para o cargo, por trimestre, nos primeiros 03 (três) anos do contrato de trabalho, ou por semetre, após esse período. São atitudes consideradas para a avaliação:
B93: Atitudes: | J93: Avaliação:
B94: a) Realiza um volume de trabalho compatível com o esperado, considerando o histórico habitual; | R94: Bom | S94: =COUNTIF(J94:J105,"ruim") -> 0
R95: Ruim
B96: b) Apresenta um trabalho com qualidade satisfatória, evitando retrabalhos;
B98: c) Cumpre os prazos estabelecidos, entregando as tarefas sob a sua responsabilidade no tempo previsto, evitando acúmulos nas demandas; | R98: Bom desempenho em todos os fatores | S98: 0 | T98: 10
R99: Bom desempenho em 5 fatores | S99: 1 | T99: 9
B100: d) Estrutura e sistematiza as atividades para melhor utilização dos recursos. Estabelece prioridades e organiza suas atividades; | R100: Bom desempenho em 4 fatores | S100: 2 | T100: 7
R101: Bom desempenho em 3 fatores | S101: 3 | T101: 5
B102: e) Desempenha os procedimentos e atividades com eficiência e técnicas adequadas; | R102: Bom desempenho em 2 fatores | S102: 4 | T102: 3
R103: Bom desempenho em 1 fator | S103: 5 | T103: 1
B104: f) Executa suas tarefas com foco e equilíbrio, evitando distrações e dispersões; | R104: Não apresenta iniciativa | S104: 6 | T104: 0
B106: Relatório de ocorrências:
E112: Graduação: | I112: Pontuação:
E113: =IF(COUNTA(J94:J105)=0,"",INDEX(R98:R104,MATCH(S94,S98:S104,))) ->  | I113: =IFERROR(IF(J6="","",INDEX(T97:T104,MATCH(E113,R97:R104,))),"") -> 
A115: RESPONSABILIDADE | B115: Refere-se à análise quanto ao comprometimento com as tarefas delegadas, o grau de segurança que transmite aos superiores e zelo pelos recursos disponibilizados, por trimestre, nos primeiros 03 (três) anos do contrato de trabalho, ou por semetre, após esse período. São atitudes consideradas para a avaliação:
B119: Atitudes: | J119: Avaliação:
B120: a) Colabora com a conservação do patrimônio público e utilização dos materiais; | R120: Bom | S120: =COUNTIF(J120:J131,"ruim") -> 0
R121: Ruim
B122: b) Busca orientação para solucionar questões do dia-a-dia que estão além de sua competência;
B124: c) Avisa ao superior sobre situações adversas relacionadas ao andamento do trabalho. | R124: Bom desempenho em todos os fatores | S124: 0 | T124: 10
R125: Bom desempenho em 5 fatores | S125: 1 | T125: 9
B126: d) Demonstra organização e planejamento no cumprimento de suas atividades; | R126: Bom desempenho em 4 fatores | S126: 2 | T126: 7
R127: Bom desempenho em 3 fatores | S127: 3 | T127: 5
B128: e) Apresenta autonomia nas decisões relativas às funções desenvolvidas, demonstrando comprometimento com o trabalho; | R128: Bom desempenho em 2 fatores | S128: 4 | T128: 3
R129: Bom desempenho em 1 fator | S129: 5 | T129: 1
B130: f) Transmite segurança no desempenho de suas funções, cumprindo suas tarefas de acordo com as instruções recebidas; | R130: Não apresenta iniciativa | S130: 6 | T130: 0
B132: Relatório de ocorrências:
E138: Graduação: | I138: Pontuação:
E139: =IF(COUNTA(J120:J131)=0,"",INDEX(R124:R130,MATCH(S120,S124:S130,))) ->  | I139: =IFERROR(IF(J6="","",INDEX(T123:T130,MATCH(E139,R123:R130,))),"") -> 
A141: COMPORTAMENTO | B141: Refere-se à postura e sigilo sobre assuntos reservados e confidenciais , ao comportamento e conhecimento disciplinar e ético, por trimestre, nos primeiros 03 (três) anos do contrato de trabalho, ou por semetre, após esse período. São atitudes consideradas para a avaliação:
B144: Atitudes: | J144: Avaliação:
B145: a) Trata informações e documentos com o grau de reserva ou sigilo necessários; | R145: Bom | S145: =COUNTIF(J145:J156,"ruim") -> 0
R146: Ruim
B147: b) Atua com ética e profissionalismo, demonstrando postura equilibrada e adequada ao ambiente de trabalho.
B149: c) É receptivo em relação aos apontamentos e sugestões de melhoria feitas acerca de sua postura e desempenho do trabalho; | R149: Bom desempenho em todos os fatores | S149: 0 | T149: 10
R150: Bom desempenho em 5 fatores | S150: 1 | T150: 9
B151: d) Trata a todos de forma solícita, gentil e respeitosa; | R151: Bom desempenho em 4 fatores | S151: 2 | T151: 7
R152: Bom desempenho em 3 fatores | S152: 3 | T152: 5
B153: e) Difunde conhecimentos, ideias, soluções e boas práticas; | R153: Bom desempenho em 2 fatores | S153: 4 | T153: 3
R154: Bom desempenho em 1 fator | S154: 5 | T154: 1
B155: f) Contribui para um melhor ambiente de trabalho, apresentando um bom relacionamento interpessoal e harmonia na convivência com os diversos perfis profissionais e pessoais, e em situações adversas. | R155: Não apresenta iniciativa | S155: 6 | T155: 0
B157: Relatório de ocorrências:
E163: Graduação: | I163: Pontuação:
E164: =IF(COUNTA(J145:J156)=0,"",INDEX(R149:R155,MATCH(S145,S149:S155,))) ->  | I164: =IFERROR(IF(J6="","",INDEX(T148:T155,MATCH(E164,R148:R155,))),"") -> 
A166: DESENVOLVIMENTO | B166: Refere-se à análise quanto a potencialidade para aprendizagem e aplicação do conhecimento, por trimestre, nos primeiros 03 (três) anos do contrato de trabalho, ou por semetre, após esse período. São atitudes consideradas para a avaliação:
B169: Atitudes: | J169: Avaliação:
B170: a) Tem domínio sobre as atividades, normativas, procedimentos e processos da área em que atua, assegurando corretas orientações para a sua equipe e sociedade; | R170: Bom | S170: =COUNTIF(J170:J181,"ruim") -> 0
R171: Ruim
B172: b) Tem facilidade em absorver novos conhecimentos, no aprendizado de novas tarefas, procedimentos e processos;
B174: c) Comunica-se de forma clara e eficiente, atentando para a qualidade da linguagem e da informação transmitida; | R174: Bom desempenho em todos os fatores | S174: 0 | T174: 10
R175: Bom desempenho em 5 fatores | S175: 1 | T175: 9
B176: d) Procura evoluir pessoal, profissional e intelectualmente, buscando aperfeiçoamento e atualização contínua de seus conhecimentos e habilidades. | R176: Bom desempenho em 4 fatores | S176: 2 | T176: 7
R177: Bom desempenho em 3 fatores | S177: 3 | T177: 5
B178: e) Demonstra senso crítico em relação às tarefas de rotina, buscando o aperfeiçoamento técnico e lógico dos procedimentos realizados. | R178: Bom desempenho em 2 fatores | S178: 4 | T178: 3
R179: Bom desempenho em 1 fator | S179: 5 | T179: 1
B180: f) Desempenha suas atividades com atenção, demonstrando conhecimento e memória de trabalho. | R180: Não apresenta iniciativa | S180: 6 | T180: 0
B182: Relatório de ocorrências:
E188: Graduação: | I188: Pontuação:
E189: =IF(COUNTA(J170:J181)=0,"",INDEX(R174:R180,MATCH(S170,S174:S180,))) ->  | I189: =IFERROR(IF(J6="","",INDEX(T173:T180,MATCH(E189,R173:R180,))),"") -> 
A191: GRADUAÇÕES
A193: FATORES | C193: PONTUAÇÃO | D193: NOTA | F193: CONCEITOS
A194: ASSIDUIDADE | C194: =I21 ->  | D194: =IFERROR(C194*E194,"") ->  | E194: 0.8 | F194: Insatisfatório | G194: até 49,9 | H194: Desempenho ruim.
A195: PONTUALIDADE | C195: =I34 ->  | D195: =IFERROR(C195*E195,"") ->  | E195: 0.8 | F195: Regular | G195: 50 a 69,9 | H195: Desempenho satisfaz em parte.
A196: DISCIPLINA | C196: =I61 ->  | E196: 1.4 | F196: Bom | G196: 70 a 89,9 | H196: Desempenho satisfaz.
A197: INICIATIVA | C197: =I88 ->  | E197: 1.4 | F197: Excelente | G197: 90 a 100 | H197: Desempenho ultrapassa as expectativas.
A198: PRODUTIVIDADE | C198: =I113 ->  | E198: 1.4
A199: RESPONSABILIDADE | C199: =I139 ->  | E199: 1.4 | G199: Resultado: | H199: =D202 -> 
A200: COMPORTAMENTO | C200: =I164 ->  | E200: 1.4
A201: DESENVOLVIMENTO | C201: =I189 ->  | E201: 1.4 | G201: Conceito: | H201: =IF(H199="","",IF(D202>90,F197,IF(D202>70,F196,IF(D202>50,F195,IF(D202>0,F194,""))))) -> 
C202: TOTAL: | D202: =IF(SUM(D194:D201)=0,"",SUM(D194:D201)) -> 
A204: PARECER DO AVALIADOR
B216: Ciente do conteúdo da avaliação.
B217: =IFERROR(CONCATENATE("Porto Alegre, ",dataav_9),"") -> Porto Alegre,
C221: =IF(nome_empregado="","",nome_empregado) -> Tício | H221: =IF(B6="","",B6) -> 
C222: AVALIADO | H222: AVALIADOR

Sheet 10ª Etapa (hidden)
A1: FICHA DE AVALIAÇÃO DE DESEMPENHO
A2: =IFERROR(CONCATENATE("10ª ETAPA: de ",DAY(L2),"/",MONTH(L2),"/",YEAR(L2)," a ",DAY(M2),"/",MONTH(M2),"/",YEAR(M2)),"") ->  | L2: =data_9+1 ->  | M2: =data_10 -> 
A4: Empregado: | B4: =IF(nome_empregado="","",nome_empregado) -> Tício | F4: Início do Exercício: | H4: =IF(EXERCÍCIO="","",EXERCÍCIO) -> 2012-12-15 | I4: Matrícula: | J4: =IF(matrícula="","",matrícula) -> 0
A5: Cargo: | B5: =IF(CARGO="","",CARGO) -> Assistente | F5: Lotação: | I5: RG/CPF: | J5: =IF(rg="","",rg) -> 
A6: Avaliador: | F6: Função: | I6: Data:
A8: FATORES DE DESEMPENHO
S9: até 3 anos
A10: ASSIDUIDADE | B10: Refere-se à frequência com que o Empregado comparece ao Trabalho, por trimestre, nos primeiros 03 (três) anos do contrato de trabalho, ou por semetre, após esse período. A ausência injustificada do local de trabalho acarretará redução da nota, sendo que serão computadas como ocorrências neste quesito as faltas superiores a 60 (sessenta) minutos, ocorridas num mesmo dia, conforme critérios estabelecidos: | S10: =I21 -> 
R11: Sem ocorrências | S11: 10 | T11: Sem ocorrências | U11: Sem ocorrências
R12: =IF($T$54>=3,U12,T12) -> 1 ocorrência | S12: 9 | T12: 1 ocorrência | U12: 1 ou 2 ocorrências
R13: 2 ocorrências | S13: 7 | T13: 2 ocorrências | U13: De 3 a 4 ocorrências
B14: Relatório de ocorrências: | R14: 3 ocorrências | S14: 5 | T14: 3 ocorrências | U14: De 5 a 6 ocorrências
R15: 4 ocorrências | S15: 3 | T15: 4 ocorrências | U15: De 7 a 8 ocorrências
R16: 5 ocorrências | S16: 1 | T16: 5 ocorrências | U16: De 9 a 10 ocorrências
R17: A partir de 6 ocorrências | S17: 0 | T17: A partir de 6 ocorrências | U17: A partir de 11 ocorrências
R19: =INDEX(R11:R17,MATCH(S10,S11:S17,1)) -> 
F20: Quantidade de ocorrências: | I20: Pontuação:
I21: =IFERROR(IF(J6="","",INDEX(S10:S17,MATCH(F21,R10:R17,))),"") -> 
S22: até 3 anos
A23: PONTUALIDADE | B23: Refere-se ao cumprimento do horário de trabalho estabelecido, por trimestre, nos primeiros 03 (três) anos do contrato de trabalho, ou por semetre, após esse período. Serão computados como ocorrência neste quesito os atrasos ou saídas antecipadas não superiores a 60 (sessenta) minutos, ocorridas num mesmo dia, sem justificativa e fora do previsto na CLT, conforme critérios estabelecidos: | S23: =I34 -> 
R24: Sem ocorrências | S24: 10 | T24: Sem ocorrências | U24: Sem ocorrências
R25: =IF($T$54>=3,U25,T25) -> Até 30 minutos | S25: 9 | T25: Até 30 minutos | U25: Até 60 minutos
R26: =IF($T$54>=3,U26,T26) -> De 31 minutos até 120 minutos | S26: 7 | T26: De 31 minutos até 120 minutos | U26: De 61 minutos até 240 minutos
B27: Relatório de ocorrências: | R27: De 121 minutos até 240 minutos | S27: 5 | T27: De 121 minutos até 240 minutos | U27: De 241 minutos até 480 minutos
R28: De 241 minutos até 480 minutos | S28: 3 | T28: De 241 minutos até 480 minutos | U28: De 481 minutos até 960 minutos
R29: De 481 minutos até 600 minutos | S29: 1 | T29: De 481 minutos até 600 minutos | U29: De 961 minutos até 1200 minutos
R30: Superior a 600 minutos | S30: 0 | T30: Superior a 600 minutos | U30: Superior a 1200 minutos
R32: =INDEX(R24:R30,MATCH(S23,S24:S30,1)) -> 
F33: Quantidade de ocorrências: | I33: Pontuação:
I34: =IFERROR(IF(J6="","",INDEX(S24:S30,MATCH(F34,R24:R30,))),"") -> 
A36: DISCIPLINA | B36: Refere-se ao cumprimento de normas internas do Conselho, como Regulamento de Pessoal, e respeito à hierarquia, por trimestre, nos primeiros 03 (três) anos do contrato de trabalho, ou por semetre, após esse período. São consideradas ocorrências:
B39: Situações: | J39: Quantidade: | S39: até 3 anos | V39: mais de 3 anos
B40: a) Alteração do horário de intervalo de almoço sem autorização prévia ou posterior justificativa aceita pelo superior imediato; | S40: =SUM(J40:J53) -> 0 | V40: =SUM(J40:J53) -> 0
B42: b) Descumprimento do intervalo intrajornada mínimo de 60 minutos para os empregados com carga diária superior a 6 horas ou de 15 minutos para os empregados com carga diária entre 4 e 6 horas;
B44: c) Realização de horas extras sem autorização prévia ou posterior justificativa do superior imediato; | R44: Sem ocorrências | S44: 0 | T44: 10 | U44: Sem ocorrências | V44: 0 | W44: 10
R45: 1 ocorrência | S45: 1 | T45: 9 | U45: 1 ou 2 ocorrências | V45: 1 | W45: 9
B46: d) Realização de compensação de jornada sem autorização prévia; | R46: De 2 a 3 ocorrências | S46: 2 | T46: 7 | U46: De 3 a 6 ocorrências | V46: 3 | W46: 7
R47: De 4 a 5 ocorrências | S47: 4 | T47: 5 | U47: De 7 a 10 ocorrências | V47: 7 | W47: 5
B48: e) Ausência da sede do Conselho, durante o expediente, sem comunicação ao superior imediato ou a outra pessoa de mesma hierarquia; | R48: De 6 a 7 ocorrências | S48: 6 | T48: 3 | U48: De 11 a 14 ocorrências | V48: 11 | W48: 3
R49: De 8 a 9 ocorrências | S49: 8 | T49: 1 | U49: De 15 a 18 ocorrências | V49: 15 | W49: 1
B50: f) Ocorrência de descumprimento do Regulamento de Pessoal; | R50: A partir de 10 ocorrências | S50: 10 | T50: 0 | U50: A partir de 19 ocorrências | V50: 19 | W50: 0
B52: g) Ocorrência de descumprimento de orientações da chefia imediata ou desrespeito à hierarquia; | R52: =INDEX(R44:R50,MATCH(S40,S44:S50,1)) -> Sem ocorrências | U52: =INDEX(U44:U50,MATCH(V40,V44:V50,1)) -> Sem ocorrências
B54: Relatório de ocorrências: | R54: =EXERCÍCIO -> 2012-12-15 | S54: =J6 -> 00:00:00 | T54: =ROUNDDOWN((S54-R54)/365.25,0) -> -112
U55: =IFERROR(IF(T54>=3,U52,R52),"") -> Sem ocorrências
E60: Graduação: | I60: Pontuação:
E61: =IF(COUNTA(J40:J53)=0,"",U55) ->  | I61: =IFERROR(IF(J6="","",IF(T54>=3,INDEX(W43:W50,MATCH(E61,U43:U50,)),INDEX(W43:W50,MATCH(E61,R43:R50,)))),"") -> 
A63: INICIATIVA | B63: Refere-se ao cumprimento de normas internas do Conselho, como Regulamento de Pessoal, e respeito à hierarquia, por trimestre, nos primeiros 03 (três) anos do contrato de trabalho, ou por semetre, após esse período. São consideradas ocorrências:
B66: Ocorrências: | J66: Avaliação:
B67: a) Alteração do horário de intervalo de almoço sem autorização prévia ou posterior justificativa aceita pelo superior imediato; | R67: Bom | S67: =COUNTIF(J67:J80,"ruim") -> 0
R68: Ruim
B69: b) Descumprimento do intervalo intrajornada mínimo de 60 minutos para os empregados com carga diária superior a 6 horas ou de 15 minutos para os empregados com carga diária entre 4 e 6 horas;
B71: c) Realização de horas extras sem autorização prévia ou posterior justificativa do superior imediato; | R71: Bom desempenho em todos os fatores | S71: 0 | T71: 10
R72: Bom desempenho em 5 fatores | S72: 1 | T72: 9
B73: d) Realização de compensação de jornada sem autorização prévia; | R73: Bom desempenho em 4 fatores | S73: 2 | T73: 7
R74: Bom desempenho em 3 fatores | S74: 3 | T74: 5
B75: e) Ausência da sede do Conselho, durante o expediente, sem comunicação ao superior imediato ou a outra pessoa de mesma hierarquia; | R75: Bom desempenho em 2 fatores | S75: 4 | T75: 3
R76: Bom desempenho em 1 fator | S76: 5 | T76: 1
B77: f) Ocorrência de descumprimento do Regulamento de Pessoal; | R77: Não apresenta iniciativa | S77: 6 | T77: 0
B79: g) Ocorrência de descumprimento de orientações da chefia imediata ou desrespeito à hierarquia;
B81: Relatório de ocorrências:
E87: Graduação: | I87: Pontuação:
E88: =IF(COUNTA(J67:J80)=0,"",INDEX(R71:R77,MATCH(S67,S71:S77,))) ->  | I88: =IFERROR(IF(J6="","",INDEX(T70:T77,MATCH(E88,R70:R77,))),"") -> 
A90: PRODUTIVIDADE | B90: Refere-se à análise do volume e qualidade de trabalho conforme resultados esperados para o cargo, por trimestre, nos primeiros 03 (três) anos do contrato de trabalho, ou por semetre, após esse período. São atitudes consideradas para a avaliação:
B93: Atitudes: | J93: Avaliação:
B94: a) Realiza um volume de trabalho compatível com o esperado, considerando o histórico habitual; | R94: Bom | S94: =COUNTIF(J94:J105,"ruim") -> 0
R95: Ruim
B96: b) Apresenta um trabalho com qualidade satisfatória, evitando retrabalhos;
B98: c) Cumpre os prazos estabelecidos, entregando as tarefas sob a sua responsabilidade no tempo previsto, evitando acúmulos nas demandas; | R98: Bom desempenho em todos os fatores | S98: 0 | T98: 10
R99: Bom desempenho em 5 fatores | S99: 1 | T99: 9
B100: d) Estrutura e sistematiza as atividades para melhor utilização dos recursos. Estabelece prioridades e organiza suas atividades; | R100: Bom desempenho em 4 fatores | S100: 2 | T100: 7
R101: Bom desempenho em 3 fatores | S101: 3 | T101: 5
B102: e) Desempenha os procedimentos e atividades com eficiência e técnicas adequadas; | R102: Bom desempenho em 2 fatores | S102: 4 | T102: 3
R103: Bom desempenho em 1 fator | S103: 5 | T103: 1
B104: f) Executa suas tarefas com foco e equilíbrio, evitando distrações e dispersões; | R104: Não apresenta iniciativa | S104: 6 | T104: 0
B106: Relatório de ocorrências:
E112: Graduação: | I112: Pontuação:
E113: =IF(COUNTA(J94:J105)=0,"",INDEX(R98:R104,MATCH(S94,S98:S104,))) ->  | I113: =IFERROR(IF(J6="","",INDEX(T97:T104,MATCH(E113,R97:R104,))),"") -> 
A115: RESPONSABILIDADE | B115: Refere-se à análise quanto ao comprometimento com as tarefas delegadas, o grau de segurança que transmite aos superiores e zelo pelos recursos disponibilizados, por trimestre, nos primeiros 03 (três) anos do contrato de trabalho, ou por semetre, após esse período. São atitudes consideradas para a avaliação:
B119: Atitudes: | J119: Avaliação:
B120: a) Colabora com a conservação do patrimônio público e utilização dos materiais; | R120: Bom | S120: =COUNTIF(J120:J131,"ruim") -> 0
R121: Ruim
B122: b) Busca orientação para solucionar questões do dia-a-dia que estão além de sua competência;
B124: c) Avisa ao superior sobre situações adversas relacionadas ao andamento do trabalho. | R124: Bom desempenho em todos os fatores | S124: 0 | T124: 10
R125: Bom desempenho em 5 fatores | S125: 1 | T125: 9
B126: d) Demonstra organização e planejamento no cumprimento de suas atividades; | R126: Bom desempenho em 4 fatores | S126: 2 | T126: 7
R127: Bom desempenho em 3 fatores | S127: 3 | T127: 5
B128: e) Apresenta autonomia nas decisões relativas às funções desenvolvidas, demonstrando comprometimento com o trabalho; | R128: Bom desempenho em 2 fatores | S128: 4 | T128: 3
R129: Bom desempenho em 1 fator | S129: 5 | T129: 1
B130: f) Transmite segurança no desempenho de suas funções, cumprindo suas tarefas de acordo com as instruções recebidas; | R130: Não apresenta iniciativa | S130: 6 | T130: 0
B132: Relatório de ocorrências:
E138: Graduação: | I138: Pontuação:
E139: =IF(COUNTA(J120:J131)=0,"",INDEX(R124:R130,MATCH(S120,S124:S130,))) ->  | I139: =IFERROR(IF(J6="","",INDEX(T123:T130,MATCH(E139,R123:R130,))),"") -> 
A141: COMPORTAMENTO | B141: Refere-se à postura e sigilo sobre assuntos reservados e confidenciais , ao comportamento e conhecimento disciplinar e ético, por trimestre, nos primeiros 03 (três) anos do contrato de trabalho, ou por semetre, após esse período. São atitudes consideradas para a avaliação:
B144: Atitudes: | J144: Avaliação:
B145: a) Trata informações e documentos com o grau de reserva ou sigilo necessários; | R145: Bom | S145: =COUNTIF(J145:J156,"ruim") -> 0
R146: Ruim
B147: b) Atua com ética e profissionalismo, demonstrando postura equilibrada e adequada ao ambiente de trabalho.
B149: c) É receptivo em relação aos apontamentos e sugestões de melhoria feitas acerca de sua postura e desempenho do trabalho; | R149: Bom desempenho em todos os fatores | S149: 0 | T149: 10
R150: Bom desempenho em 5 fatores | S150: 1 | T150: 9
B151: d) Trata a todos de forma solícita, gentil e respeitosa; | R151: Bom desempenho em 4 fatores | S151: 2 | T151: 7
R152: Bom desempenho em 3 fatores | S152: 3 | T152: 5
B153: e) Difunde conhecimentos, ideias, soluções e boas práticas; | R153: Bom desempenho em 2 fatores | S153: 4 | T153: 3
R154: Bom desempenho em 1 fator | S154: 5 | T154: 1
B155: f) Contribui para um melhor ambiente de trabalho, apresentando um bom relacionamento interpessoal e harmonia na convivência com os diversos perfis profissionais e pessoais, e em situações adversas. | R155: Não apresenta iniciativa | S155: 6 | T155: 0
B157: Relatório de ocorrências:
E163: Graduação: | I163: Pontuação:
E164: =IF(COUNTA(J145:J156)=0,"",INDEX(R149:R155,MATCH(S145,S149:S155,))) ->  | I164: =IFERROR(IF(J6="","",INDEX(T148:T155,MATCH(E164,R148:R155,))),"") -> 
A166: DESENVOLVIMENTO | B166: Refere-se à análise quanto a potencialidade para aprendizagem e aplicação do conhecimento, por trimestre, nos primeiros 03 (três) anos do contrato de trabalho, ou por semetre, após esse período. São atitudes consideradas para a avaliação:
B169: Atitudes: | J169: Avaliação:
B170: a) Tem domínio sobre as atividades, normativas, procedimentos e processos da área em que atua, assegurando corretas orientações para a sua equipe e sociedade; | R170: Bom | S170: =COUNTIF(J170:J181,"ruim") -> 0
R171: Ruim
B172: b) Tem facilidade em absorver novos conhecimentos, no aprendizado de novas tarefas, procedimentos e processos;
B174: c) Comunica-se de forma clara e eficiente, atentando para a qualidade da linguagem e da informação transmitida; | R174: Bom desempenho em todos os fatores | S174: 0 | T174: 10
R175: Bom desempenho em 5 fatores | S175: 1 | T175: 9
B176: d) Procura evoluir pessoal, profissional e intelectualmente, buscando aperfeiçoamento e atualização contínua de seus conhecimentos e habilidades. | R176: Bom desempenho em 4 fatores | S176: 2 | T176: 7
R177: Bom desempenho em 3 fatores | S177: 3 | T177: 5
B178: e) Demonstra senso crítico em relação às tarefas de rotina, buscando o aperfeiçoamento técnico e lógico dos procedimentos realizados. | R178: Bom desempenho em 2 fatores | S178: 4 | T178: 3
R179: Bom desempenho em 1 fator | S179: 5 | T179: 1
B180: f) Desempenha suas atividades com atenção, demonstrando conhecimento e memória de trabalho. | R180: Não apresenta iniciativa | S180: 6 | T180: 0
B182: Relatório de ocorrências:
E188: Graduação: | I188: Pontuação:
E189: =IF(COUNTA(J170:J181)=0,"",INDEX(R174:R180,MATCH(S170,S174:S180,))) ->  | I189: =IFERROR(IF(J6="","",INDEX(T173:T180,MATCH(E189,R173:R180,))),"") -> 
A191: GRADUAÇÕES
A193: FATORES | C193: PONTUAÇÃO | D193: NOTA | F193: CONCEITOS
A194: ASSIDUIDADE | C194: =I21 ->  | D194: =IFERROR(C194*E194,"") ->  | E194: 0.8 | F194: Insatisfatório | G194: até 49,9 | H194: Desempenho ruim.
A195: PONTUALIDADE | C195: =I34 ->  | D195: =IFERROR(C195*E195,"") ->  | E195: 0.8 | F195: Regular | G195: 50 a 69,9 | H195: Desempenho satisfaz em parte.
A196: DISCIPLINA | C196: =I61 ->  | E196: 1.4 | F196: Bom | G196: 70 a 89,9 | H196: Desempenho satisfaz.
A197: INICIATIVA | C197: =I88 ->  | E197: 1.4 | F197: Excelente | G197: 90 a 100 | H197: Desempenho ultrapassa as expectativas.
A198: PRODUTIVIDADE | C198: =I113 ->  | E198: 1.4
A199: RESPONSABILIDADE | C199: =I139 ->  | E199: 1.4 | G199: Resultado: | H199: =D202 -> 
A200: COMPORTAMENTO | C200: =I164 ->  | E200: 1.4
A201: DESENVOLVIMENTO | C201: =I189 ->  | E201: 1.4 | G201: Conceito: | H201: =IF(H199="","",IF(D202>90,F197,IF(D202>70,F196,IF(D202>50,F195,IF(D202>0,F194,""))))) -> 
C202: TOTAL: | D202: =IF(SUM(D194:D201)=0,"",SUM(D194:D201)) -> 
A204: PARECER DO AVALIADOR
B216: Ciente do conteúdo da avaliação.
B217: =IFERROR(CONCATENATE("Porto Alegre, ",dataav_10),"") -> Porto Alegre,
C221: =IF(nome_empregado="","",nome_empregado) -> Tício | H221: =IF(B6="","",B6) -> 
C222: AVALIADO | H222: AVALIADOR

Sheet 11ª Etapa (hidden)
A1: FICHA DE AVALIAÇÃO DE DESEMPENHO
A2: =IFERROR(CONCATENATE("11ª ETAPA: de ",DAY(L2),"/",MONTH(L2),"/",YEAR(L2)," a ",DAY(M2),"/",MONTH(M2),"/",YEAR(M2)),"") ->  | L2: =data_10+1 ->  | M2: =data_11 -> 
A4: Empregado: | B4: =IF(nome_empregado="","",nome_empregado) -> Tício | F4: Início do Exercício: | H4: =IF(EXERCÍCIO="","",EXERCÍCIO) -> 2012-12-15 | I4: Matrícula: | J4: =IF(matrícula="","",matrícula) -> 0
A5: Cargo: | B5: =IF(CARGO="","",CARGO) -> Assistente | F5: Lotação: | I5: RG/CPF: | J5: =IF(rg="","",rg) -> 
A6: Avaliador: | F6: Função: | I6: Data:
A8: FATORES DE DESEMPENHO
S9: até 3 anos
A10: ASSIDUIDADE | B10: Refere-se à frequência com que o Empregado comparece ao Trabalho, por trimestre, nos primeiros 03 (três) anos do contrato de trabalho, ou por semetre, após esse período. A ausência injustificada do local de trabalho acarretará redução da nota, sendo que serão computadas como ocorrências neste quesito as faltas superiores a 60 (sessenta) minutos, ocorridas num mesmo dia, conforme critérios estabelecidos: | S10: =I21 -> 
R11: Sem ocorrências | S11: 10 | T11: Sem ocorrências | U11: Sem ocorrências
R12: =IF($T$54>=3,U12,T12) -> 1 ocorrência | S12: 9 | T12: 1 ocorrência | U12: 1 ou 2 ocorrências
R13: 2 ocorrências | S13: 7 | T13: 2 ocorrências | U13: De 3 a 4 ocorrências
B14: Relatório de ocorrências: | R14: 3 ocorrências | S14: 5 | T14: 3 ocorrências | U14: De 5 a 6 ocorrências
R15: 4 ocorrências | S15: 3 | T15: 4 ocorrências | U15: De 7 a 8 ocorrências
R16: 5 ocorrências | S16: 1 | T16: 5 ocorrências | U16: De 9 a 10 ocorrências
R17: A partir de 6 ocorrências | S17: 0 | T17: A partir de 6 ocorrências | U17: A partir de 11 ocorrências
R19: =INDEX(R11:R17,MATCH(S10,S11:S17,1)) -> 
F20: Quantidade de ocorrências: | I20: Pontuação:
I21: =IFERROR(IF(J6="","",INDEX(S10:S17,MATCH(F21,R10:R17,))),"") -> 
S22: até 3 anos
A23: PONTUALIDADE | B23: Refere-se ao cumprimento do horário de trabalho estabelecido, por trimestre, nos primeiros 03 (três) anos do contrato de trabalho, ou por semetre, após esse período. Serão computados como ocorrência neste quesito os atrasos ou saídas antecipadas não superiores a 60 (sessenta) minutos, ocorridas num mesmo dia, sem justificativa e fora do previsto na CLT, conforme critérios estabelecidos: | S23: =I34 -> 
R24: Sem ocorrências | S24: 10 | T24: Sem ocorrências | U24: Sem ocorrências
R25: =IF($T$54>=3,U25,T25) -> Até 30 minutos | S25: 9 | T25: Até 30 minutos | U25: Até 60 minutos
R26: =IF($T$54>=3,U26,T26) -> De 31 minutos até 120 minutos | S26: 7 | T26: De 31 minutos até 120 minutos | U26: De 61 minutos até 240 minutos
B27: Relatório de ocorrências: | R27: De 121 minutos até 240 minutos | S27: 5 | T27: De 121 minutos até 240 minutos | U27: De 241 minutos até 480 minutos
R28: De 241 minutos até 480 minutos | S28: 3 | T28: De 241 minutos até 480 minutos | U28: De 481 minutos até 960 minutos
R29: De 481 minutos até 600 minutos | S29: 1 | T29: De 481 minutos até 600 minutos | U29: De 961 minutos até 1200 minutos
R30: Superior a 600 minutos | S30: 0 | T30: Superior a 600 minutos | U30: Superior a 1200 minutos
R32: =INDEX(R24:R30,MATCH(S23,S24:S30,1)) -> 
F33: Quantidade de ocorrências: | I33: Pontuação:
I34: =IFERROR(IF(J6="","",INDEX(S24:S30,MATCH(F34,R24:R30,))),"") -> 
A36: DISCIPLINA | B36: Refere-se ao cumprimento de normas internas do Conselho, como Regulamento de Pessoal, e respeito à hierarquia, por trimestre, nos primeiros 03 (três) anos do contrato de trabalho, ou por semetre, após esse período. São consideradas ocorrências:
B39: Situações: | J39: Quantidade: | S39: até 3 anos | V39: mais de 3 anos
B40: a) Alteração do horário de intervalo de almoço sem autorização prévia ou posterior justificativa aceita pelo superior imediato; | S40: =SUM(J40:J53) -> 0 | V40: =SUM(J40:J53) -> 0
B42: b) Descumprimento do intervalo intrajornada mínimo de 60 minutos para os empregados com carga diária superior a 6 horas ou de 15 minutos para os empregados com carga diária entre 4 e 6 horas;
B44: c) Realização de horas extras sem autorização prévia ou posterior justificativa do superior imediato; | R44: Sem ocorrências | S44: 0 | T44: 10 | U44: Sem ocorrências | V44: 0 | W44: 10
R45: 1 ocorrência | S45: 1 | T45: 9 | U45: 1 ou 2 ocorrências | V45: 1 | W45: 9
B46: d) Realização de compensação de jornada sem autorização prévia; | R46: De 2 a 3 ocorrências | S46: 2 | T46: 7 | U46: De 3 a 6 ocorrências | V46: 3 | W46: 7
R47: De 4 a 5 ocorrências | S47: 4 | T47: 5 | U47: De 7 a 10 ocorrências | V47: 7 | W47: 5
B48: e) Ausência da sede do Conselho, durante o expediente, sem comunicação ao superior imediato ou a outra pessoa de mesma hierarquia; | R48: De 6 a 7 ocorrências | S48: 6 | T48: 3 | U48: De 11 a 14 ocorrências | V48: 11 | W48: 3
R49: De 8 a 9 ocorrências | S49: 8 | T49: 1 | U49: De 15 a 18 ocorrências | V49: 15 | W49: 1
B50: f) Ocorrência de descumprimento do Regulamento de Pessoal; | R50: A partir de 10 ocorrências | S50: 10 | T50: 0 | U50: A partir de 19 ocorrências | V50: 19 | W50: 0
B52: g) Ocorrência de descumprimento de orientações da chefia imediata ou desrespeito à hierarquia; | R52: =INDEX(R44:R50,MATCH(S40,S44:S50,1)) -> Sem ocorrências | U52: =INDEX(U44:U50,MATCH(V40,V44:V50,1)) -> Sem ocorrências
B54: Relatório de ocorrências: | R54: =EXERCÍCIO -> 2012-12-15 | S54: =J6 -> 00:00:00 | T54: =ROUNDDOWN((S54-R54)/365.25,0) -> -112
U55: =IFERROR(IF(T54>=3,U52,R52),"") -> Sem ocorrências
E60: Graduação: | I60: Pontuação:
E61: =IF(COUNTA(J40:J53)=0,"",U55) ->  | I61: =IFERROR(IF(J6="","",IF(T54>=3,INDEX(W43:W50,MATCH(E61,U43:U50,)),INDEX(W43:W50,MATCH(E61,R43:R50,)))),"") -> 
A63: INICIATIVA | B63: Refere-se ao cumprimento de normas internas do Conselho, como Regulamento de Pessoal, e respeito à hierarquia, por trimestre, nos primeiros 03 (três) anos do contrato de trabalho, ou por semetre, após esse período. São consideradas ocorrências:
B66: Ocorrências: | J66: Avaliação:
B67: a) Alteração do horário de intervalo de almoço sem autorização prévia ou posterior justificativa aceita pelo superior imediato; | R67: Bom | S67: =COUNTIF(J67:J80,"ruim") -> 0
R68: Ruim
B69: b) Descumprimento do intervalo intrajornada mínimo de 60 minutos para os empregados com carga diária superior a 6 horas ou de 15 minutos para os empregados com carga diária entre 4 e 6 horas;
B71: c) Realização de horas extras sem autorização prévia ou posterior justificativa do superior imediato; | R71: Bom desempenho em todos os fatores | S71: 0 | T71: 10
R72: Bom desempenho em 5 fatores | S72: 1 | T72: 9
B73: d) Realização de compensação de jornada sem autorização prévia; | R73: Bom desempenho em 4 fatores | S73: 2 | T73: 7
R74: Bom desempenho em 3 fatores | S74: 3 | T74: 5
B75: e) Ausência da sede do Conselho, durante o expediente, sem comunicação ao superior imediato ou a outra pessoa de mesma hierarquia; | R75: Bom desempenho em 2 fatores | S75: 4 | T75: 3
R76: Bom desempenho em 1 fator | S76: 5 | T76: 1
B77: f) Ocorrência de descumprimento do Regulamento de Pessoal; | R77: Não apresenta iniciativa | S77: 6 | T77: 0
B79: g) Ocorrência de descumprimento de orientações da chefia imediata ou desrespeito à hierarquia;
B81: Relatório de ocorrências:
E87: Graduação: | I87: Pontuação:
E88: =IF(COUNTA(J67:J80)=0,"",INDEX(R71:R77,MATCH(S67,S71:S77,))) ->  | I88: =IFERROR(IF(J6="","",INDEX(T70:T77,MATCH(E88,R70:R77,))),"") -> 
A90: PRODUTIVIDADE | B90: Refere-se à análise do volume e qualidade de trabalho conforme resultados esperados para o cargo, por trimestre, nos primeiros 03 (três) anos do contrato de trabalho, ou por semetre, após esse período. São atitudes consideradas para a avaliação:
B93: Atitudes: | J93: Avaliação:
B94: a) Realiza um volume de trabalho compatível com o esperado, considerando o histórico habitual; | R94: Bom | S94: =COUNTIF(J94:J105,"ruim") -> 0
R95: Ruim
B96: b) Apresenta um trabalho com qualidade satisfatória, evitando retrabalhos;
B98: c) Cumpre os prazos estabelecidos, entregando as tarefas sob a sua responsabilidade no tempo previsto, evitando acúmulos nas demandas; | R98: Bom desempenho em todos os fatores | S98: 0 | T98: 10
R99: Bom desempenho em 5 fatores | S99: 1 | T99: 9
B100: d) Estrutura e sistematiza as atividades para melhor utilização dos recursos. Estabelece prioridades e organiza suas atividades; | R100: Bom desempenho em 4 fatores | S100: 2 | T100: 7
R101: Bom desempenho em 3 fatores | S101: 3 | T101: 5
B102: e) Desempenha os procedimentos e atividades com eficiência e técnicas adequadas; | R102: Bom desempenho em 2 fatores | S102: 4 | T102: 3
R103: Bom desempenho em 1 fator | S103: 5 | T103: 1
B104: f) Executa suas tarefas com foco e equilíbrio, evitando distrações e dispersões; | R104: Não apresenta iniciativa | S104: 6 | T104: 0
B106: Relatório de ocorrências:
E112: Graduação: | I112: Pontuação:
E113: =IF(COUNTA(J94:J105)=0,"",INDEX(R98:R104,MATCH(S94,S98:S104,))) ->  | I113: =IFERROR(IF(J6="","",INDEX(T97:T104,MATCH(E113,R97:R104,))),"") -> 
A115: RESPONSABILIDADE | B115: Refere-se à análise quanto ao comprometimento com as tarefas delegadas, o grau de segurança que transmite aos superiores e zelo pelos recursos disponibilizados, por trimestre, nos primeiros 03 (três) anos do contrato de trabalho, ou por semetre, após esse período. São atitudes consideradas para a avaliação:
B119: Atitudes: | J119: Avaliação:
B120: a) Colabora com a conservação do patrimônio público e utilização dos materiais; | R120: Bom | S120: =COUNTIF(J120:J131,"ruim") -> 0
R121: Ruim
B122: b) Busca orientação para solucionar questões do dia-a-dia que estão além de sua competência;
B124: c) Avisa ao superior sobre situações adversas relacionadas ao andamento do trabalho. | R124: Bom desempenho em todos os fatores | S124: 0 | T124: 10
R125: Bom desempenho em 5 fatores | S125: 1 | T125: 9
B126: d) Demonstra organização e planejamento no cumprimento de suas atividades; | R126: Bom desempenho em 4 fatores | S126: 2 | T126: 7
R127: Bom desempenho em 3 fatores | S127: 3 | T127: 5
B128: e) Apresenta autonomia nas decisões relativas às funções desenvolvidas, demonstrando comprometimento com o trabalho; | R128: Bom desempenho em 2 fatores | S128: 4 | T128: 3
R129: Bom desempenho em 1 fator | S129: 5 | T129: 1
B130: f) Transmite segurança no desempenho de suas funções, cumprindo suas tarefas de acordo com as instruções recebidas; | R130: Não apresenta iniciativa | S130: 6 | T130: 0
B132: Relatório de ocorrências:
E138: Graduação: | I138: Pontuação:
E139: =IF(COUNTA(J120:J131)=0,"",INDEX(R124:R130,MATCH(S120,S124:S130,))) ->  | I139: =IFERROR(IF(J6="","",INDEX(T123:T130,MATCH(E139,R123:R130,))),"") -> 
A141: COMPORTAMENTO | B141: Refere-se à postura e sigilo sobre assuntos reservados e confidenciais , ao comportamento e conhecimento disciplinar e ético, por trimestre, nos primeiros 03 (três) anos do contrato de trabalho, ou por semetre, após esse período. São atitudes consideradas para a avaliação:
B144: Atitudes: | J144: Avaliação:
B145: a) Trata informações e documentos com o grau de reserva ou sigilo necessários; | R145: Bom | S145: =COUNTIF(J145:J156,"ruim") -> 0
R146: Ruim
B147: b) Atua com ética e profissionalismo, demonstrando postura equilibrada e adequada ao ambiente de trabalho.
B149: c) É receptivo em relação aos apontamentos e sugestões de melhoria feitas acerca de sua postura e desempenho do trabalho; | R149: Bom desempenho em todos os fatores | S149: 0 | T149: 10
R150: Bom desempenho em 5 fatores | S150: 1 | T150: 9
B151: d) Trata a todos de forma solícita, gentil e respeitosa; | R151: Bom desempenho em 4 fatores | S151: 2 | T151: 7
R152: Bom desempenho em 3 fatores | S152: 3 | T152: 5
B153: e) Difunde conhecimentos, ideias, soluções e boas práticas; | R153: Bom desempenho em 2 fatores | S153: 4 | T153: 3
R154: Bom desempenho em 1 fator | S154: 5 | T154: 1
B155: f) Contribui para um melhor ambiente de trabalho, apresentando um bom relacionamento interpessoal e harmonia na convivência com os diversos perfis profissionais e pessoais, e em situações adversas. | R155: Não apresenta iniciativa | S155: 6 | T155: 0
B157: Relatório de ocorrências:
E163: Graduação: | I163: Pontuação:
E164: =IF(COUNTA(J145:J156)=0,"",INDEX(R149:R155,MATCH(S145,S149:S155,))) ->  | I164: =IFERROR(IF(J6="","",INDEX(T148:T155,MATCH(E164,R148:R155,))),"") -> 
A166: DESENVOLVIMENTO | B166: Refere-se à análise quanto a potencialidade para aprendizagem e aplicação do conhecimento, por trimestre, nos primeiros 03 (três) anos do contrato de trabalho, ou por semetre, após esse período. São atitudes consideradas para a avaliação:
B169: Atitudes: | J169: Avaliação:
B170: a) Tem domínio sobre as atividades, normativas, procedimentos e processos da área em que atua, assegurando corretas orientações para a sua equipe e sociedade; | R170: Bom | S170: =COUNTIF(J170:J181,"ruim") -> 0
R171: Ruim
B172: b) Tem facilidade em absorver novos conhecimentos, no aprendizado de novas tarefas, procedimentos e processos;
B174: c) Comunica-se de forma clara e eficiente, atentando para a qualidade da linguagem e da informação transmitida; | R174: Bom desempenho em todos os fatores | S174: 0 | T174: 10
R175: Bom desempenho em 5 fatores | S175: 1 | T175: 9
B176: d) Procura evoluir pessoal, profissional e intelectualmente, buscando aperfeiçoamento e atualização contínua de seus conhecimentos e habilidades. | R176: Bom desempenho em 4 fatores | S176: 2 | T176: 7
R177: Bom desempenho em 3 fatores | S177: 3 | T177: 5
B178: e) Demonstra senso crítico em relação às tarefas de rotina, buscando o aperfeiçoamento técnico e lógico dos procedimentos realizados. | R178: Bom desempenho em 2 fatores | S178: 4 | T178: 3
R179: Bom desempenho em 1 fator | S179: 5 | T179: 1
B180: f) Desempenha suas atividades com atenção, demonstrando conhecimento e memória de trabalho. | R180: Não apresenta iniciativa | S180: 6 | T180: 0
B182: Relatório de ocorrências:
E188: Graduação: | I188: Pontuação:
E189: =IF(COUNTA(J170:J181)=0,"",INDEX(R174:R180,MATCH(S170,S174:S180,))) ->  | I189: =IFERROR(IF(J6="","",INDEX(T173:T180,MATCH(E189,R173:R180,))),"") -> 
A191: GRADUAÇÕES
A193: FATORES | C193: PONTUAÇÃO | D193: NOTA | F193: CONCEITOS
A194: ASSIDUIDADE | C194: =I21 ->  | D194: =IFERROR(C194*E194,"") ->  | E194: 0.8 | F194: Insatisfatório | G194: até 49,9 | H194: Desempenho ruim.
A195: PONTUALIDADE | C195: =I34 ->  | D195: =IFERROR(C195*E195,"") ->  | E195: 0.8 | F195: Regular | G195: 50 a 69,9 | H195: Desempenho satisfaz em parte.
A196: DISCIPLINA | C196: =I61 ->  | E196: 1.4 | F196: Bom | G196: 70 a 89,9 | H196: Desempenho satisfaz.
A197: INICIATIVA | C197: =I88 ->  | E197: 1.4 | F197: Excelente | G197: 90 a 100 | H197: Desempenho ultrapassa as expectativas.
A198: PRODUTIVIDADE | C198: =I113 ->  | E198: 1.4
A199: RESPONSABILIDADE | C199: =I139 ->  | E199: 1.4 | G199: Resultado: | H199: =D202 -> 
A200: COMPORTAMENTO | C200: =I164 ->  | E200: 1.4
A201: DESENVOLVIMENTO | C201: =I189 ->  | E201: 1.4 | G201: Conceito: | H201: =IF(H199="","",IF(D202>90,F197,IF(D202>70,F196,IF(D202>50,F195,IF(D202>0,F194,""))))) -> 
C202: TOTAL: | D202: =IF(SUM(D194:D201)=0,"",SUM(D194:D201)) -> 
A204: PARECER DO AVALIADOR
B216: Ciente do conteúdo da avaliação.
B217: =IFERROR(CONCATENATE("Porto Alegre, ",dataav_11),"") -> Porto Alegre,
C221: =IF(nome_empregado="","",nome_empregado) -> Tício | H221: =IF(B6="","",B6) -> 
C222: AVALIADO | H222: AVALIADOR

Sheet 12ª Etapa (hidden)
A1: FICHA DE AVALIAÇÃO DE DESEMPENHO
A2: =IFERROR(CONCATENATE("12ª ETAPA: de ",DAY(L2),"/",MONTH(L2),"/",YEAR(L2)," a ",DAY(M2),"/",MONTH(M2),"/",YEAR(M2)),"") ->  | L2: =data_11+1 ->  | M2: =data_12 -> 
A4: Empregado: | B4: =IF(nome_empregado="","",nome_empregado) -> Tício | F4: Início do Exercício: | H4: =IF(EXERCÍCIO="","",EXERCÍCIO) -> 2012-12-15 | I4: Matrícula: | J4: =IF(matrícula="","",matrícula) -> 0
A5: Cargo: | B5: =IF(CARGO="","",CARGO) -> Assistente | F5: Lotação: | I5: RG/CPF: | J5: =IF(rg="","",rg) -> 
A6: Avaliador: | F6: Função: | I6: Data:
A8: FATORES DE DESEMPENHO
S9: até 3 anos
A10: ASSIDUIDADE | B10: Refere-se à frequência com que o Empregado comparece ao Trabalho, por trimestre, nos primeiros 03 (três) anos do contrato de trabalho, ou por semetre, após esse período. A ausência injustificada do local de trabalho acarretará redução da nota, sendo que serão computadas como ocorrências neste quesito as faltas superiores a 60 (sessenta) minutos, ocorridas num mesmo dia, conforme critérios estabelecidos: | S10: =I21 -> 
R11: Sem ocorrências | S11: 10 | T11: Sem ocorrências | U11: Sem ocorrências
R12: =IF($T$54>=3,U12,T12) -> 1 ocorrência | S12: 9 | T12: 1 ocorrência | U12: 1 ou 2 ocorrências
R13: 2 ocorrências | S13: 7 | T13: 2 ocorrências | U13: De 3 a 4 ocorrências
B14: Relatório de ocorrências: | R14: 3 ocorrências | S14: 5 | T14: 3 ocorrências | U14: De 5 a 6 ocorrências
R15: 4 ocorrências | S15: 3 | T15: 4 ocorrências | U15: De 7 a 8 ocorrências
R16: 5 ocorrências | S16: 1 | T16: 5 ocorrências | U16: De 9 a 10 ocorrências
R17: A partir de 6 ocorrências | S17: 0 | T17: A partir de 6 ocorrências | U17: A partir de 11 ocorrências
R19: =INDEX(R11:R17,MATCH(S10,S11:S17,1)) -> 
F20: Quantidade de ocorrências: | I20: Pontuação:
I21: =IFERROR(IF(J6="","",INDEX(S10:S17,MATCH(F21,R10:R17,))),"") -> 
S22: até 3 anos
A23: PONTUALIDADE | B23: Refere-se ao cumprimento do horário de trabalho estabelecido, por trimestre, nos primeiros 03 (três) anos do contrato de trabalho, ou por semetre, após esse período. Serão computados como ocorrência neste quesito os atrasos ou saídas antecipadas não superiores a 60 (sessenta) minutos, ocorridas num mesmo dia, sem justificativa e fora do previsto na CLT, conforme critérios estabelecidos: | S23: =I34 -> 
R24: Sem ocorrências | S24: 10 | T24: Sem ocorrências | U24: Sem ocorrências
R25: =IF($T$54>=3,U25,T25) -> Até 30 minutos | S25: 9 | T25: Até 30 minutos | U25: Até 60 minutos
R26: =IF($T$54>=3,U26,T26) -> De 31 minutos até 120 minutos | S26: 7 | T26: De 31 minutos até 120 minutos | U26: De 61 minutos até 240 minutos
B27: Relatório de ocorrências: | R27: De 121 minutos até 240 minutos | S27: 5 | T27: De 121 minutos até 240 minutos | U27: De 241 minutos até 480 minutos
R28: De 241 minutos até 480 minutos | S28: 3 | T28: De 241 minutos até 480 minutos | U28: De 481 minutos até 960 minutos
R29: De 481 minutos até 600 minutos | S29: 1 | T29: De 481 minutos até 600 minutos | U29: De 961 minutos até 1200 minutos
R30: Superior a 600 minutos | S30: 0 | T30: Superior a 600 minutos | U30: Superior a 1200 minutos
R32: =INDEX(R24:R30,MATCH(S23,S24:S30,1)) -> 
F33: Quantidade de ocorrências: | I33: Pontuação:
I34: =IFERROR(IF(J6="","",INDEX(S24:S30,MATCH(F34,R24:R30,))),"") -> 
A36: DISCIPLINA | B36: Refere-se ao cumprimento de normas internas do Conselho, como Regulamento de Pessoal, e respeito à hierarquia, por trimestre, nos primeiros 03 (três) anos do contrato de trabalho, ou por semetre, após esse período. São consideradas ocorrências:
B39: Situações: | J39: Quantidade: | S39: até 3 anos | V39: mais de 3 anos
B40: a) Alteração do horário de intervalo de almoço sem autorização prévia ou posterior justificativa aceita pelo superior imediato; | S40: =SUM(J40:J53) -> 0 | V40: =SUM(J40:J53) -> 0
B42: b) Descumprimento do intervalo intrajornada mínimo de 60 minutos para os empregados com carga diária superior a 6 horas ou de 15 minutos para os empregados com carga diária entre 4 e 6 horas;
B44: c) Realização de horas extras sem autorização prévia ou posterior justificativa do superior imediato; | R44: Sem ocorrências | S44: 0 | T44: 10 | U44: Sem ocorrências | V44: 0 | W44: 10
R45: 1 ocorrência | S45: 1 | T45: 9 | U45: 1 ou 2 ocorrências | V45: 1 | W45: 9
B46: d) Realização de compensação de jornada sem autorização prévia; | R46: De 2 a 3 ocorrências | S46: 2 | T46: 7 | U46: De 3 a 6 ocorrências | V46: 3 | W46: 7
R47: De 4 a 5 ocorrências | S47: 4 | T47: 5 | U47: De 7 a 10 ocorrências | V47: 7 | W47: 5
B48: e) Ausência da sede do Conselho, durante o expediente, sem comunicação ao superior imediato ou a outra pessoa de mesma hierarquia; | R48: De 6 a 7 ocorrências | S48: 6 | T48: 3 | U48: De 11 a 14 ocorrências | V48: 11 | W48: 3
R49: De 8 a 9 ocorrências | S49: 8 | T49: 1 | U49: De 15 a 18 ocorrências | V49: 15 | W49: 1
B50: f) Ocorrência de descumprimento do Regulamento de Pessoal; | R50: A partir de 10 ocorrências | S50: 10 | T50: 0 | U50: A partir de 19 ocorrências | V50: 19 | W50: 0
B52: g) Ocorrência de descumprimento de orientações da chefia imediata ou desrespeito à hierarquia; | R52: =INDEX(R44:R50,MATCH(S40,S44:S50,1)) -> Sem ocorrências | U52: =INDEX(U44:U50,MATCH(V40,V44:V50,1)) -> Sem ocorrências
B54: Relatório de ocorrências: | R54: =EXERCÍCIO -> 2012-12-15 | S54: =J6 -> 00:00:00 | T54: =ROUNDDOWN((S54-R54)/365.25,0) -> -112
U55: =IFERROR(IF(T54>=3,U52,R52),"") -> Sem ocorrências
E60: Graduação: | I60: Pontuação:
E61: =IF(COUNTA(J40:J53)=0,"",U55) ->  | I61: =IFERROR(IF(J6="","",IF(T54>=3,INDEX(W43:W50,MATCH(E61,U43:U50,)),INDEX(W43:W50,MATCH(E61,R43:R50,)))),"") -> 
A63: INICIATIVA | B63: Refere-se ao cumprimento de normas internas do Conselho, como Regulamento de Pessoal, e respeito à hierarquia, por trimestre, nos primeiros 03 (três) anos do contrato de trabalho, ou por semetre, após esse período. São consideradas ocorrências:
B66: Ocorrências: | J66: Avaliação:
B67: a) Alteração do horário de intervalo de almoço sem autorização prévia ou posterior justificativa aceita pelo superior imediato; | R67: Bom | S67: =COUNTIF(J67:J80,"ruim") -> 0
R68: Ruim
B69: b) Descumprimento do intervalo intrajornada mínimo de 60 minutos para os empregados com carga diária superior a 6 horas ou de 15 minutos para os empregados com carga diária entre 4 e 6 horas;
B71: c) Realização de horas extras sem autorização prévia ou posterior justificativa do superior imediato; | R71: Bom desempenho em todos os fatores | S71: 0 | T71: 10
R72: Bom desempenho em 5 fatores | S72: 1 | T72: 9
B73: d) Realização de compensação de jornada sem autorização prévia; | R73: Bom desempenho em 4 fatores | S73: 2 | T73: 7
R74: Bom desempenho em 3 fatores | S74: 3 | T74: 5
B75: e) Ausência da sede do Conselho, durante o expediente, sem comunicação ao superior imediato ou a outra pessoa de mesma hierarquia; | R75: Bom desempenho em 2 fatores | S75: 4 | T75: 3
R76: Bom desempenho em 1 fator | S76: 5 | T76: 1
B77: f) Ocorrência de descumprimento do Regulamento de Pessoal; | R77: Não apresenta iniciativa | S77: 6 | T77: 0
B79: g) Ocorrência de descumprimento de orientações da chefia imediata ou desrespeito à hierarquia;
B81: Relatório de ocorrências:
E87: Graduação: | I87: Pontuação:
E88: =IF(COUNTA(J67:J80)=0,"",INDEX(R71:R77,MATCH(S67,S71:S77,))) ->  | I88: =IFERROR(IF(J6="","",INDEX(T70:T77,MATCH(E88,R70:R77,))),"") -> 
A90: PRODUTIVIDADE | B90: Refere-se à análise do volume e qualidade de trabalho conforme resultados esperados para o cargo, por trimestre, nos primeiros 03 (três) anos do contrato de trabalho, ou por semetre, após esse período. São atitudes consideradas para a avaliação:
B93: Atitudes: | J93: Avaliação:
B94: a) Realiza um volume de trabalho compatível com o esperado, considerando o histórico habitual; | R94: Bom | S94: =COUNTIF(J94:J105,"ruim") -> 0
R95: Ruim
B96: b) Apresenta um trabalho com qualidade satisfatória, evitando retrabalhos;
B98: c) Cumpre os prazos estabelecidos, entregando as tarefas sob a sua responsabilidade no tempo previsto, evitando acúmulos nas demandas; | R98: Bom desempenho em todos os fatores | S98: 0 | T98: 10
R99: Bom desempenho em 5 fatores | S99: 1 | T99: 9
B100: d) Estrutura e sistematiza as atividades para melhor utilização dos recursos. Estabelece prioridades e organiza suas atividades; | R100: Bom desempenho em 4 fatores | S100: 2 | T100: 7
R101: Bom desempenho em 3 fatores | S101: 3 | T101: 5
B102: e) Desempenha os procedimentos e atividades com eficiência e técnicas adequadas; | R102: Bom desempenho em 2 fatores | S102: 4 | T102: 3
R103: Bom desempenho em 1 fator | S103: 5 | T103: 1
B104: f) Executa suas tarefas com foco e equilíbrio, evitando distrações e dispersões; | R104: Não apresenta iniciativa | S104: 6 | T104: 0
B106: Relatório de ocorrências:
E112: Graduação: | I112: Pontuação:
E113: =IF(COUNTA(J94:J105)=0,"",INDEX(R98:R104,MATCH(S94,S98:S104,))) ->  | I113: =IFERROR(IF(J6="","",INDEX(T97:T104,MATCH(E113,R97:R104,))),"") -> 
A115: RESPONSABILIDADE | B115: Refere-se à análise quanto ao comprometimento com as tarefas delegadas, o grau de segurança que transmite aos superiores e zelo pelos recursos disponibilizados, por trimestre, nos primeiros 03 (três) anos do contrato de trabalho, ou por semetre, após esse período. São atitudes consideradas para a avaliação:
B119: Atitudes: | J119: Avaliação:
B120: a) Colabora com a conservação do patrimônio público e utilização dos materiais; | R120: Bom | S120: =COUNTIF(J120:J131,"ruim") -> 0
R121: Ruim
B122: b) Busca orientação para solucionar questões do dia-a-dia que estão além de sua competência;
B124: c) Avisa ao superior sobre situações adversas relacionadas ao andamento do trabalho. | R124: Bom desempenho em todos os fatores | S124: 0 | T124: 10
R125: Bom desempenho em 5 fatores | S125: 1 | T125: 9
B126: d) Demonstra organização e planejamento no cumprimento de suas atividades; | R126: Bom desempenho em 4 fatores | S126: 2 | T126: 7
R127: Bom desempenho em 3 fatores | S127: 3 | T127: 5
B128: e) Apresenta autonomia nas decisões relativas às funções desenvolvidas, demonstrando comprometimento com o trabalho; | R128: Bom desempenho em 2 fatores | S128: 4 | T128: 3
R129: Bom desempenho em 1 fator | S129: 5 | T129: 1
B130: f) Transmite segurança no desempenho de suas funções, cumprindo suas tarefas de acordo com as instruções recebidas; | R130: Não apresenta iniciativa | S130: 6 | T130: 0
B132: Relatório de ocorrências:
E138: Graduação: | I138: Pontuação:
E139: =IF(COUNTA(J120:J131)=0,"",INDEX(R124:R130,MATCH(S120,S124:S130,))) ->  | I139: =IFERROR(IF(J6="","",INDEX(T123:T130,MATCH(E139,R123:R130,))),"") -> 
A141: COMPORTAMENTO | B141: Refere-se à postura e sigilo sobre assuntos reservados e confidenciais , ao comportamento e conhecimento disciplinar e ético, por trimestre, nos primeiros 03 (três) anos do contrato de trabalho, ou por semetre, após esse período. São atitudes consideradas para a avaliação:
B144: Atitudes: | J144: Avaliação:
B145: a) Trata informações e documentos com o grau de reserva ou sigilo necessários; | R145: Bom | S145: =COUNTIF(J145:J156,"ruim") -> 0
R146: Ruim
B147: b) Atua com ética e profissionalismo, demonstrando postura equilibrada e adequada ao ambiente de trabalho.
B149: c) É receptivo em relação aos apontamentos e sugestões de melhoria feitas acerca de sua postura e desempenho do trabalho; | R149: Bom desempenho em todos os fatores | S149: 0 | T149: 10
R150: Bom desempenho em 5 fatores | S150: 1 | T150: 9
B151: d) Trata a todos de forma solícita, gentil e respeitosa; | R151: Bom desempenho em 4 fatores | S151: 2 | T151: 7
R152: Bom desempenho em 3 fatores | S152: 3 | T152: 5
B153: e) Difunde conhecimentos, ideias, soluções e boas práticas; | R153: Bom desempenho em 2 fatores | S153: 4 | T153: 3
R154: Bom desempenho em 1 fator | S154: 5 | T154: 1
B155: f) Contribui para um melhor ambiente de trabalho, apresentando um bom relacionamento interpessoal e harmonia na convivência com os diversos perfis profissionais e pessoais, e em situações adversas. | R155: Não apresenta iniciativa | S155: 6 | T155: 0
B157: Relatório de ocorrências:
E163: Graduação: | I163: Pontuação:
E164: =IF(COUNTA(J145:J156)=0,"",INDEX(R149:R155,MATCH(S145,S149:S155,))) ->  | I164: =IFERROR(IF(J6="","",INDEX(T148:T155,MATCH(E164,R148:R155,))),"") -> 
A166: DESENVOLVIMENTO | B166: Refere-se à análise quanto a potencialidade para aprendizagem e aplicação do conhecimento, por trimestre, nos primeiros 03 (três) anos do contrato de trabalho, ou por semetre, após esse período. São atitudes consideradas para a avaliação:
B169: Atitudes: | J169: Avaliação:
B170: a) Tem domínio sobre as atividades, normativas, procedimentos e processos da área em que atua, assegurando corretas orientações para a sua equipe e sociedade; | R170: Bom | S170: =COUNTIF(J170:J181,"ruim") -> 0
R171: Ruim
B172: b) Tem facilidade em absorver novos conhecimentos, no aprendizado de novas tarefas, procedimentos e processos;
B174: c) Comunica-se de forma clara e eficiente, atentando para a qualidade da linguagem e da informação transmitida; | R174: Bom desempenho em todos os fatores | S174: 0 | T174: 10
R175: Bom desempenho em 5 fatores | S175: 1 | T175: 9
B176: d) Procura evoluir pessoal, profissional e intelectualmente, buscando aperfeiçoamento e atualização contínua de seus conhecimentos e habilidades. | R176: Bom desempenho em 4 fatores | S176: 2 | T176: 7
R177: Bom desempenho em 3 fatores | S177: 3 | T177: 5
B178: e) Demonstra senso crítico em relação às tarefas de rotina, buscando o aperfeiçoamento técnico e lógico dos procedimentos realizados. | R178: Bom desempenho em 2 fatores | S178: 4 | T178: 3
R179: Bom desempenho em 1 fator | S179: 5 | T179: 1
B180: f) Desempenha suas atividades com atenção, demonstrando conhecimento e memória de trabalho. | R180: Não apresenta iniciativa | S180: 6 | T180: 0
B182: Relatório de ocorrências:
E188: Graduação: | I188: Pontuação:
E189: =IF(COUNTA(J170:J181)=0,"",INDEX(R174:R180,MATCH(S170,S174:S180,))) ->  | I189: =IFERROR(IF(J6="","",INDEX(T173:T180,MATCH(E189,R173:R180,))),"") -> 
A191: GRADUAÇÕES
A193: FATORES | C193: PONTUAÇÃO | D193: NOTA | F193: CONCEITOS
A194: ASSIDUIDADE | C194: =I21 ->  | D194: =IFERROR(C194*E194,"") ->  | E194: 0.8 | F194: Insatisfatório | G194: até 49,9 | H194: Desempenho ruim.
A195: PONTUALIDADE | C195: =I34 ->  | D195: =IFERROR(C195*E195,"") ->  | E195: 0.8 | F195: Regular | G195: 50 a 69,9 | H195: Desempenho satisfaz em parte.
A196: DISCIPLINA | C196: =I61 ->  | E196: 1.4 | F196: Bom | G196: 70 a 89,9 | H196: Desempenho satisfaz.
A197: INICIATIVA | C197: =I88 ->  | E197: 1.4 | F197: Excelente | G197: 90 a 100 | H197: Desempenho ultrapassa as expectativas.
A198: PRODUTIVIDADE | C198: =I113 ->  | E198: 1.4
A199: RESPONSABILIDADE | C199: =I139 ->  | E199: 1.4 | G199: Resultado: | H199: =D202 -> 
A200: COMPORTAMENTO | C200: =I164 ->  | E200: 1.4
A201: DESENVOLVIMENTO | C201: =I189 ->  | E201: 1.4 | G201: Conceito: | H201: =IF(H199="","",IF(D202>90,F197,IF(D202>70,F196,IF(D202>50,F195,IF(D202>0,F194,""))))) -> 
C202: TOTAL: | D202: =IF(SUM(D194:D201)=0,"",SUM(D194:D201)) -> 
A204: PARECER DO AVALIADOR
B216: Ciente do conteúdo da avaliação.
B217: =IFERROR(CONCATENATE("Porto Alegre, ",dataav_12),"") -> Porto Alegre,
C221: =IF(nome_empregado="","",nome_empregado) -> Tício | H221: =IF(B6="","",B6) -> 
C222: AVALIADO | H222: AVALIADOR

Sheet GRÁFICOS
B2: DESEMPENHO GERAL (POR RESULTADO - NOTAS)
B21: DESEMPENHO ESPECÍFICO (POR PONTUAÇÃO)
B44: DESEMPENHO ESPECÍFICO (POR PONTUAÇÃO)
